Workbook

Sheet Liste
A1: auff | B1: üllen | C1: Extern | D1: Obst | E1: Lidl | F1: Artikel | H1: Min 2025 | I1: MAX 2025 | J1: Min 2026 | K1: MAX 2026 | L1: letzter Preis | M1: Einkauf | N1: Soll | O1: Ist | P1: =TODAY()+5-WEEKDAY(TODAY())+4*(WEEKDAY(TODAY())>7) -> 2025-12-18 | Q1: =IF(TODAY()>P1-1,"",P1-7) ->  | R1: 2025-01-02 | S1: 2025-01-09 | T1: 2025-01-16 | U1: 2025-01-23 | V1: 2025-01-30 | W1: 2025-02-06 | X1: 2025-02-13 | Y1: 2025-02-20 | Z1: 2025-02-27 | AA1: 2025-03-06 | AB1: 2025-03-13 | AC1: 2025-03-20 | AD1: 2025-03-27 | AE1: 2025-04-03 | AF1: 2025-04-10 | AG1: 2025-04-17 | AH1: 2025-04-24 | AI1: 2025-05-01 | AJ1: 2025-05-08 | AK1: 2025-05-15 | AL1: 2025-05-22 | AM1: 2025-05-29 | AN1: 2025-06-05 | AO1: 2025-06-12 | AP1: 2025-06-19 | AQ1: 2025-06-26 | AR1: 2025-07-03 | AS1: 2025-07-10 | AT1: 2025-07-17 | AU1: 2025-07-24 | AV1: 2025-07-31 | AW1: 2025-08-07 | AX1: 2025-08-14 | AY1: 2025-08-21 | AZ1: 2025-08-28 | BA1: 2025-09-04 | BB1: 2025-09-11 | BC1: 2025-09-18 | BD1: 2025-09-25 | BE1: 2025-10-02 | BF1: 2025-10-09 | BG1: 2025-10-16 | BH1: 2025-10-23 | BI1: 2025-10-30 | BJ1: 2025-11-06 | BK1: 2025-11-13 | BL1: 2025-11-20 | BM1: 2025-11-27 | BN1: 2025-12-04 | BO1: 2025-12-11 | BP1: 2025-12-18 | BQ1: 2025-12-25 | BR1: 2026-01-01 | BS1: 2026-01-08 | BT1: 2026-01-15 | BU1: 2026-01-22 | BV1: 2026-01-29 | BW1: 2026-02-05 | BX1: 2026-02-12 | BY1: 2026-02-19 | BZ1: 2026-02-26 | CA1: 2026-03-05 | CB1: 2026-03-12 | CC1: 2026-03-19 | CD1: 2026-03-26 | CE1: 2026-04-02 | CF1: 2026-04-09 | CG1: 2026-04-16 | CH1: 2026-04-23 | CI1: 2026-04-30 | CJ1: 2026-05-07 | CK1: 2026-05-14 | CL1: 2026-05-21 | CM1: 2026-05-28 | CN1: 2026-06-04 | CO1: 2026-06-11 | CP1: 2026-06-18 | CQ1: 2026-06-25 | CR1: 2026-07-02 | CS1: 2026-07-09 | CT1: 2026-07-16 | CU1: 2026-07-23 | CV1: 2026-07-30 | CW1: 2026-08-06 | CX1: 2026-08-13 | CY1: 2026-08-20 | CZ1: 2026-08-27 | DA1: 2026-09-03 | DB1: 2026-09-10 | DC1: 2026-09-17 | DD1: 2026-09-24 | DE1: 2026-10-01 | DF1: 2026-10-08 | DG1: 2026-10-15 | DH1: 2026-10-22 | DI1: 2026-10-29 | DJ1: 2026-11-05 | DK1: 2026-11-12 | DL1: 2026-11-19 | DM1: 2026-11-26 | DN1: 2026-12-03 | DO1: 2026-12-10 | DP1: 2026-12-17 | DQ1: 2026-12-24 | DR1: 2026-12-31 | DS1: 2027-01-07
A2: 0 | B2: =IF(O2<N2,1,0) -> 0 | C2: 0 | D2: 0 | E2: =IF(OR(O2<(N2*0.51),H2=Q2,H2=P2),1,0) -> 0 | G2: Artikel 1 | H2: =MIN($R2:BQ2) -> 99.99 | I2: =MAX($R2:BQ2) -> 99.99 | J2: =MIN($BR2:DR2) -> 0 | K2: =MAX($BR2:DR2) -> 0 | L2: =IFERROR(LOOKUP(100000,R2:DS2),0) -> 99.99 | M2: =SUM(N2-O2) -> 0 | N2: 2 | O2: 2 | P2: =INDEX(R2:DS2,MATCH(P$1,R$1:DS$1,0)) -> 0 | Q2: =IFERROR(INDEX(R2:DS2,MATCH(Q$1,R$1:DS$1,0)),0) -> 0 | AD2: 99.99 | AE2: 99.99 | AO2: 99.99
A3: =A2 -> 0 | B3: =IF(O3<N3,B2+1,B2) -> 1 | C3: =C2 -> 0 | D3: =D2 -> 0 | E3: =IF(OR(O3<(N3*0.51),H3=Q3,H3=P3),E2+1,E2) -> 1 | G3: Artikel 2 | H3: =MIN($R3:BQ3) -> 58.99 | I3: =MAX($R3:BQ3) -> 58.99 | J3: =MIN($BR3:DR3) -> 111 | K3: =MAX($BR3:DR3) -> 222 | L3: =IFERROR(LOOKUP(100000,R3:DS3),0) -> 111 | M3: 2 | N3: 2 | P3: 0 | Q3: 0 | AC3: 58.99 | AF3: 58.99 | AM3: 58.99 | AO3: 58.99 | BR3: 222 | BS3: 111
A4: =A3 -> 0 | B4: 1 | C4: =C3 -> 0 | D4: =D3 -> 0 | E4: =IF(OR(O4<(N4*0.51),H4=Q4,H4=P4),E3+1,E3) -> 1 | G4: Artikel 3 | H4: =MIN($R4:BQ4) -> 247.99 | I4: =MAX($R4:BQ4) -> 307.99 | J4: =MIN($BR4:DR4) -> 0 | K4: =MAX($BR4:DR4) -> 0 | L4: =IFERROR(LOOKUP(100000,R4:DS4),0) -> 307.99 | M4: 0 | N4: 7 | O4: 7 | P4: 0 | Q4: 0 | W4: 247.99 | BC4: 307.99
A5: 0 | B5: 1 | C5: =C4 -> 0 | D5: =D4 -> 0 | E5: 1 | G5: Artikel 4 | H5: =MIN($R5:BQ5) -> 239.99 | I5: =MAX($R5:BQ5) -> 239.99 | J5: =MIN($BR5:DR5) -> 0 | K5: =MAX($BR5:DR5) -> 0 | L5: 239.99 | M5: 0 | N5: 1 | O5: 1 | P5: 0 | Q5: 0 | AP5: 239.99 | AW5: 239.99
A6: =IF(O6<N6,A5+1,A5) -> 0 | B6: =B5 -> 1 | C6: =IF(O6<(N6*0.51),C5+1,C5) -> 0 | D6: =D5 -> 0 | E6: =E5 -> 1 | G6: Artikel 5 | H6: =MIN($R6:BQ6) -> 167 | I6: =MAX($R6:BQ6) -> 167 | J6: =MIN($BR6:DR6) -> 0 | K6: =MAX($BR6:DR6) -> 0 | L6: 167 | M6: 0 | N6: 8 | O6: 8 | P6: 0 | Q6: 0 | R6: 167
A7: =A6 -> 0 | B7: 1 | C7: =C6 -> 0 | D7: 0 | E7: 1 | G7: Artikel 6 | H7: =MIN($R7:BQ7) -> 221.45 | I7: =MAX($R7:BQ7) -> 319.99 | J7: =MIN($BR7:DR7) -> 0 | K7: =MAX($BR7:DR7) -> 0 | L7: 221.45 | M7: -5 | N7: 4 | O7: 9 | P7: 0 | Q7: 0 | X7: 299.99 | AP7: 319.99 | BF7: 221.45
A8: 0 | B8: =B7 -> 1 | C8: =IF(O8<(N8*0.51),C7+1,C7) -> 0 | D8: 0 | E8: =E7 -> 1 | G8: Artikel 7 | H8: =MIN($R8:BQ8) -> 410 | I8: =MAX($R8:BQ8) -> 450 | J8: =MIN($BR8:DR8) -> 0 | K8: =MAX($BR8:DR8) -> 0 | L8: 410 | M8: 0 | N8: 2 | O8: 2 | P8: 0 | Q8: 0 | R8: 450 | BD8: 410
A9: =A8 -> 0 | B9: 1 | C9: =C8 -> 0 | D9: 0 | E9: 1 | G9: Artikel 8 | H9: =MIN($R9:BQ9) -> 139.99 | I9: =MAX($R9:BQ9) -> 179.99 | J9: =MIN($BR9:DR9) -> 0 | K9: =MAX($BR9:DR9) -> 0 | L9: 145.99 | M9: -1 | N9: 5 | O9: 6 | P9: 0 | Q9: 0 | AI9: 179.99 | AR9: 139.99 | BA9: 145.99
A10: 0 | B10: 1 | C10: 0 | D10: 0 | E10: 1 | G10: Artikel 9 | H10: =MIN($R10:BQ10) -> 399.99 | I10: =MAX($R10:BQ10) -> 399.99 | J10: =MIN($BR10:DR10) -> 0 | K10: =MAX($BR10:DR10) -> 0 | L10: 399.99 | M10: 0 | N10: 1 | O10: 1 | P10: 0 | Q10: 0 | AQ10: 399.99
A11: 0 | B11: =B10 -> 1 | C11: 0 | D11: =IF(OR(M11>0,H11=P11),D10+1,D10) -> 1 | E11: =IF(OR(H11=Q11,H11=P11),E10+1,E10) -> 1 | G11: Artikel 10 | H11: =MIN($R11:BQ11) -> 69.99 | I11: =MAX($R11:BQ11) -> 139.99 | J11: =MIN($BR11:DR11) -> 0 | K11: =MAX($BR11:DR11) -> 0 | L11: 69.99 | M11: 3 | N11: 3 | P11: 0 | Q11: 0 | R11: 94.99 | T11: 89.99 | X11: 69.99 | Z11: 99.99 | AD11: 119.99 | AF11: 69.99 | AG11: 89.99 | AH11: 99.99 | AI11: 99.99 | AK11: 99.99 | AZ11: 139.99 | BB11: 79.99 | BD11: 119.99 | BF11: 79.99 | BH11: 126.99 | BI11: 109.99 | BL11: 69.99 | BO11: 69.99
A12: 0 | B12: =B11 -> 1 | C12: 0 | D12: =IF(OR(M12>0,H12=P12),D11+1,D11) -> 2 | E12: =IF(OR(H12=Q12,H12=P12),E11+1,E11) -> 1 | G12: Artikel 11 | H12: =MIN($R12:BQ12) -> 249.99 | I12: =MAX($R12:BQ12) -> 299.99 | J12: =MIN($BR12:DR12) -> 0 | K12: =MAX($BR12:DR12) -> 0 | L12: 299.99 | M12: 2 | N12: 2 | P12: 0 | Q12: 0 | AP12: 299.99 | AQ12: 249.99 | AR12: 299.99
A13: 0 | B13: 2 | C13: 0 | D13: =D12 -> 2 | E13: =IF(OR(O13<(N13*0.51),H13=Q13,H13=P13),E12+1,E12) -> 1 | G13: Artikel 12 | H13: =MIN($R13:BQ13) -> 189.99 | I13: =MAX($R13:BQ13) -> 269.99 | J13: =MIN($BR13:DR13) -> 0 | K13: =MAX($BR13:DR13) -> 0 | L13: 269.99 | M13: 1 | N13: 8 | O13: 7 | P13: 0 | Q13: 0 | AH13: 189.99 | AS13: 269.99
A14: 0 | B14: 2 | C14: 0 | D14: =D13 -> 2 | E14: 1 | G14: Artikel 13 | H14: =MIN($R14:BQ14) -> 129.99 | I14: =MAX($R14:BQ14) -> 142.99 | J14: =MIN($BR14:DR14) -> 0 | K14: =MAX($BR14:DR14) -> 0 | L14: 142.99 | M14: 0 | N14: 5 | O14: 5 | P14: 0 | Q14: 0 | AQ14: 129.99 | BA14: 134.99 | BH14: 142.99
A15: 0 | B15: =B14 -> 2 | C15: =C14 -> 0 | D15: =IF(OR(M15>0,H15=P15),D14+1,D14) -> 3 | E15: =IF(OR(H15=Q15,H15=P15),E14+1,E14) -> 1 | G15: Artikel 14 | H15: =MIN($R15:BQ15) -> 129.99 | I15: =MAX($R15:BQ15) -> 169.99 | J15: =MIN($BR15:DR15) -> 0 | K15: =MAX($BR15:DR15) -> 0 | L15: 134.99 | M15: 2 | N15: 2 | P15: 0 | Q15: 0 | AA15: 129.99 | AD15: 139.99 | AF15: 149.49 | AG15: 149.99 | AJ15: 149.49 | AN15: 139.99 | AX15: 169.99 | BE15: 159.99 | BI15: 159.99 | BN15: 134.99
A16: 0 | B16: =B15 -> 2 | C16: =IF(O16<(N16*0.51),C15+1,C15) -> 0 | D16: =D15 -> 3 | E16: =E15 -> 1 | G16: Artikel 15 | H16: =MIN($R16:BQ16) -> 114.99 | I16: =MAX($R16:BQ16) -> 114.99 | J16: =MIN($BR16:DR16) -> 0 | K16: =MAX($BR16:DR16) -> 0 | L16: 114.99 | M16: 0 | N16: 15 | O16: 15 | P16: 0 | Q16: 0 | AW16: 114.99
A17: 0 | B17: =B16 -> 2 | C17: 0 | D17: =IF(OR(M17>0,H17=P17),D16+1,D16) -> 4 | E17: =IF(OR(H17=Q17,H17=P17),E16+1,E16) -> 1 | G17: Artikel 16 | H17: =MIN($R17:BQ17) -> 119.99 | I17: =MAX($R17:BQ17) -> 209.99 | J17: =MIN($BR17:DR17) -> 0 | K17: =MAX($BR17:DR17) -> 0 | L17: 179.99 | M17: 2 | N17: 2 | P17: 0 | Q17: 0 | AQ17: 169.99 | AU17: 149.99 | AY17: 119.99 | BA17: 209.99 | BH17: 164.99 | BK17: 179.99
A18: 0 | B18: =B17 -> 2 | C18: 0 | D18: =IF(OR(M18>0,H18=P18),D17+1,D17) -> 5 | E18: =IF(OR(H18=Q18,H18=P18),E17+1,E17) -> 1 | G18: Artikel 17 | H18: =MIN($R18:BQ18) -> 99.99 | I18: =MAX($R18:BQ18) -> 199.99 | J18: =MIN($BR18:DR18) -> 0 | K18: =MAX($BR18:DR18) -> 0 | L18: 99.99 | M18: 1 | N18: 1 | P18: 0 | Q18: 0 | AR18: 199.99 | BG18: 109.99 | BJ18: 99.99
A19: =A18 -> 0 | B19: 2 | C19: 0 | D19: =D18 -> 5 | E19: =IF(OR(O19<(N19*0.51),H19=Q19,H19=P19),E18+1,E18) -> 1 | G19: Artikel 18 | H19: =MIN($R19:BQ19) -> 49.99 | I19: =MAX($R19:BQ19) -> 64.99 | J19: =MIN($BR19:DR19) -> 0 | K19: =MAX($BR19:DR19) -> 0 | L19: 64.99 | M19: 0 | N19: 20 | O19: 20 | P19: 0 | Q19: 0 | AE19: 49.99 | AQ19: 55.24 | AT19: 64.99
A20: 0 | B20: =B19 -> 2 | C20: 0 | D20: =IF(OR(M20>0,H20=P20),D19+1,D19) -> 6 | E20: =IF(OR(H20=Q20,H20=P20),E19+1,E19) -> 1 | G20: Artikel 19 | H20: =MIN($R20:BQ20) -> 119.99 | I20: =MAX($R20:BQ20) -> 199.99 | J20: =MIN($BR20:DR20) -> 0 | K20: =MAX($BR20:DR20) -> 0 | L20: 134.99 | M20: 2 | N20: 2 | P20: 0 | Q20: 0 | T20: 129.99 | V20: 139.99 | AE20: 119.99 | BE20: 199.99 | BL20: 134.99
A21: 0 | B21: 3 | C21: =C20 -> 0 | D21: =D20 -> 6 | E21: =IF(OR(O21<(N21*0.51),H21=Q21,H21=P21),E20+1,E20) -> 1 | G21: Artikel 20 | H21: =MIN($R21:BQ21) -> 119.99 | I21: =MAX($R21:BQ21) -> 135.99 | J21: =MIN($BR21:DR21) -> 0 | K21: =MAX($BR21:DR21) -> 0 | L21: 124.99 | M21: 3 | N21: 10 | O21: 7 | P21: 0 | Q21: 0 | AD21: 124.99 | AJ21: 119.99 | AO21: 124.99 | AS21: 124.99 | AU21: 124.99 | BF21: 135.99 | BH21: 124.99
A22: 0 | B22: 4 | C22: 0 | D22: 6 | E22: 2 | G22: Artikel 21 | H22: =MIN($R22:BQ22) -> 229.99 | I22: =MAX($R22:BQ22) -> 399.99 | J22: =MIN($BR22:DR22) -> 0 | K22: =MAX($BR22:DR22) -> 0 | L22: 299.99 | M22: 1 | N22: 2 | O22: 1 | P22: 0 | Q22: 0 | S22: 289.99 | Y22: 329.99 | AA22: 289.99 | AH22: 229.99 | AK22: 399.99 | AM22: 269.99 | AV22: 389.99 | AW22: 309.99 | BD22: 299.99
A23: =A22 -> 0 | B23: =B22 -> 4 | C23: 0 | D23: 6 | E23: 2 | G23: Artikel 22 | H23: =MIN($R23:BQ23) -> 0 | I23: =MAX($R23:BQ23) -> 0 | J23: =MIN($BR23:DR23) -> 0 | K23: =MAX($BR23:DR23) -> 0 | L23: =IFERROR(LOOKUP(100000,R23:DS23),0) -> 0 | M23: =SUM(N23-O23) -> 0 | N23: 3 | O23: 3 | P23: =INDEX(R23:DS23,MATCH(P$1,R$1:DS$1,0)) -> 0 | Q23: =IFERROR(INDEX(R23:DS23,MATCH(Q$1,R$1:DS$1,0)),0) -> 0
A24: =A23 -> 0 | B24: 4 | C24: 0 | D24: 6 | E24: =IF(OR(O24<(N24*0.51),H24=Q24,H24=P24),E23+1,E23) -> 2 | G24: Artikel 23 | H24: =MIN($R24:BQ24) -> 42.49 | I24: =MAX($R24:BQ24) -> 49.99 | J24: =MIN($BR24:DR24) -> 0 | K24: =MAX($BR24:DR24) -> 0 | L24: 42.49 | M24: =SUM(N24-O24) -> 0 | N24: 20 | O24: 20 | P24: 0 | Q24: 0 | AQ24: 49.99 | AT24: 49.99 | AW24: 42.49
A25: 0 | B25: 4 | C25: 0 | D25: 6 | E25: 2 | G25: Artikel 24 | H25: =MIN($R25:BQ25) -> 179.99 | I25: =MAX($R25:BQ25) -> 209.99 | J25: =MIN($BR25:DR25) -> 0 | K25: =MAX($BR25:DR25) -> 0 | L25: 179.99 | M25: -1 | N25: 2 | O25: 3 | P25: 0 | Q25: 0 | AK25: 189.99 | AR25: 209.99 | AW25: 189.99 | BC25: 199.99 | BJ25: 179.99
A26: 0 | B26: 5 | C26: 0 | D26: 6 | E26: 2 | G26: Artikel 25 | H26: =MIN($R26:BQ26) -> 146.99 | I26: =MAX($R26:BQ26) -> 169.99 | J26: =MIN($BR26:DR26) -> 0 | K26: =MAX($BR26:DR26) -> 0 | L26: 146.99 | M26: 1 | N26: 30 | O26: 29 | P26: 0 | Q26: 0 | AR26: 169.99 | BE26: 149.99 | BK26: 146.99
A27: 0 | B27: 6 | C27: 0 | D27: 6 | E27: 2 | G27: Artikel 26 | H27: =MIN($R27:BQ27) -> 94.99 | I27: =MAX($R27:BQ27) -> 99.99 | J27: =MIN($BR27:DR27) -> 0 | K27: =MAX($BR27:DR27) -> 0 | L27: 99.99 | M27: 1 | N27: 10 | O27: 9 | P27: 0 | Q27: 0 | R27: 94.99 | U27: 94.99 | BG27: 99.99
A28: 0 | B28: 6 | C28: =C27 -> 0 | D28: 6 | E28: 2 | G28: Artikel 27 | H28: =MIN($R28:BQ28) -> 165.99 | I28: =MAX($R28:BQ28) -> 174.99 | J28: =MIN($BR28:DR28) -> 0 | K28: =MAX($BR28:DR28) -> 0 | L28: =IFERROR(LOOKUP(100000,R28:DS28),0) -> 165.99 | M28: =SUM(N28-O28) -> 0 | N28: 4 | O28: 4 | P28: 0 | Q28: 0 | BE28: 174.99 | BH28: 165.99
A29: 0 | B29: 6 | C29: =C28 -> 0 | D29: 6 | E29: 2 | G29: Artikel 28 | H29: =MIN($R29:BQ29) -> 299.99 | I29: =MAX($R29:BQ29) -> 349.99 | J29: =MIN($BR29:DR29) -> 0 | K29: =MAX($BR29:DR29) -> 0 | L29: 299.99 | M29: 0 | N29: 10 | O29: 10 | P29: 0 | Q29: 0 | AS29: 349.99 | AV29: 299.99
A30: 0 | B30: =B29 -> 6 | C30: =IF(AND(O205=0,(O87+O88+O89+O90)>2),C29+1,C29) -> 0 | D30: =D29 -> 6 | E30: 2 | G30: Artikel 29 | H30: =MIN($R30:BQ30) -> 50 | I30: =MAX($R30:BQ30) -> 80 | J30: =MIN($BR30:DR30) -> 0 | K30: =MAX($BR30:DR30) -> 0 | L30: =IFERROR(LOOKUP(100000,R30:DS30),0) -> 80 | M30: =SUM(N30-O30) -> 3 | N30: 3 | P30: 0 | Q30: 0 | AG30: 80 | BD30: 50 | BJ30: 80
A31: 0 | B31: 7 | C31: =C30 -> 0 | D31: 6 | E31: 2 | G31: Artikel 30 | H31: =MIN($R31:BQ31) -> 89.99 | I31: =MAX($R31:BQ31) -> 159.99 | J31: =MIN($BR31:DR31) -> 0 | K31: =MAX($BR31:DR31) -> 0 | L31: 89.99 | M31: 1 | N31: 16 | O31: 15 | P31: 0 | Q31: 0 | X31: 159.99 | Z31: 104.99 | AB31: 99.99 | AM31: 89.99 | AR31: 99.99 | AT31: 99.99 | AU31: 89.99 | BK31: 89.99
A32: =A31 -> 0 | B32: =B31 -> 7 | C32: =C31 -> 0 | D32: 6 | E32: 2 | G32: Artikel 31 | H32: =MIN($R32:BQ32) -> 379.99 | I32: =MAX($R32:BQ32) -> 379.99 | J32: =MIN($BR32:DR32) -> 0 | K32: =MAX($BR32:DR32) -> 0 | L32: =IFERROR(LOOKUP(100000,R32:DS32),0) -> 379.99 | M32: =SUM(N32-O32) -> 1 | N32: 1 | P32: 0 | Q32: 0 | BM32: 379.99
A33: =A32 -> 0 | B33: =IF((O33+O34+O35+O36+O37+O38)<90,B32+1,B32) -> 8 | C33: =C32 -> 0 | D33: 6 | E33: =IF(OR((O33+O34+O35+O36+O37+O38)<31,H33=Q25,H33=P33),E32+1,E32) -> 3 | G33: Artikel 32 | H33: =MIN($R33:BQ33) -> 359.7 | I33: =MAX($R33:BQ33) -> 499.99 | J33: =MIN($BR33:DR33) -> 0 | K33: =MAX($BR33:DR33) -> 0 | L33: 479.7 | M33: =IF(O33<21,3,IF(O33<41,2,IF(O33<61,1,0))) -> 3 | N33: 90 | P33: 0 | Q33: 0 | U33: 419.99 | Y33: 419.99 | AC33: 389.7 | AF33: 359.7 | AP33: 389.7 | AU33: 389.7 | BB33: 389.49 | BE33: 389.49 | BF33: 499.99 | BL33: 479.7
A34: =A33 -> 0 | B34: =IF((O33+O34+O35+O36+O37+O38)<90,B33+1,B33) -> 9 | C34: =C33 -> 0 | D34: 6 | E34: =IF(OR((O33+O34+O35+O36+O37+O38)<31,H34=Q34,H34=P34),E33+1,E33) -> 4 | G34: Artikel 33 | H34: =MIN($R34:BQ34) -> 229.99 | I34: =MAX($R34:BQ34) -> 279.99 | J34: =MIN($BR34:DR34) -> 0 | K34: =MAX($BR34:DR34) -> 0 | L34: 229.99 | M34: =SUM(N33-O33-O34-O35-O36-O37-O38)/18 -> 5 | N34: 18 | P34: 0 | Q34: 0 | T34: 269.99 | AK34: 279.99 | AR34: 229.99
A35: 0 | B35: =IF((O33+O34+O35+O36+O37+O38)<90,B34+1,B34) -> 10 | C35: =C34 -> 0 | D35: 6 | E35: =IF(OR((O33+O34+O35+O36+O37+O38)<31,H35=Q35,H35=P35),E34+1,E34) -> 5 | G35: Artikel 34 | H35: =MIN($R35:BQ35) -> 279.99 | I35: =MAX($R35:BQ35) -> 279.99 | J35: =MIN($BR35:DR35) -> 0 | K35: =MAX($BR35:DR35) -> 0 | L35: 279.99 | M35: =SUM(N33-O33-O34-O35-O36-O37-O38)/15 -> 6 | N35: 15 | P35: 0 | Q35: 0 | AW35: 279.99
A36: 0 | B36: =IF((O33+O34+O35+O36+O37+O38)<90,B35+1,B35) -> 11 | C36: 0 | D36: 6 | E36: =IF(OR((O33+O34+O35+O36+O37+O38)<31,H36=Q36,H36=P36),E35+1,E35) -> 6 | G36: Artikel 35 | H36: =MIN($R36:BQ36) -> 155.99 | I36: =MAX($R36:BQ36) -> 199.99 | J36: =MIN($BR36:DR36) -> 0 | K36: =MAX($BR36:DR36) -> 0 | L36: 155.99 | M36: =SUM(N33-O33-O34-O35-O36-O37-O38)/12 -> 7.5 | N36: 12 | P36: 0 | Q36: 0 | R36: 199.99 | AX36: 155.99
A37: 0 | B37: =IF((O33+O34+O35+O36+O37+O38)<90,B36+1,B36) -> 12 | C37: 0 | D37: 6 | E37: =IF(OR((O33+O34+O35+O36+O37+O38)<31,H37=Q37,H37=P37),E36+1,E36) -> 7 | G37: Artikel 36 | H37: =MIN($R37:BQ37) -> 179.99 | I37: =MAX($R37:BQ37) -> 199.99 | J37: =MIN($BR37:DR37) -> 0 | K37: =MAX($BR37:DR37) -> 0 | L37: 199.99 | M37: =SUM(N33-O33-O34-O35-O36-O37-O38)/10 -> 9 | N37: 10 | P37: 0 | Q37: 0 | AF37: 179.99 | BM37: 199.99
A38: 0 | B38: =IF((O33+O34+O35+O36+O37+O38)<90,B37+1,B37) -> 13 | C38: 0 | D38: 6 | E38: =IF(OR((O33+O34+O35+O36+O37+O38)<31,H38=Q38,H38=P38),E37+1,E37) -> 8 | G38: Artikel 37 | H38: =MIN($R38:BQ38) -> 175.99 | I38: =MAX($R38:BQ38) -> 219.99 | J38: =MIN($BR38:DR38) -> 0 | K38: =MAX($BR38:DR38) -> 0 | L38: 189.99 | M38: =SUM(N33-O33-O34-O35-O36-O37-O38)/10 -> 9 | N38: 10 | P38: 0 | Q38: 0 | AS38: 219.99 | AW38: 175.99 | BF38: 189.99
A39: 0 | B39: =IF((O39+O40)<(N39+N40),B38+1,B38) -> 13 | C39: 0 | D39: 6 | E39: =IF(OR(((O39+O40)<((N39+N40)*0.51)),H39=Q39,H39=P39),E38+1,E38) -> 8 | G39: Artikel 38 | H39: =MIN($R39:BQ39) -> 149.99 | I39: =MAX($R39:BQ39) -> 174.99 | J39: =MIN($BR39:DR39) -> 0 | K39: =MAX($BR39:DR39) -> 0 | L39: 164.99 | M39: =SUM((N39+N40)-(O39+O40)) -> 0 | N39: 6 | O39: 6 | P39: 0 | Q39: 0 | V39: 149.99 | AC39: 164.99 | AH39: 159.99 | AO39: 174.99 | AR39: 164.99
A40: 0 | B40: =IF((O39+O40)<(N39+N40),B39+1,B39) -> 13 | C40: 0 | D40: 6 | E40: =IF(OR(((O39+O40)<((N39+N40)*0.51)),H40=Q40,H40=P40),E39+1,E39) -> 9 | G40: Artikel 39 | H40: =MIN($R40:BQ40) -> 184.49 | I40: =MAX($R40:BQ40) -> 219.99 | J40: =MIN($BR40:DR40) -> 0 | K40: =MAX($BR40:DR40) -> 0 | L40: 184.49 | M40: =SUM((N39+N40)-(O39+O40)) -> 0 | N40: 2 | O40: 2 | P40: 184.49 | Q40: 0 | S40: 219.99 | Y40: 219.99 | AK40: 219.99 | AQ40: 219.99 | AV40: 219.99 | AZ40: 210.99 | BD40: 184.49 | BG40: 184.49 | BJ40: 184.49 | BL40: 184.49 | BP40: 184.49
A41: 0 | B41: 14 | C41: 0 | D41: =D40 -> 6 | E41: =IF(OR(O41<(N41*0.51),H41=Q41,H41=P41),E40+1,E40) -> 9 | G41: Artikel 40 | H41: =MIN($R41:BQ41) -> 199.99 | I41: =MAX($R41:BQ41) -> 259.99 | J41: =MIN($BR41:DR41) -> 0 | K41: =MAX($BR41:DR41) -> 0 | L41: 216.99 | M41: =SUM(N41-O41) -> 1 | N41: 8 | O41: 7 | P41: 0 | Q41: 0 | V41: 199.99 | AS41: 259.99 | AX41: 220.99 | BA41: 216.99
A42: 0 | B42: 14 | C42: 0 | D42: =D41 -> 6 | E42: =IF(OR(O42<(N42*0.51),H42=Q42,H42=P42),E41+1,E41) -> 9 | G42: Artikel 41 | H42: =MIN($R42:BQ42) -> 89.99 | I42: =MAX($R42:BQ42) -> 94.99 | J42: =MIN($BR42:DR42) -> 0 | K42: =MAX($BR42:DR42) -> 0 | L42: 89.99 | M42: 0 | N42: 4 | O42: 4 | P42: 0 | Q42: 0 | AR42: 94.99 | BB42: 89.99
A43: 0 | B43: 14 | C43: 0 | D43: =D42 -> 6 | E43: 9 | G43: Artikel 42 | H43: =MIN($R43:BQ43) -> 71.49 | I43: =MAX($R43:BQ43) -> 89.99 | J43: =MIN($BR43:DR43) -> 0 | K43: =MAX($BR43:DR43) -> 0 | L43: 71.49 | M43: -4 | N43: 4 | O43: 8 | P43: 0 | Q43: 0 | AR43: 89.99 | BA43: 71.49
A44: 0 | B44: 14 | C44: =C43 -> 0 | D44: 6 | E44: 9 | G44: Artikel 43 | H44: =MIN($R44:BQ44) -> 299.99 | I44: =MAX($R44:BQ44) -> 449.99 | J44: =MIN($BR44:DR44) -> 0 | K44: =MAX($BR44:DR44) -> 0 | L44: 399.99 | M44: 0 | N44: 6 | O44: 6 | P44: 0 | Q44: 0 | V44: 359.99 | AD44: 399.99 | AH44: 299.99 | AQ44: 449.99 | AR44: 399.99 | BA44: 399.99
A45: =A44 -> 0 | B45: 14 | C45: 0 | D45: 6 | E45: 9 | G45: Artikel 44 | H45: =MIN($R45:BQ45) -> 0 | I45: =MAX($R45:BQ45) -> 0 | J45: =MIN($BR45:DR45) -> 0 | K45: =MAX($BR45:DR45) -> 0 | L45: =IFERROR(LOOKUP(100000,R45:DS45),0) -> 0 | M45: =SUM(N45-O45) -> 2 | N45: 2 | P45: 0 | Q45: 0
A46: =A45 -> 0 | B46: =IF(O46<N46,B45+1,B45) -> 15 | C46: =C45 -> 0 | D46: 6 | E46: =IF(OR(O46<(N46*0.51),H46=Q46,H46=P46),E45+1,E45) -> 9 | G46: Artikel 45 | H46: =MIN($R46:BQ46) -> 24.99 | I46: =MAX($R46:BQ46) -> 26.99 | J46: =MIN($BR46:DR46) -> 0 | K46: =MAX($BR46:DR46) -> 0 | L46: =IFERROR(LOOKUP(100000,R46:DS46),0) -> 26.99 | M46: =SUM(N46-O46) -> 1 | N46: 10 | O46: 9 | P46: 0 | Q46: 0 | AG46: 24.99 | BF46: 26.99
A47: 1 | B47: =B46 -> 15 | C47: =IF(O47<(N47*0.51),C46+1,C46) -> 0 | D47: =D46 -> 6 | E47: =E46 -> 9 | G47: Artikel 46 | H47: =MIN($R47:BQ47) -> 330 | I47: =MAX($R47:BQ47) -> 350 | J47: =MIN($BR47:DR47) -> 0 | K47: =MAX($BR47:DR47) -> 0 | L47: 350 | M47: 3 | N47: 10 | O47: 7 | P47: 0 | Q47: 0 | R47: 330 | BG47: 350
A48: 1 | B48: 15 | C48: =C47 -> 0 | D48: =D47 -> 6 | E48: 9 | G48: Artikel 47 | H48: =MIN($R48:BQ48) -> 239.99 | I48: =MAX($R48:BQ48) -> 271.99 | J48: =MIN($BR48:DR48) -> 0 | K48: =MAX($BR48:DR48) -> 0 | L48: 239.99 | M48: 0 | N48: 10 | O48: 10 | P48: 0 | Q48: 0 | Y48: 249.99 | AE48: 239.99 | AU48: 271.99 | AV48: 239.99 | BH48: 239.99
A49: 1 | B49: 15 | C49: =C48 -> 0 | D49: 6 | E49: 9 | G49: Artikel 48 | H49: =MIN($R49:BQ49) -> 84.99 | I49: =MAX($R49:BQ49) -> 108.99 | J49: =MIN($BR49:DR49) -> 0 | K49: =MAX($BR49:DR49) -> 0 | L49: 84.99 | M49: -2 | N49: 5 | O49: 7 | P49: 0 | Q49: 0 | AQ49: 108.99 | BA49: 84.99 | BL49: 84.99 | BN49: 84.99
A50: 1 | B50: 15 | C50: 0 | D50: 6 | E50: =IF(OR(H50=Q50,H50=P50),E49+1,E49) -> 9 | G50: Artikel 49 | H50: =MIN($R50:BQ50) -> 119.99 | I50: =MAX($R50:BQ50) -> 159.99 | J50: =MIN($BR50:DR50) -> 0 | K50: =MAX($BR50:DR50) -> 0 | L50: 119.99 | M50: 2 | N50: 2 | P50: 0 | Q50: 0 | AT50: 159.99 | AU50: 124.99 | BH50: 119.99
A51: 1 | B51: 15 | C51: 0 | D51: 6 | E51: =IF(OR(H51=Q51,H51=P51),E50+1,E50) -> 10 | G51: Artikel 50 | H51: =MIN($R51:BQ51) -> 239.99 | I51: =MAX($R51:BQ51) -> 299.99 | J51: =MIN($BR51:DR51) -> 0 | K51: =MAX($BR51:DR51) -> 0 | L51: 239.99 | M51: 1 | N51: 1 | P51: 239.99 | Q51: 0 | AK51: 299.99 | AT51: 299.99 | AW51: 299.99 | AX51: 239.99 | BL51: 299.99 | BP51: 239.99
A52: 1 | B52: 15 | C52: 0 | D52: 6 | E52: =IF(OR(O52<(N52*0.51),H52=Q52,H52=P52),E51+1,E51) -> 10 | G52: Artikel 51 | H52: =MIN($R52:BQ52) -> 149.99 | I52: =MAX($R52:BQ52) -> 421.99 | J52: =MIN($BR52:DR52) -> 0 | K52: =MAX($BR52:DR52) -> 0 | L52: 421.99 | M52: 0 | N52: 1 | O52: 1 | P52: 0 | Q52: 0 | AR52: 179.99 | AZ52: 399.99 | BB52: 149.99 | BO52: 421.99
A53: 1 | B53: =B52 -> 15 | C53: =IF(O53<(N53*0.51),C52+1,C52) -> 0 | D53: 6 | E53: =E52 -> 10 | G53: Artikel 52 | H53: =MIN($R53:BQ53) -> 100 | I53: =MAX($R53:BQ53) -> 200 | J53: =MIN($BR53:DR53) -> 0 | K53: =MAX($BR53:DR53) -> 0 | L53: 150 | M53: -4 | N53: 8 | O53: 12 | P53: 0 | Q53: 0 | AD53: 100 | AR53: 200 | AX53: 150
A54: 1 | B54: 15 | C54: 0 | D54: 6 | E54: =IF(OR(O54<(N54*0.51),H54=Q54,H54=P54),E53+1,E53) -> 10 | G54: Artikel 53 | H54: =MIN($R54:BQ54) -> 27.99 | I54: =MAX($R54:BQ54) -> 49.99 | J54: =MIN($BR54:DR54) -> 0 | K54: =MAX($BR54:DR54) -> 0 | L54: 27.99 | M54: 0 | N54: 5 | O54: 5 | P54: 0 | Q54: 0 | AM54: 49.99 | AO54: 42.49 | BL54: 27.99
A55: 1 | B55: 15 | C55: 0 | D55: 6 | E55: 10 | G55: Artikel 54 | H55: =MIN($R55:BQ55) -> 58.49 | I55: =MAX($R55:BQ55) -> 89.99 | J55: =MIN($BR55:DR55) -> 0 | K55: =MAX($BR55:DR55) -> 0 | L55: 58.49 | M55: 0 | N55: 2 | O55: 2 | P55: 0 | Q55: 0 | AM55: 89.99 | BA55: 58.49
A56: 1 | B56: =IF((O56+O57)<(N56+N57),B55+1,B55) -> 15 | C56: 0 | D56: 6 | E56: =IF(OR(((O56+O57)<((N56+N57)*0.51)),H56=Q56,H56=P56),E55+1,E55) -> 10 | G56: Artikel 55 | H56: =MIN($R56:BQ56) -> 139.99 | I56: =MAX($R56:BQ56) -> 189.99 | J56: =MIN($BR56:DR56) -> 0 | K56: =MAX($BR56:DR56) -> 0 | L56: 139.99 | M56: =SUM((N56+N57)-(O56+O57)) -> 0 | N56: 1 | O56: 1 | P56: 0 | Q56: 0 | AS56: 189.99 | BF56: 159.99 | BK56: 166.49 | BN56: 139.99
A57: 1 | B57: =IF((O56+O57)<(N56+N57),B56+1,B56) -> 15 | C57: 0 | D57: 6 | E57: =IF(OR(((O56+O57)<((N56+N57)*0.51)),H57=Q57,H57=P57),E56+1,E56) -> 10 | G57: Artikel 56 | H57: =MIN($R57:BQ57) -> 179.99 | I57: =MAX($R57:BQ57) -> 219.99 | J57: =MIN($BR57:DR57) -> 0 | K57: =MAX($BR57:DR57) -> 0 | L57: 192.49 | M57: =SUM((N56+N57)-(O56+O57)) -> 0 | N57: 1 | O57: 1 | P57: 0 | Q57: 0 | AA57: 209.99 | AK57: 179.99 | AQ57: 184.61 | AU57: 192.49 | AX57: 219.99 | BD57: 192.49 | BI57: 192.42 | BK57: 192.49 | BM57: 192.49
A58: 1 | B58: =B57 -> 15 | C58: =IF(O58<(N58*0.51),C57+1,C57) -> 0 | D58: =D57 -> 6 | E58: =E57 -> 10 | G58: Artikel 57 | H58: =MIN($R58:BQ58) -> 210 | I58: =MAX($R58:BQ58) -> 210 | J58: =MIN($BR58:DR58) -> 0 | K58: =MAX($BR58:DR58) -> 0 | L58: 210 | M58: =SUM(N58-O58) -> -1 | N58: 1 | O58: 2 | P58: 0 | Q58: 0 | BI58: 210
A59: 1 | B59: 15 | C59: =C58 -> 0 | D59: =D58 -> 6 | E59: =IF(OR(O59<(N59*0.51),H59=Q59,H59=P59),E58+1,E58) -> 10 | G59: Artikel 58 | H59: =MIN($R59:BQ59) -> 109.99 | I59: =MAX($R59:BQ59) -> 134.99 | J59: =MIN($BR59:DR59) -> 0 | K59: =MAX($BR59:DR59) -> 0 | L59: 134.99 | M59: =SUM(N59-O59) -> -3 | N59: 1 | O59: 4 | P59: 0 | Q59: 0 | AR59: 109.99 | BK59: 134.99
A60: 1 | B60: 15 | C60: 0 | D60: 6 | E60: 10 | G60: Artikel 59 | H60: =MIN($R60:BQ60) -> 64.99 | I60: =MAX($R60:BQ60) -> 86.99 | J60: =MIN($BR60:DR60) -> 0 | K60: =MAX($BR60:DR60) -> 0 | L60: 66.94 | M60: =SUM(N60-O60) -> 0 | N60: 8 | O60: 8 | P60: 0 | Q60: 0 | AK60: 64.99 | AS60: 86.99 | AT60: 86.99 | BA60: 66.94
A61: 1 | B61: =IF((O61+O62)<(N61+N62),B60+1,B60) -> 15 | C61: 0 | D61: 6 | E61: =IF(OR(((O61+O62)<((N61+N62)*0.51)),H61=Q61,H61=P61),E60+1,E60) -> 10 | G61: Artikel 60 | H61: =MIN($R61:BQ61) -> 149.99 | I61: =MAX($R61:BQ61) -> 169.99 | J61: =MIN($BR61:DR61) -> 0 | K61: =MAX($BR61:DR61) -> 0 | L61: 158.99 | M61: =SUM((N61+N62)-(O61+O62)) -> 0 | N61: 6 | O61: 4 | P61: 0 | Q61: 0 | U61: 169.99 | Z61: 164.99 | AH61: 149.99 | AM61: 149.99 | AO61: 149.99 | BC61: 158.99
A62: 1 | B62: =IF((O61+O62)<(N61+N62),B61+1,B61) -> 15 | C62: 0 | D62: 6 | E62: =IF(OR(((O61+O62)<((N61+N62)*0.51)),H62=Q62,H62=P62),E61+1,E61) -> 10 | G62: Artikel 61 | H62: =MIN($R62:BQ62) -> 178.87 | I62: =MAX($R62:BQ62) -> 239.99 | J62: =MIN($BR62:DR62) -> 0 | K62: =MAX($BR62:DR62) -> 0 | L62: 192.49 | M62: =SUM((N61+N62)-(O61+O62)) -> 0 | N62: 2 | O62: 4 | P62: 0 | Q62: 0 | U62: 209.99 | AC62: 209.99 | AK62: 179.99 | AW62: 239.99 | BA62: 209.99 | BD62: 178.87 | BJ62: 178.87 | BM62: 192.49
A63: 1 | B63: =B62 -> 15 | C63: 0 | D63: =IF(OR(M63>0,H63=P63),D62+1,D62) -> 7 | E63: =IF(OR(H63=Q63,H63=P63),E62+1,E62) -> 10 | G63: Artikel 62 | H63: =MIN($R63:BQ63) -> 54.99 | I63: =MAX($R63:BQ63) -> 94.99 | J63: =MIN($BR63:DR63) -> 0 | K63: =MAX($BR63:DR63) -> 0 | L63: 94.99 | M63: =SUM(N63-O63) -> 1 | N63: 1 | P63: 0 | Q63: 0 | R63: 79.99 | AC63: 54.99 | AE63: 79.99 | AH63: 59.99 | AK63: 59.99 | AQ63: 54.99 | BJ63: 84.99 | BO63: 94.99
A64: 1 | B64: =B63 -> 15 | C64: 0 | D64: =IF(OR(M64>0,H64=P64),D63+1,D63) -> 8 | E64: =IF(OR(H64=Q64,H64=P64),E63+1,E63) -> 10 | G64: Artikel 63 | H64: =MIN($R64:BQ64) -> 59.99 | I64: =MAX($R64:BQ64) -> 259.99 | J64: =MIN($BR64:DR64) -> 0 | K64: =MAX($BR64:DR64) -> 0 | L64: 140.99 | M64: =SUM(N64-O64) -> 2 | N64: 2 | P64: 0 | Q64: 0 | AF64: 259.99 | AI64: 139.99 | AL64: 79.99 | AO64: 89.99 | AP64: 69.99 | AQ64: 69.99 | AS64: 59.99 | BK64: 140.99
A65: 1 | B65: =B64 -> 15 | C65: 0 | D65: 8 | E65: 10 | G65: Artikel 64 | H65: =MIN($R65:BQ65) -> 0 | I65: =MAX($R65:BQ65) -> 0 | J65: =MIN($BR65:DR65) -> 0 | K65: =MAX($BR65:DR65) -> 0 | L65: =IFERROR(LOOKUP(100000,R65:DS65),0) -> 0 | M65: =SUM(N65-O65) -> 2 | N65: 3 | O65: 1 | P65: 0 | Q65: 0
A66: 1 | B66: =IF(O66<N66,B65+1,B65) -> 15 | C66: =C65 -> 0 | D66: =D65 -> 8 | E66: =IF(OR(O66<(N66*0.51),H66=Q66,H66=P66),E65+1,E65) -> 10 | G66: Artikel 65 | H66: =MIN($R66:BQ66) -> 49.99 | I66: =MAX($R66:BQ66) -> 49.99 | J66: =MIN($BR66:DR66) -> 0 | K66: =MAX($BR66:DR66) -> 0 | L66: 49.99 | M66: =SUM(N66-O66) -> 0 | N66: 25 | O66: 25 | P66: =INDEX(R66:DS66,MATCH(P$1,R$1:DS$1,0)) -> 0 | Q66: =IFERROR(INDEX(R66:DS66,MATCH(Q$1,R$1:DS$1,0)),0) -> 0 | AE66: 49.99
A67: 1 | B67: =IF((O67+O68+O69+O70+O71+O72)<4,B66+1,B66) -> 15 | C67: =C66 -> 0 | D67: =D66 -> 8 | E67: =IF(OR((O67+O68+O69+O70+O71+O72)<4,H67=Q67,H67=P67),E66+1,E66) -> 10 | G67: Artikel 66 | H67: =MIN($R67:BQ67) -> 189.99 | I67: =MAX($R67:BQ67) -> 309.99 | J67: =MIN($BR67:DR67) -> 0 | K67: =MAX($BR67:DR67) -> 0 | L67: =IFERROR(LOOKUP(100000,R67:DS67),0) -> 309.99 | M67: =SUM((N67+N68+N69+N70+N71+N72)-(O67+O68+O69+O70+O71+O72)) -> 10.25 | N67: 5 | P67: 0 | Q67: 0 | AB67: 189.99 | AK67: 199.99 | AQ67: 249.99 | AU67: 309.99
A68: 1 | B68: =IF((O67+O68+O69+O70+O71+O72)<4,B67+1,B67) -> 15 | C68: =C67 -> 0 | D68: 8 | E68: =IF(OR((O67+O68+O69+O70+O71+O72)<4,H68=Q68,H68=P68),E67+1,E67) -> 10 | G68: Artikel 67 | H68: =MIN($R68:BQ68) -> 234.99 | I68: =MAX($R68:BQ68) -> 234.99 | J68: =MIN($BR68:DR68) -> 0 | K68: =MAX($BR68:DR68) -> 0 | L68: 234.99 | M68: =SUM((N67+N68+N69+N70+N71+N72)-(O67+O68+O69+O70+O71+O72)) -> 10.25 | N68: 5 | P68: 0 | Q68: 0 | AA68: 234.99
A69: 1 | B69: =IF((O67+O68+O69+O70+O71+O72)<4,B68+1,B68) -> 15 | C69: =C68 -> 0 | D69: =D68 -> 8 | E69: =IF(OR((O67+O68+O69+O70+O71+O72)<4,H69=Q69,H69=P69),E68+1,E68) -> 10 | G69: Artikel 68 | H69: =MIN($R69:BQ69) -> 269.99 | I69: =MAX($R69:BQ69) -> 279.99 | J69: =MIN($BR69:DR69) -> 0 | K69: =MAX($BR69:DR69) -> 0 | L69: 269.99 | M69: =SUM((N67+N68+N69+N70+N71+N72)-(O67+O68+O69+O70+O71+O72))-3 -> 7.25 | N69: 2 | P69: 0 | Q69: 0 | AA69: 279.99 | AG69: 279.99 | AS69: 269.99 | AW69: 269.99 | BA69: 269.99
A70: 1 | B70: =IF((O67+O68+O69+O70+O71+O72)<4,B69+1,B69) -> 15 | C70: =C69 -> 0 | D70: 8 | E70: =IF(OR((O67+O68+O69+O70+O71+O72)<4,H70=Q70,H70=P70),E69+1,E69) -> 10 | G70: Artikel 69 | H70: =MIN($R70:BQ70) -> 439.99 | I70: =MAX($R70:BQ70) -> 439.99 | J70: =MIN($BR70:DR70) -> 0 | K70: =MAX($BR70:DR70) -> 0 | L70: 439.99 | M70: =SUM((N67+N68+N69+N70+N71+N72)-(O67+O68+O69+O70+O71+O72))-6 -> 4.25 | N70: 2 | O70: 9 | P70: 0 | Q70: 0 | T70: 439.99
A71: 1 | B71: =IF((O67+O68+O69+O70+O71+O72)<4,B70+1,B70) -> 15 | C71: =C70 -> 0 | D71: 8 | E71: =IF(OR((O67+O68+O69+O70+O71+O72)<4,H71=Q71,H71=P71),E70+1,E70) -> 10 | G71: Artikel 70 | H71: =MIN($R71:BQ71) -> 769.99 | I71: =MAX($R71:BQ71) -> 769.99 | J71: =MIN($BR71:DR71) -> 0 | K71: =MAX($BR71:DR71) -> 0 | L71: 769.99 | M71: =SUM((N67+N68+N69+N70+N71+N72)-(O67+O68+O69+O70+O71+O72))-9 -> 1.25 | N71: 3 | O71: =O23/4 -> 0.75 | P71: 0 | Q71: 0 | AP71: 769.99
A72: 1 | B72: =IF((O67+O68+O69+O70+O71+O72)<4,B71+1,B71) -> 15 | C72: 0 | D72: 8 | E72: =IF(OR((O67+O68+O69+O70+O71+O72)<4,H72=Q72,H72=P72),E71+1,E71) -> 10 | G72: Artikel 71 | H72: =MIN($R72:BQ72) -> 589.99 | I72: =MAX($R72:BQ72) -> 629.99 | J72: =MIN($BR72:DR72) -> 0 | K72: =MAX($BR72:DR72) -> 0 | L72: =IFERROR(LOOKUP(100000,R72:DS72),0) -> 629.99 | M72: =SUM((N67+N68+N69+N70+N71+N72)-(O67+O68+O69+O70+O71+O72))-9 -> 1.25 | N72: 3 | P72: 0 | Q72: 0 | AV72: 589.99 | BE72: 589.99 | BI72: 589.99 | BM72: 629.99
A73: 1 | B73: =B72 -> 15 | C73: =IF(O73<(N73*0.51),C72+1,C72) -> 0 | D73: 8 | E73: =E72 -> 10 | G73: Artikel 72 | H73: =MIN($R73:BQ73) -> 0 | I73: =MAX($R73:BQ73) -> 0 | J73: =MIN($BR73:DR73) -> 0 | K73: =MAX($BR73:DR73) -> 0 | L73: 0 | M73: =SUM(N73-O73) -> 0 | N73: 2 | O73: 2 | P73: 0 | Q73: 0
A74: 1 | B74: =IF(O74<N74,B73+1,B73) -> 15 | C74: 0 | D74: 8 | E74: =IF(OR(O74<(N74*0.51),H74=Q74,H74=P74),E73+1,E73) -> 10 | G74: Artikel 73 | H74: =MIN($R74:BQ74) -> 314.99 | I74: =MAX($R74:BQ74) -> 399.99 | J74: =MIN($BR74:DR74) -> 0 | K74: =MAX($BR74:DR74) -> 0 | L74: 399.99 | M74: -2 | N74: 4 | O74: 6 | P74: 0 | Q74: 0 | Z74: 314.99 | AB74: 339.99 | AF74: 339.99 | AI74: 339.99 | AS74: 369.99 | BD74: 399.99 | BI74: 399.99 | BO74: 399.99
A75: 1 | B75: =B74 -> 15 | C75: =IF(O75<(N75*0.51),C74+1,C74) -> 0 | D75: 8 | E75: =E74 -> 10 | G75: Artikel 74 | H75: =MIN($R75:BQ75) -> 200 | I75: =MAX($R75:BQ75) -> 200 | J75: =MIN($BR75:DR75) -> 0 | K75: =MAX($BR75:DR75) -> 0 | L75: 200 | M75: 0 | N75: 1 | O75: 1 | P75: 0 | Q75: 0 | AV75: 200
A76: =A75 -> 1 | B76: 15 | C76: =C75 -> 0 | D76: 8 | E76: =IF(OR(O76<(N76*0.51),H76=Q76,H76=P76),E75+1,E75) -> 10 | G76: Artikel 75 | H76: =MIN($R76:BQ76) -> 469.99 | I76: =MAX($R76:BQ76) -> 499.16 | J76: =MIN($BR76:DR76) -> 0 | K76: =MAX($BR76:DR76) -> 0 | L76: 498.99 | M76: =IF(O76<1,12,IF(O76<4,11,IF(O76<7,10,IF(O76<10,9,IF(O76<13,8,IF(O76<16,7,IF(O76<19,6,IF(O76<22,5,IF(O76<25,4,IF(O76<28,3,IF(O76<31,2,IF(O76<34,1,0)))))))))))) -> 0 | N76: 33 | O76: 34 | P76: 0 | Q76: 0 | X76: 469.99 | AK76: 499.16 | AQ76: 499.16 | BI76: 498.99 | BN76: 498.99
A77: 1 | B77: 15 | C77: =C76 -> 0 | D77: 8 | E77: 10 | G77: Artikel 76 | H77: =MIN($R77:BQ77) -> 119.99 | I77: =MAX($R77:BQ77) -> 159.99 | J77: =MIN($BR77:DR77) -> 0 | K77: =MAX($BR77:DR77) -> 0 | L77: 139.99 | M77: 0 | N77: 9 | O77: 9 | P77: 139.99 | Q77: 0 | U77: 139.99 | W77: 119.99 | Z77: 139.99 | AN77: 139.99 | AP77: 159.99 | AS77: 119.99 | AY77: 159.99 | AZ77: 139.99 | BI77: 159.99 | BJ77: 134.99 | BO77: 129.99 | BP77: 139.99
A78: 1 | B78: =B77 -> 15 | C78: 0 | D78: =IF(OR(M78>0,H78=P78),D77+1,D77) -> 9 | E78: =IF(OR(H78=Q78,H78=P78),E77+1,E77) -> 10 | G78: Artikel 77 | H78: =MIN($R78:BQ78) -> 79.99 | I78: =MAX($R78:BQ78) -> 199.99 | J78: =MIN($BR78:DR78) -> 0 | K78: =MAX($BR78:DR78) -> 0 | L78: 79.99 | M78: 1 | N78: 1 | P78: 0 | Q78: 0 | AO78: 199.99 | AP78: 159.99 | AQ78: 149.99 | AR78: 99.99 | AW78: 79.99
A79: 1 | B79: =B78 -> 15 | C79: 0 | D79: =D78 -> 9 | E79: =IF(OR((O80+O81)<((N80+N81)*0.51),H79=Q79,H79=P79),E78+1,E78) -> 10 | G79: Artikel 78 | H79: =MIN($R79:BQ79) -> 178.99 | I79: =MAX($R79:BQ79) -> 219.99 | J79: =MIN($BR79:DR79) -> 0 | K79: =MAX($BR79:DR79) -> 0 | L79: 199.99 | M79: =SUM((N80+N81)-(O80+O81))/2.5 -> 0.8 | N79: 4 | P79: 0 | Q79: 0 | U79: 199.99 | Z79: 199.99 | AD79: 189.99 | AH79: 178.99 | AL79: 199.99 | AP79: 189.99 | AT79: 199.99 | AY79: 198.99 | BA79: 219.99 | BC79: 219.99 | BE79: 219.99 | BH79: 209.99 | BM79: 199.99
A80: 1 | B80: =B79 -> 15 | C80: 0 | D80: 9 | E80: =E79 -> 10 | G80: Artikel 79 | H80: =MIN($R80:BQ80) -> 0 | I80: =MAX($R80:BQ80) -> 0 | J80: =MIN($BR80:DR80) -> 0 | K80: =MAX($BR80:DR80) -> 0 | L80: =IFERROR(LOOKUP(100000,R80:DS80),0) -> 0 | M80: =SUM(N80-O80) -> 2 | N80: 8 | O80: 6 | P80: 0 | Q80: 0
A81: 1 | B81: =B80 -> 15 | C81: 0 | D81: 9 | E81: =E80 -> 10 | G81: Artikel 80 | H81: =MIN($R81:BQ81) -> 0 | I81: =MAX($R81:BQ81) -> 0 | J81: =MIN($BR81:DR81) -> 0 | K81: =MAX($BR81:DR81) -> 0 | L81: 0 | M81: 0 | N81: 4 | O81: 4 | P81: 0 | Q81: 0
A82: =IF(O82<N82,A81+1,A81) -> 1 | B82: 15 | C82: =IF(O82<(N82*0.51),C81+1,C81) -> 0 | D82: 9 | E82: 10 | G82: Artikel 81 | H82: =MIN($R82:BQ82) -> 130 | I82: =MAX($R82:BQ82) -> 130 | J82: =MIN($BR82:DR82) -> 0 | K82: =MAX($BR82:DR82) -> 0 | L82: 130 | M82: 0 | N82: 15 | O82: 15 | P82: 0 | Q82: 0 | R82: 130
A83: 1 | B83: =IF(O83<N83,B82+1,B82) -> 16 | C83: =C82 -> 0 | D83: 9 | E83: =IF(OR(O83<(N83*0.51),H83=Q83,H83=P83),E82+1,E82) -> 10 | G83: Artikel 82 | H83: =MIN($R83:BQ83) -> 149.99 | I83: =MAX($R83:BQ83) -> 165.74 | J83: =MIN($BR83:DR83) -> 0 | K83: =MAX($BR83:DR83) -> 0 | L83: 165.74 | M83: 1 | N83: 12 | O83: 11 | P83: 0 | Q83: 0 | W83: 155.99 | Z83: 154.99 | AF83: 149.99 | AJ83: 154.99 | AQ83: 149.99 | AS83: 149.99 | AY83: 154.99 | BA83: 165.74 | BH83: 154.99 | BL83: 154.99 | BM83: 155.99 | BN83: 165.74
A84: =IF(O84<N84,A83+1,A83) -> 1 | B84: =B83 -> 16 | C84: =IF(O84<(N84*0.51),C83+1,C83) -> 0 | D84: =D83 -> 9 | E84: =E83 -> 10 | G84: Artikel 83 | H84: =MIN($R84:BQ84) -> 179.99 | I84: =MAX($R84:BQ84) -> 179.99 | J84: =MIN($BR84:DR84) -> 0 | K84: =MAX($BR84:DR84) -> 0 | L84: 179.99 | M84: 0 | N84: 10 | O84: 10 | P84: 0 | Q84: 0 | R84: 179.99
A85: 1 | B85: =B84 -> 16 | C85: =C84 -> 0 | D85: 9 | E85: 10 | G85: Artikel 84 | H85: =MIN($R85:BQ85) -> 24.99 | I85: =MAX($R85:BQ85) -> 24.99 | J85: =MIN($BR85:DR85) -> 0 | K85: =MAX($BR85:DR85) -> 0 | L85: 24.99 | M85: 1 | N85: 1 | P85: 0 | Q85: 0 | AW85: 24.99
A86: 1 | B86: =B85 -> 16 | C86: 0 | D86: 9 | E86: =IF(OR(H86=Q86,H86=P86),E85+1,E85) -> 10 | G86: Artikel 85 | H86: =MIN($R86:BQ86) -> 89.49 | I86: =MAX($R86:BQ86) -> 149.99 | J86: =MIN($BR86:DR86) -> 0 | K86: =MAX($BR86:DR86) -> 0 | L86: 89.49 | M86: 1 | N86: 1 | P86: 0 | Q86: 0 | BH86: 149.99 | BJ86: 89.49
A87: 1 | B87: =IF((O87+O88+O89+O90)<6,B86+1,B86) -> 17 | C87: 0 | D87: 9 | E87: =IF(OR((O87+O88+O89+O90)<2),E86+1,E86) -> 11 | G87: Artikel 86 | H87: =MIN($R87:BQ87) -> 89.99 | I87: =MAX($R87:BQ87) -> 119.99 | J87: =MIN($BR87:DR87) -> 0 | K87: =MAX($BR87:DR87) -> 0 | L87: 94.99 | M87: =SUM(N87-(O87+O88+O89+O90)) -> 12 | N87: 12 | P87: 0 | Q87: 0 | R87: 94.99 | W87: 119.99 | AB87: 89.99 | AM87: 89.99 | BG87: 94.99
A88: 1 | B88: =IF((O87+O88+O89+O90)<6,B87+1,B87) -> 18 | C88: 0 | D88: 9 | E88: =IF(OR((O87+O88+O89+O90)<2),E87+1,E87) -> 12 | G88: Artikel 87 | H88: =MIN($R88:BQ88) -> 117.99 | I88: =MAX($R88:BQ88) -> 179.99 | J88: =MIN($BR88:DR88) -> 0 | K88: =MAX($BR88:DR88) -> 0 | L88: 139.99 | M88: =SUM(N88-(O87+O88+O89+O90)) -> 8 | N88: 8 | P88: 0 | Q88: 0 | S88: 179.99 | AF88: 151.37 | AI88: 119.99 | AP88: 129.99 | BD88: 117.99 | BH88: 139.99 | BK88: 139.99
A89: 1 | B89: =IF((O87+O88+O89+O90)<6,B88+1,B88) -> 19 | C89: 0 | D89: 9 | E89: =IF(OR((O87+O88+O89+O90)<2),E88+1,E88) -> 13 | G89: Artikel 88 | H89: =MIN($R89:BQ89) -> 229.99 | I89: =MAX($R89:BQ89) -> 229.99 | J89: =MIN($BR89:DR89) -> 0 | K89: =MAX($BR89:DR89) -> 0 | L89: =IFERROR(LOOKUP(100000,R89:DS89),0) -> 229.99 | M89: =SUM(N89-(O87+O88+O89+O90)) -> 7 | N89: 7 | P89: 0 | Q89: 0 | BB89: 229.99
A90: 1 | B90: =IF((O87+O88+O89+O90)<6,B89+1,B89) -> 20 | C90: 0 | D90: 9 | E90: =IF(OR((O87+O88+O89+O90)<2),E89+1,E89) -> 14 | G90: Artikel 89 | H90: =MIN($R90:BQ90) -> 186.65 | I90: =MAX($R90:BQ90) -> 186.66 | J90: =MIN($BR90:DR90) -> 0 | K90: =MAX($BR90:DR90) -> 0 | L90: =IFERROR(LOOKUP(100000,R90:DS90),0) -> 186.66 | M90: =SUM(N90-(O87+O88+O89+O90)) -> 6 | N90: 6 | P90: 0 | Q90: 0 | BC90: 186.65 | BF90: 186.66 | BI90: 186.66 | BO90: 186.66
A91: =IF(O91<N91,A90+1,A90) -> 1 | B91: =B90 -> 20 | C91: =IF(O91<(N91*0.51),C90+1,C90) -> 0 | D91: 9 | E91: =E90 -> 14 | G91: Artikel 90 | H91: =MIN($R91:BQ91) -> 1450 | I91: =MAX($R91:BQ91) -> 1999.99 | J91: =MIN($BR91:DR91) -> 0 | K91: =MAX($BR91:DR91) -> 0 | L91: 1450 | M91: =SUM(N91-O91) -> 0 | N91: 3 | O91: 3 | P91: 0 | Q91: 0 | Z91: 1699.99 | AP91: 1899.99 | AQ91: 1999.99 | AR91: 1699.99 | AT91: 1450
A92: 1 | B92: =IF(O92<N92,B91+1,B91) -> 20 | C92: =C91 -> 0 | D92: =IF(OR(M92>0,H92=P92),D91+1,D91) -> 9 | E92: =IF(OR(O92<(N92*0.51),H92=Q92,H92=P92),E91+1,E91) -> 14 | G92: Artikel 91 | H92: =MIN($R92:BQ92) -> 44.99 | I92: =MAX($R92:BQ92) -> 99.99 | J92: =MIN($BR92:DR92) -> 0 | K92: =MAX($BR92:DR92) -> 0 | L92: 69.99 | M92: =SUM(N92-O92) -> 0 | N92: 5 | O92: 5 | P92: 0 | Q92: 0 | R92: 84.99 | W92: 59.99 | Y92: 59.99 | AB92: 89.99 | AC92: 99.99 | AE92: 64.99 | AF92: 99.99 | AI92: 59.99 | AP92: 99.99 | AQ92: 89.99 | AS92: 79.99 | AV92: 69.99 | AY92: 64.99 | AZ92: 64.99 | BB92: 59.99 | BD92: 79.99 | BF92: 49.99 | BH92: 44.99 | BJ92: 44.99 | BL92: 69.99
A93: 1 | B93: 20 | C93: =C92 -> 0 | D93: 9 | E93: 14 | G93: Artikel 92 | H93: =MIN($R93:BQ93) -> 369.99 | I93: =MAX($R93:BQ93) -> 475.99 | J93: =MIN($BR93:DR93) -> 0 | K93: =MAX($BR93:DR93) -> 0 | L93: 419.99 | M93: =SUM(N93-O93) -> 0 | N93: 6 | O93: 6 | P93: 0 | Q93: 0 | U93: 399.99 | AC93: 369.99 | AH93: 379.99 | AS93: 419.99 | AT93: 475.99 | BE93: 419.99
A94: =IF(O94<N94,A93+1,A93) -> 1 | B94: =B93 -> 20 | C94: =IF(O94<(N94*0.51),C93+1,C93) -> 0 | D94: =D93 -> 9 | E94: =E93 -> 14 | G94: Artikel 93 | H94: =MIN($R94:BQ94) -> 350 | I94: =MAX($R94:BQ94) -> 350 | J94: =MIN($BR94:DR94) -> 0 | K94: =MAX($BR94:DR94) -> 0 | L94: 350 | M94: =SUM(N94-O94) -> 0 | N94: 2 | O94: 2 | P94: 0 | Q94: 0 | R94: 350
A95: 1 | B95: =IF(O95<N95,B94+1,B94) -> 20 | C95: =C94 -> 0 | D95: =D94 -> 9 | E95: =IF(OR(O95<(N95*0.51),H95=Q95,H95=P95),E94+1,E94) -> 14 | G95: Artikel 94 | H95: =MIN($R95:BQ95) -> 134.99 | I95: =MAX($R95:BQ95) -> 189.99 | J95: =MIN($BR95:DR95) -> 0 | K95: =MAX($BR95:DR95) -> 0 | L95: 149.99 | M95: =SUM(N95-O95) -> 0 | N95: 10 | O95: 10 | P95: 0 | Q95: 0 | AD95: 189.99 | AQ95: 151.99 | AV95: 189.99 | AY95: 134.99 | BH95: 189.99 | BI95: 149.99
A96: 1 | B96: 20 | C96: 0 | D96: 9 | E96: 14 | G96: Artikel 95 | H96: =MIN($R96:BQ96) -> 159.99 | I96: =MAX($R96:BQ96) -> 199.99 | J96: =MIN($BR96:DR96) -> 0 | K96: =MAX($BR96:DR96) -> 0 | L96: 177.99 | M96: 0 | N96: 10 | O96: 10 | P96: 0 | Q96: 0 | AE96: 169.15 | AO96: 199.99 | AU96: 159.99 | BF96: 177.99
A97: 1 | B97: =B96 -> 20 | C97: 0 | D97: =IF(OR(M97>0,H97=P97),D96+1,D96) -> 10 | E97: =E96 -> 14 | G97: Artikel 96 | H97: =MIN($R97:BQ97) -> 199.99 | I97: =MAX($R97:BQ97) -> 199.99 | J97: =MIN($BR97:DR97) -> 0 | K97: =MAX($BR97:DR97) -> 0 | L97: =IFERROR(LOOKUP(100000,R97:DS97),0) -> 199.99 | M97: =SUM(N97-O97) -> 1 | N97: 1 | P97: 0 | Q97: 0 | BL97: 199.99
A98: 1 | B98: =IF(O98<N98,B97+1,B97) -> 20 | C98: 0 | D98: =IF(OR(M98>0,H98=P98),D97+1,D97) -> 10 | E98: =IF(OR(O98<(N98*0.51),H98=Q98,H98=P98),E97+1,E97) -> 14 | G98: Artikel 97 | H98: =MIN($R98:BQ98) -> 109.99 | I98: =MAX($R98:BQ98) -> 159.99 | J98: =MIN($BR98:DR98) -> 0 | K98: =MAX($BR98:DR98) -> 0 | L98: 131.99 | M98: 0 | N98: 2 | O98: 2 | P98: 0 | Q98: 0 | S98: 109.99 | AD98: 109.99 | AR98: 159.99 | AX98: 109.99 | BI98: 131.99
A99: 1 | B99: 20 | C99: 0 | D99: 10 | E99: 14 | G99: Artikel 98 | H99: =MIN($R99:BQ99) -> 39.99 | I99: =MAX($R99:BQ99) -> 46.99 | J99: =MIN($BR99:DR99) -> 0 | K99: =MAX($BR99:DR99) -> 0 | L99: 46.99 | M99: 0 | N99: 10 | O99: 10 | P99: 0 | Q99: 0 | U99: 39.99 | AR99: 46.99
A100: 1 | B100: =B99 -> 20 | C100: 0 | D100: =IF(OR(M100>0,H100=P100),D99+1,D99) -> 11 | E100: =IF(OR(H100=Q100,H100=P100),E99+1,E99) -> 14 | G100: Artikel 99 | H100: =MIN($R100:BQ100) -> 46.99 | I100: =MAX($R100:BQ100) -> 59.99 | J100: =MIN($BR100:DR100) -> 0 | K100: =MAX($BR100:DR100) -> 0 | L100: 47.99 | M100: 3 | N100: 3 | P100: 0 | Q100: 0 | AD100: 59.99 | BJ100: 46.99 | BM100: 47.99
A101: 1 | B101: =IF(O101<N101,B100+1,B100) -> 20 | C101: 0 | D101: 11 | E101: =IF(OR(O101<(N101*0.51),H101=Q101,H101=P101),E100+1,E100) -> 14 | G101: Artikel 100 | H101: =MIN($R101:BQ101) -> 55.99 | I101: =MAX($R101:BQ101) -> 55.99 | J101: =MIN($BR101:DR101) -> 0 | K101: =MAX($BR101:DR101) -> 0 | L101: 55.99 | M101: 0 | N101: 2 | O101: 2 | P101: 0 | Q101: 0 | AR101: 55.99
A102: 1 | B102: =B101 -> 20 | C102: 0 | D102: =IF(OR(M102>0,H102=P102),D101+1,D101) -> 12 | E102: =IF(OR(H102=Q102,H102=P102),E101+1,E101) -> 14 | G102: Artikel 101 | H102: =MIN($R102:BQ102) -> 59.99 | I102: =MAX($R102:BQ102) -> 129.99 | J102: =MIN($BR102:DR102) -> 0 | K102: =MAX($BR102:DR102) -> 0 | L102: 59.99 | M102: =SUM(N102-O102) -> 2 | N102: 2 | P102: 0 | Q102: 0 | AZ102: 109.99 | BD102: 129.99 | BH102: 59.99
A103: 1 | B103: =IF(O103<N103,B102+1,B102) -> 21 | C103: =C102 -> 0 | D103: =D102 -> 12 | E103: =IF(OR(O103<(N103*0.51),H103=Q103,H103=P103),E102+1,E102) -> 14 | G103: Artikel 102 | H103: =MIN($R103:BQ103) -> 119.99 | I103: =MAX($R103:BQ103) -> 159.99 | J103: =MIN($BR103:DR103) -> 0 | K103: =MAX($BR103:DR103) -> 0 | L103: 124.99 | M103: 3 | N103: 10 | O103: 7 | P103: 0 | Q103: 0 | V103: 127.99 | AM103: 119.99 | AU103: 127.99 | AX103: 159.99 | BG103: 124.99
A104: 1 | B104: 21 | C104: =C103 -> 0 | D104: 12 | E104: 14 | G104: Artikel 103 | H104: =MIN($R104:BQ104) -> 239.99 | I104: =MAX($R104:BQ104) -> 319.98 | J104: =MIN($BR104:DR104) -> 0 | K104: =MAX($BR104:DR104) -> 0 | L104: 259.99 | M104: 0 | N104: 2 | O104: 2 | P104: 0 | Q104: 0 | W104: 279.99 | Z104: 319.98 | AE104: 239.99 | AZ104: 259.99
A105: 1 | B105: =B104 -> 21 | C105: =C104 -> 0 | D105: 12 | E105: =E104 -> 14 | G105: Artikel 104 | H105: =MIN($R105:BQ105) -> 109.99 | I105: =MAX($R105:BQ105) -> 109.99 | J105: =MIN($BR105:DR105) -> 0 | K105: =MAX($BR105:DR105) -> 0 | L105: 109.99 | M105: =SUM(N105-O105) -> 1 | N105: 1 | P105: 0 | Q105: 0 | AG105: 109.99
A106: 1 | B106: =B105 -> 21 | C106: 0 | D106: 12 | E106: =IF(OR(O106<(N106*0.51),H106=Q106,H106=P106),E105+1,E105) -> 14 | G106: Artikel 105 | H106: =MIN($R106:BQ106) -> 119.99 | I106: =MAX($R106:BQ106) -> 123.99 | J106: =MIN($BR106:DR106) -> 0 | K106: =MAX($BR106:DR106) -> 0 | L106: 123.99 | M106: -1 | N106: 2 | O106: 3 | P106: 0 | Q106: 0 | AB106: 119.99 | AQ106: 123.99
A107: 1 | B107: =B106 -> 21 | C107: 0 | D107: 12 | E107: =E106 -> 14 | G107: Artikel 106 | H107: =MIN($R107:BQ107) -> 449.99 | I107: =MAX($R107:BQ107) -> 449.99 | J107: =MIN($BR107:DR107) -> 0 | K107: =MAX($BR107:DR107) -> 0 | L107: =IFERROR(LOOKUP(100000,R107:DS107),0) -> 449.99 | M107: =SUM(N107-O107) -> 1 | N107: 1 | P107: 0 | Q107: 0 | BJ107: 449.99
A108: 1 | B108: =IF(O108<N108,B107+1,B107) -> 21 | C108: 0 | D108: 12 | E108: =IF(OR(O108<(N108*0.51),H108=Q108,H108=P108),E107+1,E107) -> 14 | G108: Artikel 107 | H108: =MIN($R108:BQ108) -> 21.67 | I108: =MAX($R108:BQ108) -> 39.99 | J108: =MIN($BR108:DR108) -> 0 | K108: =MAX($BR108:DR108) -> 0 | L108: 21.67 | M108: -5 | N108: 20 | O108: 25 | P108: 0 | Q108: 0 | AE108: 39.99 | AR108: 31.99 | AZ108: 21.67
A109: 1 | B109: =IF(O109<N109,B108+1,B108) -> 21 | C109: =C108 -> 0 | D109: 12 | E109: 14 | G109: Artikel 108 | H109: =MIN($R109:BQ109) -> 89.99 | I109: =MAX($R109:BQ109) -> 116.99 | J109: =MIN($BR109:DR109) -> 0 | K109: =MAX($BR109:DR109) -> 0 | L109: 89.99 | M109: -1 | N109: 5 | O109: 6 | P109: 0 | Q109: 0 | AG109: 89.99 | AR109: 89.99 | BJ109: 116.99 | BN109: 89.99
A110: =IF(O110<N110,A109+1,A109) -> 1 | B110: =B109 -> 21 | C110: =IF(O110<(N110*0.51),C109+1,C109) -> 0 | D110: 12 | E110: =E109 -> 14 | G110: Artikel 109 | H110: =MIN($R110:BQ110) -> 60 | I110: =MAX($R110:BQ110) -> 60 | J110: =MIN($BR110:DR110) -> 0 | K110: =MAX($BR110:DR110) -> 0 | L110: 60 | M110: 0 | N110: 12 | O110: 12 | P110: 0 | Q110: 0 | AT110: 60
A111: 1 | B111: 21 | C111: =C110 -> 0 | D111: 12 | E111: 14 | G111: Artikel 110 | H111: =MIN($R111:BQ111) -> 67.99 | I111: =MAX($R111:BQ111) -> 67.99 | J111: =MIN($BR111:DR111) -> 0 | K111: =MAX($BR111:DR111) -> 0 | L111: 67.99 | M111: 0 | N111: 50 | O111: 50 | P111: 0 | Q111: 0 | AR111: 67.99 | AY111: 67.99
A112: =A111 -> 1 | B112: =B111 -> 21 | C112: 0 | D112: =IF(OR(M112>0,H112=P112),D111+1,D111) -> 13 | E112: =IF(OR(H112=Q112,H112=P112),E111+1,E111) -> 15 | G112: Artikel 111 | H112: =MIN($R112:BQ112) -> 105.99 | I112: =MAX($R112:BQ112) -> 184.99 | J112: =MIN($BR112:DR112) -> 0 | K112: =MAX($BR112:DR112) -> 0 | L112: 105.99 | M112: 3 | N112: 3 | P112: 105.99 | Q112: 0 | V112: 139.99 | BE112: 159.99 | BH112: 124.99 | BI112: 184.99 | BP112: 105.99
A113: =A112 -> 1 | B113: =IF(O113<N113,B112+1,B112) -> 21 | C113: 0 | D113: 13 | E113: =IF(OR(O113<(N113*0.51),H113=Q113,H113=P113),E112+1,E112) -> 15 | G113: Artikel 112 | H113: =MIN($R113:BQ113) -> 119.99 | I113: =MAX($R113:BQ113) -> 159.99 | J113: =MIN($BR113:DR113) -> 0 | K113: =MAX($BR113:DR113) -> 0 | L113: 145.49 | M113: 0 | N113: 2 | O113: 2 | P113: 0 | Q113: 0 | U113: 119.99 | AE113: 149.99 | AR113: 149.99 | AS113: 119.99 | BB113: 159.99 | BN113: 145.49
A114: 1 | B114: =B113 -> 21 | C114: 0 | D114: 13 | E114: =E113 -> 15 | G114: Artikel 113 | H114: =MIN($R114:BQ114) -> 199.99 | I114: =MAX($R114:BQ114) -> 199.99 | J114: =MIN($BR114:DR114) -> 0 | K114: =MAX($BR114:DR114) -> 0 | L114: =IFERROR(LOOKUP(100000,R114:DS114),0) -> 199.99 | M114: =SUM(N114-O114) -> 2 | N114: 2 | P114: 0 | Q114: 0 | BH114: 199.99
A115: 1 | B115: 21 | C115: 0 | D115: 13 | E115: 15 | G115: Artikel 114 | H115: =MIN($R115:BQ115) -> 199.99 | I115: =MAX($R115:BQ115) -> 199.99 | J115: =MIN($BR115:DR115) -> 0 | K115: =MAX($BR115:DR115) -> 0 | L115: =IFERROR(LOOKUP(100000,R115:DS115),0) -> 199.99 | M115: =SUM(N115-O115) -> 2 | N115: 2 | P115: 0 | Q115: 0 | BH115: 199.99
A116: 1 | B116: 21 | C116: 0 | D116: 13 | E116: 15 | G116: Artikel 115 | H116: =MIN($R116:BQ116) -> 199.99 | I116: =MAX($R116:BQ116) -> 199.99 | J116: =MIN($BR116:DR116) -> 0 | K116: =MAX($BR116:DR116) -> 0 | L116: 199.99 | M116: 2 | N116: 2 | P116: 0 | Q116: 0 | BH116: 199.99
A117: 1 | B117: =IF(O117<N117,B116+1,B116) -> 21 | C117: 0 | D117: 13 | E117: =IF(OR(O117<(N117*0.51),H117=Q117,H117=P117),E116+1,E116) -> 15 | G117: Artikel 116 | H117: =MIN($R117:BQ117) -> 44.99 | I117: =MAX($R117:BQ117) -> 44.99 | J117: =MIN($BR117:DR117) -> 0 | K117: =MAX($BR117:DR117) -> 0 | L117: 44.99 | M117: 0 | N117: 20 | O117: 20 | P117: 0 | Q117: 0 | R117: 44.99 | AG117: 44.99 | AM117: 44.99
A118: 1 | B118: 22 | C118: 0 | D118: 13 | E118: 15 | G118: Artikel 117 | H118: =MIN($R118:BQ118) -> 49.99 | I118: =MAX($R118:BQ118) -> 49.99 | J118: =MIN($BR118:DR118) -> 0 | K118: =MAX($BR118:DR118) -> 0 | L118: 49.99 | M118: 2 | N118: 20 | O118: 18 | P118: 0 | Q118: 0 | U118: 49.99 | Y118: 49.99 | AY118: 49.99
A119: 1 | B119: =IF((O119+O120)<(N119+N120),B118+1,B118) -> 23 | C119: 0 | D119: 13 | E119: =IF(OR(((O119+O120)<((N119+N120)*0.51)),H119=Q119,H119=P119),E118+1,E118) -> 16 | G119: Artikel 118 | H119: =MIN($R119:BQ119) -> 74.99 | I119: =MAX($R119:BQ119) -> 89.99 | J119: =MIN($BR119:DR119) -> 0 | K119: =MAX($BR119:DR119) -> 0 | L119: 89.99 | M119: =IF((O119+O120)<3,20,(N119-O119)) -> 20 | N119: 12 | P119: 0 | Q119: 0 | AA119: 79.99 | AE119: 77.99 | AH119: 79.99 | AP119: 74.99 | AQ119: 89.99
A120: 1 | B120: =IF((O119+O120)<(N119+N120),B119+1,B119) -> 24 | C120: 0 | D120: 13 | E120: =IF(OR(((O119+O120)<((N119+N120)*0.51)),H120=Q120,H120=P120),E119+1,E119) -> 17 | G120: Artikel 119 | H120: =MIN($R120:BQ120) -> 112.48 | I120: =MAX($R120:BQ120) -> 149.99 | J120: =MIN($BR120:DR120) -> 0 | K120: =MAX($BR120:DR120) -> 0 | L120: 139.99 | M120: =IF((O119+O120)<3,16,(N120-O120)) -> 16 | N120: 8 | P120: 0 | Q120: 0 | T120: 149.99 | U120: 124.99 | Y120: 119.99 | AC120: 127.48 | AN120: 114.99 | AR120: 114.99 | AY120: 112.48 | AZ120: 114.99 | BN120: 139.99
A121: 1 | B121: =IF(O121<N121,B120+1,B120) -> 24 | C121: 0 | D121: 13 | E121: =IF(OR(O121<(N121*0.51),H121=Q121,H121=P121),E120+1,E120) -> 17 | G121: Artikel 120 | H121: =MIN($R121:BQ121) -> 189.49 | I121: =MAX($R121:BQ121) -> 244.99 | J121: =MIN($BR121:DR121) -> 0 | K121: =MAX($BR121:DR121) -> 0 | L121: 189.49 | M121: =SUM(N121-O121) -> 0 | N121: 1 | O121: 1 | P121: 0 | Q121: 0 | AW121: 244.99 | BI121: 189.49
A122: 1 | B122: 24 | C122: 0 | D122: 13 | E122: =IF(OR(O122<(N122*0.51),H122=Q122,H122=P122),E121+1,E121) -> 17 | G122: Artikel 121 | H122: =MIN($R122:BQ122) -> 172.44 | I122: =MAX($R122:BQ122) -> 189.9 | J122: =MIN($BR122:DR122) -> 0 | K122: =MAX($BR122:DR122) -> 0 | L122: 172.44 | M122: 0 | N122: 6 | O122: 6 | P122: 0 | Q122: 0 | W122: 189.9 | AE122: 179.94 | AK122: 179.94 | AQ122: 179.94 | AU122: 179.94 | AX122: 179.94 | BC122: 174.95 | BH122: 172.44 | BL122: 172.44 | BN122: 172.44
A123: 1 | B123: 24 | C123: 0 | D123: 13 | E123: 17 | G123: Artikel 122 | H123: =MIN($R123:BQ123) -> 82.02 | I123: =MAX($R123:BQ123) -> 96.99 | J123: =MIN($BR123:DR123) -> 0 | K123: =MAX($BR123:DR123) -> 0 | L123: =IFERROR(LOOKUP(100000,R123:DS123),0) -> 82.02 | M123: =SUM(N123-O123) -> 0 | N123: 8 | O123: 8 | P123: 0 | Q123: 0 | BB123: 96.99 | BI123: 82.02
A124: =IF(O124<N124,A123+1,A123) -> 1 | B124: =B123 -> 24 | C124: =IF(O124<(N124*0.51),C123+1,C123) -> 0 | D124: 13 | E124: 17 | G124: Artikel 123 | H124: =MIN($R124:BQ124) -> 28.49 | I124: =MAX($R124:BQ124) -> 28.49 | J124: =MIN($BR124:DR124) -> 0 | K124: =MAX($BR124:DR124) -> 0 | L124: =IFERROR(LOOKUP(100000,R124:DS124),0) -> 28.49 | M124: =SUM(N124-O124) -> 0 | N124: 10 | O124: 10 | P124: 0 | Q124: 0 | BE124: 28.49
A125: 1 | B125: =B124 -> 24 | C125: 0 | D125: =IF(OR(M125>0,H125=P125),D124+1,D124) -> 14 | E125: =IF(OR(H125=Q125,H125=P125),E124+1,E124) -> 17 | G125: Artikel 124 | H125: =MIN($R125:BQ125) -> 45.99 | I125: =MAX($R125:BQ125) -> 74.99 | J125: =MIN($BR125:DR125) -> 0 | K125: =MAX($BR125:DR125) -> 0 | L125: 45.99 | M125: 3 | N125: 3 | P125: 0 | Q125: 0 | S125: 49.99 | U125: 49.99 | AA125: 47.99 | AC125: 54.99 | AE125: 49.99 | AM125: 74.99 | AQ125: 59.99 | AX125: 69.99 | BF125: 49.99 | BJ125: 47.99 | BN125: 45.99
A126: 1 | B126: =B125 -> 24 | C126: 0 | D126: =IF(OR(M126>0,H126=P126),D125+1,D125) -> 15 | E126: =IF(OR(H126=Q126,H126=P126),E125+1,E125) -> 17 | G126: Artikel 125 | H126: =MIN($R126:BQ126) -> 119.99 | I126: =MAX($R126:BQ126) -> 239.99 | J126: =MIN($BR126:DR126) -> 0 | K126: =MAX($BR126:DR126) -> 0 | L126: 119.99 | M126: 2 | N126: 2 | P126: 0 | Q126: 0 | AU126: 239.99 | AW126: 199.99 | BA126: 119.99
A127: =IF(O127<N127,A126+1,A126) -> 1 | B127: =IF(O127<N127,B126+1,B126) -> 24 | C127: =IF(O127<(N127*0.51),C126+1,C126) -> 0 | D127: =D126 -> 15 | E127: =IF(OR(O127<(N127*0.51),H127=Q127,H127=P127),E126+1,E126) -> 17 | G127: Artikel 126 | H127: =MIN($R127:BQ127) -> 79.9 | I127: =MAX($R127:BQ127) -> 94.99 | J127: =MIN($BR127:DR127) -> 0 | K127: =MAX($BR127:DR127) -> 0 | L127: 94.99 | M127: 0 | N127: 40 | O127: 40 | P127: 0 | Q127: 0 | AA127: 89.99 | AE127: 89.99 | AM127: 89.99 | AW127: 88.99 | BE127: 79.9 | BH127: 89.99 | BN127: 94.99
A128: 1 | B128: 24 | C128: =C127 -> 0 | D128: 15 | E128: 17 | G128: Artikel 127 | H128: =MIN($R128:BQ128) -> 329.99 | I128: =MAX($R128:BQ128) -> 399.99 | J128: =MIN($BR128:DR128) -> 0 | K128: =MAX($BR128:DR128) -> 0 | L128: 329.99 | M128: 0 | N128: 12 | O128: 12 | P128: 0 | Q128: 0 | AR128: 399.99 | BL128: 329.99
A129: 1 | B129: =B128 -> 24 | C129: 0 | D129: =IF(OR(M129>0,H129=P129),D128+1,D128) -> 16 | E129: =IF(OR(H129=Q129,H129=P129),E128+1,E128) -> 17 | G129: Artikel 128 | H129: =MIN($R129:BQ129) -> 79.99 | I129: =MAX($R129:BQ129) -> 159.99 | J129: =MIN($BR129:DR129) -> 0 | K129: =MAX($BR129:DR129) -> 0 | L129: 109.99 | M129: 3 | N129: 3 | P129: 109.99 | Q129: 0 | S129: 99.99 | T129: 99.99 | V129: 89.99 | Y129: 89.99 | Z129: 79.99 | AA129: 139.99 | AC129: 119.99 | AD129: 109.99 | AE129: 104.99 | AG129: 109.99 | AK129: 119.99 | AZ129: 159.99 | BD129: 159.99 | BI129: 149.99 | BK129: 134.99 | BN129: 116.67 | BP129: 109.99
A130: 1 | B130: 24 | C130: 0 | D130: 16 | E130: =IF(OR(O130<(N130*0.51),H130=Q130,H130=P130),E129+1,E129) -> 17 | G130: Artikel 129 | H130: =MIN($R130:BQ130) -> 19.99 | I130: =MAX($R130:BQ130) -> 22.99 | J130: =MIN($BR130:DR130) -> 0 | K130: =MAX($BR130:DR130) -> 0 | L130: =IFERROR(LOOKUP(100000,R130:DS130),0) -> 19.99 | M130: 0 | N130: 20 | O130: 20 | P130: =INDEX(R130:DS130,MATCH(P$1,R$1:DS$1,0)) -> 0 | Q130: =IFERROR(INDEX(R130:DS130,MATCH(Q$1,R$1:DS$1,0)),0) -> 0 | T130: 22.99 | AQ130: 19.99
A131: 1 | B131: =B130 -> 24 | C131: 0 | D131: 16 | E131: =E130 -> 17 | G131: Artikel 130 | H131: =MIN($R131:BQ131) -> 799.99 | I131: =MAX($R131:BQ131) -> 799.99 | J131: =MIN($BR131:DR131) -> 0 | K131: =MAX($BR131:DR131) -> 0 | L131: 799.99 | M131: =SUM(N131-O131) -> 2 | N131: 2 | P131: 0 | Q131: 0 | BH131: 799.99
A132: 1 | B132: 24 | C132: 0 | D132: =D131 -> 16 | E132: =IF(OR(O132<(N132*0.51),H132=Q132,H132=P132),E131+1,E131) -> 17 | G132: Artikel 131 | H132: =MIN($R132:BQ132) -> 169.99 | I132: =MAX($R132:BQ132) -> 219.99 | J132: =MIN($BR132:DR132) -> 0 | K132: =MAX($BR132:DR132) -> 0 | L132: 209.49 | M132: 0 | N132: 8 | O132: 8 | P132: 0 | Q132: 0 | U132: 169.99 | AT132: 219.99 | BG132: 209.49
A133: 1 | B133: =B132 -> 24 | C133: 0 | D133: =IF(OR(M133>0,H133=P133),D132+1,D132) -> 17 | E133: =IF(OR(O168=0,H133=Q133,H133=P133),E132+1,E132) -> 17 | G133: Artikel 132 | H133: =MIN($R133:BQ133) -> 169.99 | I133: =MAX($R133:BQ133) -> 449.99 | J133: =MIN($BR133:DR133) -> 0 | K133: =MAX($BR133:DR133) -> 0 | L133: 169.99 | M133: 2 | N133: 2 | P133: 0 | Q133: 0 | AE133: 449.99 | AJ133: 329.99 | AM133: 229.99 | AO133: 199.99 | AQ133: 169.99
A134: 1 | B134: =B133 -> 24 | C134: 0 | D134: =IF(OR(M134>0,H134=P134),D133+1,D133) -> 18 | E134: =IF(OR(O168=0,H134=Q134,H134=P134),E133+1,E133) -> 17 | G134: Artikel 133 | H134: =MIN($R134:BQ134) -> 169.99 | I134: =MAX($R134:BQ134) -> 519.99 | J134: =MIN($BR134:DR134) -> 0 | K134: =MAX($BR134:DR134) -> 0 | L134: 169.99 | M134: 2 | N134: 2 | P134: 0 | Q134: 0 | V134: 169.99 | AE134: 519.99 | AI134: 369.99 | AK134: 369.99 | AR134: 229.99 | AX134: 299.99 | BA134: 169.99
A135: 1 | B135: =IF(O135<N135,B134+1,B134) -> 24 | C135: 0 | D135: 18 | E135: =IF(OR(O135<(N135*0.51),H135=Q135,H135=P135),E134+1,E134) -> 17 | G135: Artikel 134 | H135: =MIN($R135:BQ135) -> 119.99 | I135: =MAX($R135:BQ135) -> 134.99 | J135: =MIN($BR135:DR135) -> 0 | K135: =MAX($BR135:DR135) -> 0 | L135: 119.99 | M135: -4 | N135: 10 | O135: 14 | P135: 0 | Q135: 0 | AG135: 134.99 | AQ135: 134.99 | BH135: 119.99
A136: 1 | B136: 24 | C136: 0 | D136: =D135 -> 18 | E136: 17 | G136: Artikel 135 | H136: =MIN($R136:BQ136) -> 119.99 | I136: =MAX($R136:BQ136) -> 149.99 | J136: =MIN($BR136:DR136) -> 0 | K136: =MAX($BR136:DR136) -> 0 | L136: 139.99 | M136: 0 | N136: 2 | O136: 2 | P136: 0 | Q136: 0 | AG136: 149.99 | BH136: 139.99 | BL136: 119.99 | BM136: 139.99
A137: 1 | B137: =B136 -> 24 | C137: 0 | D137: =IF(OR(M137>0,H137=P137),D136+1,D136) -> 19 | E137: =IF(OR(H137=Q137,H137=P137),E136+1,E136) -> 17 | G137: Artikel 136 | H137: =MIN($R137:BQ137) -> 79.99 | I137: =MAX($R137:BQ137) -> 179.99 | J137: =MIN($BR137:DR137) -> 0 | K137: =MAX($BR137:DR137) -> 0 | L137: 79.99 | M137: 2 | N137: 2 | P137: 0 | Q137: 0 | AE137: 179.99 | AJ137: 159.99 | AO137: 149.99 | AS137: 119.99 | AW137: 99.99 | BA137: 79.99
A138: 1 | B138: =B137 -> 24 | C138: 0 | D138: =D137 -> 19 | E138: =E137 -> 17 | G138: Artikel 137 | H138: =MIN($R138:BQ138) -> 69.99 | I138: =MAX($R138:BQ138) -> 69.99 | J138: =MIN($BR138:DR138) -> 0 | K138: =MAX($BR138:DR138) -> 0 | L138: 69.99 | M138: 1 | N138: 1 | P138: 0 | Q138: 0 | AW138: 69.99
A139: 1 | B139: =IF((O139+O140+O141)<(N139+N140+N141)/3,B138+1,B138) -> 24 | C139: 0 | D139: 19 | E139: =IF(OR((O139+O140+O141)<1,H139=Q139,H139=P139),E138+1,E138) -> 17 | G139: Artikel 138 | H139: =MIN($R139:BQ139) -> 139.99 | I139: =MAX($R139:BQ139) -> 149.99 | J139: =MIN($BR139:DR139) -> 0 | K139: =MAX($BR139:DR139) -> 0 | L139: 141.99 | M139: =SUM((N139+N140+N141)-(O139+O140+O141))/3 -> 0.6666666667 | N139: 1 | O139: 1 | P139: 0 | Q139: 0 | AW139: 149.99 | BF139: 139.99 | BH139: 141.99 | BM139: 141.99
A140: 1 | B140: =IF((O139+O140+O141)<(N139+N140+N141)/3,B139+1,B139) -> 24 | C140: 0 | D140: 19 | E140: =IF(OR((O139+O140+O141)<1,H140=Q140,H140=P140),E139+1,E139) -> 17 | G140: Artikel 139 | H140: =MIN($R140:BQ140) -> 189.99 | I140: =MAX($R140:BQ140) -> 249.99 | J140: =MIN($BR140:DR140) -> 0 | K140: =MAX($BR140:DR140) -> 0 | L140: 239.99 | M140: =SUM((N139+N140+N141)-(O139+O140+O141))/3 -> 0.6666666667 | N140: 1 | P140: 0 | Q140: 0 | T140: 249.99 | AJ140: 189.99 | BK140: 239.99
A141: =A140 -> 1 | B141: =IF((O139+O140+O141)<(N139+N140+N141)/3,B140+1,B140) -> 24 | C141: 0 | D141: 19 | E141: =IF(OR((O139+O140+O141)<1,H141=Q141,H141=P141),E140+1,E140) -> 17 | G141: Artikel 140 | H141: =MIN($R141:BQ141) -> 274.27 | I141: =MAX($R141:BQ141) -> 299.99 | J141: =MIN($BR141:DR141) -> 0 | K141: =MAX($BR141:DR141) -> 0 | L141: 299.99 | M141: =SUM((N139+N140+N141)-(O139+O140+O141))/3 -> 0.6666666667 | N141: 1 | P141: 0 | Q141: 0 | S141: 283.41 | AC141: 283.41 | AV141: 274.27 | AZ141: 299.99 | BG141: 299.99
A142: 1 | B142: =IF(O142<N142,B141+1,B141) -> 24 | C142: 0 | D142: 19 | E142: =IF(OR(O142<(N142*0.51),H142=Q142,H142=P142),E141+1,E141) -> 17 | G142: Artikel 141 | H142: =MIN($R142:BQ142) -> 139.99 | I142: =MAX($R142:BQ142) -> 179.99 | J142: =MIN($BR142:DR142) -> 0 | K142: =MAX($BR142:DR142) -> 0 | L142: 139.99 | M142: =SUM(N142-O142) -> 0 | N142: 1 | O142: 1 | P142: 0 | Q142: 0 | AM142: 179.99 | BA142: 149.99 | BH142: 139.99 | BM142: 139.99
A143: =A142 -> 1 | B143: =B142 -> 24 | C143: =C142 -> 0 | D143: =IF(OR(M143>0,H143=P143),D142+1,D142) -> 20 | E143: =IF(OR(O168=0,H143=Q143,H143=P143),E142+1,E142) -> 17 | G143: Artikel 142 | H143: =MIN($R143:BQ143) -> 15.99 | I143: =MAX($R143:BQ143) -> 29.99 | J143: =MIN($BR143:DR143) -> 0 | K143: =MAX($BR143:DR143) -> 0 | L143: 21.99 | M143: 1 | N143: 1 | P143: 0 | Q143: 0 | R143: 29.99 | AK143: 19.99 | AW143: 19.99 | AY143: 15.99 | BB143: 17.99 | BF143: 21.99
A144: =IF(O144<N144,A143+1,A143) -> 1 | B144: =B143 -> 24 | C144: =IF(O144<(N144*0.51),C143+1,C143) -> 0 | D144: 20 | E144: =E143 -> 17 | G144: Artikel 143 | H144: =MIN($R144:BQ144) -> 0 | I144: =MAX($R144:BQ144) -> 0 | J144: =MIN($BR144:DR144) -> 0 | K144: =MAX($BR144:DR144) -> 0 | L144: =IFERROR(LOOKUP(100000,R144:DS144),0) -> 0 | M144: =SUM(N144-O144) -> 0 | N144: 3 | O144: 3 | P144: 0 | Q144: 0
A145: 1 | B145: =IF(O145<N145,B144+1,B144) -> 24 | C145: =C144 -> 0 | D145: 20 | E145: =IF(OR(O145<(N145*0.51),H145=Q145,H145=P145),E144+1,E144) -> 17 | G145: Artikel 144 | H145: =MIN($R145:BQ145) -> 146.62 | I145: =MAX($R145:BQ145) -> 199.99 | J145: =MIN($BR145:DR145) -> 0 | K145: =MAX($BR145:DR145) -> 0 | L145: 146.62 | M145: -3 | N145: 5 | O145: 8 | P145: 0 | Q145: 0 | AO145: 199.99 | AP145: 169.99 | AZ145: 146.62
A146: 1 | B146: =B145 -> 24 | C146: 0 | D146: 20 | E146: =E145 -> 17 | G146: Artikel 145 | H146: =MIN($R146:BQ146) -> 0 | I146: =MAX($R146:BQ146) -> 0 | J146: =MIN($BR146:DR146) -> 0 | K146: =MAX($BR146:DR146) -> 0 | L146: =IFERROR(LOOKUP(100000,R146:DS146),0) -> 0 | M146: =SUM(N146-O146) -> 0 | N146: 1 | O146: 1 | P146: 0 | Q146: 0
A147: 1 | B147: =B146 -> 24 | C147: =C146 -> 0 | D147: =IF(OR(M147>0,H147=P147),D146+1,D146) -> 21 | E147: =IF(OR(H147=Q147,H147=P147),E146+1,E146) -> 17 | G147: Artikel 146 | H147: =MIN($R147:BQ147) -> 112.49 | I147: =MAX($R147:BQ147) -> 219.99 | J147: =MIN($BR147:DR147) -> 0 | K147: =MAX($BR147:DR147) -> 0 | L147: 219.99 | M147: 2 | N147: 2 | P147: 0 | Q147: 0 | AM147: 159.99 | AQ147: 219.99 | AR147: 219.99 | AS147: 112.49 | AU147: 219.99
A148: 1 | B148: 24 | C148: =C147 -> 0 | D148: =IF(OR(M148>0,H148=P148),D147+1,D147) -> 22 | E148: =IF(OR(H148=Q148,H148=P148),E147+1,E147) -> 17 | G148: Artikel 147 | H148: =MIN($R148:BQ148) -> 169.99 | I148: =MAX($R148:BQ148) -> 169.99 | J148: =MIN($BR148:DR148) -> 0 | K148: =MAX($BR148:DR148) -> 0 | L148: 169.99 | M148: 2 | N148: 2 | P148: 0 | Q148: 0 | AY148: 169.99 | AZ148: 169.99
A149: 1 | B149: =IF(O149<N149,B148+1,B148) -> 25 | C149: 0 | D149: =D148 -> 22 | E149: =IF(OR(O149<(N149*0.51),H149=Q149,H149=P149),E148+1,E148) -> 17 | G149: Artikel 148 | H149: =MIN($R149:BQ149) -> 229.99 | I149: =MAX($R149:BQ149) -> 229.99 | J149: =MIN($BR149:DR149) -> 0 | K149: =MAX($BR149:DR149) -> 0 | L149: 229.99 | M149: 1 | N149: 8 | O149: 7 | P149: 0 | Q149: 0 | AR149: 229.99
A150: =IF(O150<N150,A149+1,A149) -> 1 | B150: =B149 -> 25 | C150: =IF(O150<(N150*0.51),C149+1,C149) -> 0 | D150: 22 | E150: =E149 -> 17 | G150: Artikel 149 | H150: =MIN($R150:BQ150) -> 0 | I150: =MAX($R150:BQ150) -> 0 | J150: =MIN($BR150:DR150) -> 0 | K150: =MAX($BR150:DR150) -> 0 | L150: 0 | M150: 0 | N150: 2 | O150: 2 | P150: 0 | Q150: 0
A151: 1 | B151: =IF(O151<N151,B150+1,B150) -> 26 | C151: =C150 -> 0 | D151: 22 | E151: 18 | G151: Artikel 150 | H151: =MIN($R151:BQ151) -> 194.99 | I151: =MAX($R151:BQ151) -> 219.99 | J151: =MIN($BR151:DR151) -> 0 | K151: =MAX($BR151:DR151) -> 0 | L151: 219.99 | M151: 1 | N151: 2 | O151: 1 | P151: 0 | Q151: 0 | V151: 194.99 | AF151: 199.99 | AK151: 199.99 | AO151: 199.99 | AU151: 209.99 | AZ151: 209.99 | BE151: 219.99
A152: =IF(O152<N152,A151+1,A151) -> 1 | B152: =B151 -> 26 | C152: =IF(O152<(N152*0.51),C151+1,C151) -> 0 | D152: 22 | E152: =E151 -> 18 | G152: Artikel 151 | H152: =MIN($R152:BQ152) -> 1275 | I152: =MAX($R152:BQ152) -> 1500 | J152: =MIN($BR152:DR152) -> 0 | K152: =MAX($BR152:DR152) -> 0 | L152: 1275 | M152: -2 | N152: 3 | O152: 5 | P152: 0 | Q152: 0 | R152: 1500 | AX152: 1275
A153: 1 | B153: =B152 -> 26 | C153: =IF(O153<(N153*0.51),C152+1,C152) -> 0 | D153: 22 | E153: =E152 -> 18 | G153: Artikel 152 | H153: =MIN($R153:BQ153) -> 0 | I153: =MAX($R153:BQ153) -> 0 | J153: =MIN($BR153:DR153) -> 0 | K153: =MAX($BR153:DR153) -> 0 | L153: 0 | M153: 0 | N153: 6 | O153: 6 | P153: 0 | Q153: 0
A154: 1 | B154: =B153 -> 26 | C154: =C153 -> 0 | D154: 22 | E154: 18 | G154: Artikel 153 | H154: =MIN($R154:BQ154) -> 0 | I154: =MAX($R154:BQ154) -> 0 | J154: =MIN($BR154:DR154) -> 0 | K154: =MAX($BR154:DR154) -> 0 | L154: =IFERROR(LOOKUP(100000,R154:DS154),0) -> 0 | M154: =SUM(N154-O154) -> 0 | N154: =O154 -> 0 | P154: 0 | Q154: 0
A155: =A154 -> 1 | B155: 26 | C155: =C154 -> 0 | D155: 22 | E155: 18 | G155: Artikel 154 | H155: =MIN($R155:BQ155) -> 0 | I155: =MAX($R155:BQ155) -> 0 | J155: =MIN($BR155:DR155) -> 0 | K155: =MAX($BR155:DR155) -> 0 | L155: 0 | M155: 0 | N155: =O155 -> 0 | P155: 0 | Q155: 0
A156: =A155 -> 1 | B156: 26 | C156: 0 | D156: =IF(OR(M156>0,H156=P156),D155+1,D155) -> 23 | E156: =IF(OR(H156=Q156,H156=P156),E155+1,E155) -> 18 | G156: Artikel 155 | H156: =MIN($R156:BQ156) -> 39.99 | I156: =MAX($R156:BQ156) -> 89.99 | J156: =MIN($BR156:DR156) -> 0 | K156: =MAX($BR156:DR156) -> 0 | L156: 79.99 | M156: =SUM(N156-O156) -> 2 | N156: 2 | P156: 0 | Q156: 0 | AD156: 39.99 | AG156: 89.99 | AO156: 79.99 | AT156: 79.99
A157: =A156 -> 1 | B157: =IF(O157<N157,B156+1,B156) -> 26 | C157: 0 | D157: =D156 -> 23 | E157: =IF(OR(O157<(N157*0.51),H157=Q157,H157=P157),E156+1,E156) -> 18 | G157: Artikel 156 | H157: =MIN($R157:BQ157) -> 119.99 | I157: =MAX($R157:BQ157) -> 129.99 | J157: =MIN($BR157:DR157) -> 0 | K157: =MAX($BR157:DR157) -> 0 | L157: 119.99 | M157: -1 | N157: 20 | O157: 21 | P157: 0 | Q157: 0 | AD157: 119.99 | AG157: 129.99 | AK157: 119.99 | AQ157: 119.99
A158: =A157 -> 1 | B158: 26 | C158: =C157 -> 0 | D158: 23 | E158: 18 | G158: Artikel 157 | H158: =MIN($R158:BQ158) -> 129.99 | I158: =MAX($R158:BQ158) -> 144.99 | J158: =MIN($BR158:DR158) -> 0 | K158: =MAX($BR158:DR158) -> 0 | L158: 139.99 | M158: -1 | N158: 20 | O158: 21 | P158: 0 | Q158: 0 | V158: 144.99 | Y158: 144.99 | AI158: 129.99 | AO158: 139.99 | AZ158: 139.99
A159: 1 | B159: 26 | C159: =C158 -> 0 | D159: =D158 -> 23 | E159: 18 | G159: Artikel 158 | H159: =MIN($R159:BQ159) -> 99.99 | I159: =MAX($R159:BQ159) -> 129.99 | J159: =MIN($BR159:DR159) -> 0 | K159: =MAX($BR159:DR159) -> 0 | L159: 122.49 | M159: 0 | N159: 10 | O159: 10 | P159: 0 | Q159: 0 | AG159: 99.99 | AT159: 129.99 | BJ159: 122.49
A160: 1 | B160: =B159 -> 26 | C160: 0 | D160: =IF(OR(M160>0,H160=P160),D159+1,D159) -> 24 | E160: =IF(OR(H160=Q160,H160=P160),E159+1,E159) -> 18 | G160: Artikel 159 | H160: =MIN($R160:BQ160) -> 149.99 | I160: =MAX($R160:BQ160) -> 149.99 | J160: =MIN($BR160:DR160) -> 0 | K160: =MAX($BR160:DR160) -> 0 | L160: 149.99 | M160: 2 | N160: 2 | P160: 0 | Q160: 0 | BB160: 149.99
A161: 1 | B161: =IF(O161<N161,B160+1,B160) -> 26 | C161: =C160 -> 0 | D161: =D160 -> 24 | E161: =IF(OR(O161<(N161*0.51),H161=Q161,H161=P161),E160+1,E160) -> 18 | G161: Artikel 160 | H161: =MIN($R161:BQ161) -> 109.99 | I161: =MAX($R161:BQ161) -> 129.99 | J161: =MIN($BR161:DR161) -> 0 | K161: =MAX($BR161:DR161) -> 0 | L161: 109.99 | M161: -2 | N161: 12 | O161: 14 | P161: 0 | Q161: 0 | V161: 129.99 | Y161: 129.99 | BB161: 109.99
A162: 1 | B162: =IF((O162+O163)<(N162+N163),B161+1,B161) -> 26 | C162: 0 | D162: 24 | E162: =IF(OR(((O162+O163)<((N162+N163)*0.51)),H162=Q162,H162=P162),E161+1,E161) -> 18 | G162: Artikel 161 | H162: =MIN($R162:BQ162) -> 149.99 | I162: =MAX($R162:BQ162) -> 174.99 | J162: =MIN($BR162:DR162) -> 0 | K162: =MAX($BR162:DR162) -> 0 | L162: 149.99 | M162: =SUM((N162+N163)-(O162+O163)) -> 0 | N162: 1 | O162: 1 | P162: 0 | Q162: 0 | AA162: 174.99 | AI162: 149.99 | BF162: 149.99
A163: 1 | B163: =IF((O162+O163)<(N162+N163),B162+1,B162) -> 26 | C163: 0 | D163: 24 | E163: =IF(OR(((O162+O163)<((N162+N163)*0.51)),H163=Q163,H163=P163),E162+1,E162) -> 18 | G163: Artikel 162 | H163: =MIN($R163:BQ163) -> 169.99 | I163: =MAX($R163:BQ163) -> 219.99 | J163: =MIN($BR163:DR163) -> 0 | K163: =MAX($BR163:DR163) -> 0 | L163: 169.99 | M163: =SUM((N162+N163)-(O162+O163)) -> 0 | N163: 1 | O163: 1 | P163: 0 | Q163: 0 | AD163: 219.99 | AF163: 179.99 | AG163: 179.99 | BD163: 192.49 | BH163: 179.99 | BK163: 169.99 | BN163: 169.99
A164: 1 | B164: =B163 -> 26 | C164: 0 | D164: 24 | E164: =E163 -> 18 | G164: Artikel 163 | H164: =MIN($R164:BQ164) -> 19.99 | I164: =MAX($R164:BQ164) -> 27.99 | J164: =MIN($BR164:DR164) -> 0 | K164: =MAX($BR164:DR164) -> 0 | L164: 22.99 | M164: =SUM(N164-O164) -> 1 | N164: 1 | P164: 0 | Q164: 0 | AK164: 19.99 | AT164: 27.99 | AW164: 22.99
A165: 1 | B165: =B164 -> 26 | C165: 0 | D165: 24 | E165: =E164 -> 18 | G165: Artikel 164 | H165: =MIN($R165:BQ165) -> 44.99 | I165: =MAX($R165:BQ165) -> 59.99 | J165: =MIN($BR165:DR165) -> 0 | K165: =MAX($BR165:DR165) -> 0 | L165: 49.99 | M165: 1 | N165: 1 | P165: 0 | Q165: 0 | U165: 44.99 | AT165: 59.99 | AY165: 49.99 | BM165: 49.99
A166: 1 | B166: =IF(O166<N166,B165+1,B165) -> 26 | C166: 0 | D166: 24 | E166: =IF(OR(O166<(N166*0.51),H166=Q166,H166=P166),E165+1,E165) -> 18 | G166: Artikel 165 | H166: =MIN($R166:BQ166) -> 109.99 | I166: =MAX($R166:BQ166) -> 119.99 | J166: =MIN($BR166:DR166) -> 0 | K166: =MAX($BR166:DR166) -> 0 | L166: 109.99 | M166: 0 | N166: 1 | O166: 1 | P166: 0 | Q166: 0 | AR166: 119.99 | BM166: 109.99
A167: 1 | B167: 26 | C167: 0 | D167: 24 | E167: 18 | G167: Artikel 166 | H167: =MIN($R167:BQ167) -> 45.99 | I167: =MAX($R167:BQ167) -> 45.99 | J167: =MIN($BR167:DR167) -> 0 | K167: =MAX($BR167:DR167) -> 0 | L167: 45.99 | M167: 0 | N167: 10 | O167: 10 | P167: 0 | Q167: 0 | AQ167: 45.99
A168: 1 | B168: =B167 -> 26 | C168: 0 | D168: 24 | E168: =E167 -> 18 | G168: Artikel 167 | H168: =MIN($R168:BQ168) -> 0 | I168: =MAX($R168:BQ168) -> 0 | J168: =MIN($BR168:DR168) -> 0 | K168: =MAX($BR168:DR168) -> 0 | L168: =IFERROR(LOOKUP(100000,R168:DS168),0) -> 0 | M168: =SUM(N168-O168) -> 2 | N168: 6 | O168: 4 | P168: 0 | Q168: 0
A169: 1 | B169: 26 | C169: 0 | D169: 24 | E169: =IF(OR(O169<(N169*0.51),H169=Q169,H169=P169),E168+1,E168) -> 18 | G169: Artikel 168 | H169: =MIN($R169:BQ169) -> 128.99 | I169: =MAX($R169:BQ169) -> 229.99 | J169: =MIN($BR169:DR169) -> 0 | K169: =MAX($BR169:DR169) -> 0 | L169: 128.99 | M169: 0 | N169: 1 | O169: 1 | P169: 0 | Q169: 0 | T169: 229.99 | AT169: 128.99
A170: 1 | B170: =B169 -> 26 | C170: 0 | D170: 24 | E170: 18 | G170: Artikel 169 | H170: =MIN($R170:BQ170) -> 0 | I170: =MAX($R170:BQ170) -> 0 | J170: =MIN($BR170:DR170) -> 0 | K170: =MAX($BR170:DR170) -> 0 | L170: =IFERROR(LOOKUP(100000,R170:DS170),0) -> 0 | M170: =SUM(N170-O170) -> 18 | N170: 24 | O170: 6 | P170: 0 | Q170: 0
A171: 1 | B171: =IF(O171<N171,B170+1,B170) -> 26 | C171: =C170 -> 0 | D171: 24 | E171: =IF(OR(O171<(N171*0.51),H171=Q171,H171=P171),E170+1,E170) -> 18 | G171: Artikel 170 | H171: =MIN($R171:BQ171) -> 39.99 | I171: =MAX($R171:BQ171) -> 39.99 | J171: =MIN($BR171:DR171) -> 0 | K171: =MAX($BR171:DR171) -> 0 | L171: 39.99 | M171: 0 | N171: 3 | O171: 3 | P171: 0 | Q171: 0 | AX171: 39.99
A172: =A171 -> 1 | B172: 26 | C172: =C171 -> 0 | D172: 24 | E172: 18 | G172: Artikel 171 | H172: =MIN($R172:BQ172) -> 0 | I172: =MAX($R172:BQ172) -> 0 | J172: =MIN($BR172:DR172) -> 0 | K172: =MAX($BR172:DR172) -> 0 | L172: =IFERROR(LOOKUP(100000,R172:DS172),0) -> 0 | M172: =SUM(N172-O172) -> 1 | N172: 1 | P172: 0 | Q172: 0
A173: 1 | B173: 26 | C173: =C172 -> 0 | D173: 24 | E173: 18 | G173: Artikel 172 | H173: =MIN($R173:BQ173) -> 0 | I173: =MAX($R173:BQ173) -> 0 | J173: =MIN($BR173:DR173) -> 0 | K173: =MAX($BR173:DR173) -> 0 | L173: =IFERROR(LOOKUP(100000,R173:DS173),0) -> 0 | M173: =SUM(N173-O173) -> 1 | N173: 1 | P173: 0 | Q173: 0
A174: 1 | B174: 26 | C174: 0 | D174: 24 | E174: 18 | G174: Artikel 173 | H174: =MIN($R174:BQ174) -> 0 | I174: =MAX($R174:BQ174) -> 0 | J174: =MIN($BR174:DR174) -> 0 | K174: =MAX($BR174:DR174) -> 0 | L174: =IFERROR(LOOKUP(100000,R174:DS174),0) -> 0 | M174: =SUM(N174-O174) -> 2 | N174: 2 | P174: 0 | Q174: 0
A175: 1 | B175: =IF(O175<N175,B174+1,B174) -> 26 | C175: 0 | D175: 24 | E175: =IF(OR(O175<(N175*0.51),H175=Q175,H175=P175),E174+1,E174) -> 18 | G175: Artikel 174 | H175: =MIN($R175:BQ175) -> 34.99 | I175: =MAX($R175:BQ175) -> 59.99 | J175: =MIN($BR175:DR175) -> 0 | K175: =MAX($BR175:DR175) -> 0 | L175: 34.99 | M175: 0 | N175: 5 | O175: 5 | P175: 0 | Q175: 0 | AX175: 59.99 | BK175: 34.99
A176: =A175 -> 1 | B176: =B175 -> 26 | C176: =C175 -> 0 | D176: =D175 -> 24 | E176: =IF(OR(H176=Q176,H176=P176),E175+1,E175) -> 18 | G176: Artikel 175 | H176: =MIN($R176:BQ176) -> 479.99 | I176: =MAX($R176:BQ176) -> 699.99 | J176: =MIN($BR176:DR176) -> 0 | K176: =MAX($BR176:DR176) -> 0 | L176: =IFERROR(LOOKUP(100000,R176:DS176),0) -> 599.99 | M176: =SUM(N176-O176) -> 2 | N176: 2 | P176: 0 | Q176: 0 | X176: 489.99 | AA176: 479.99 | AE176: 479.99 | AM176: 499.99 | AR176: 629.9 | BB176: 699.99 | BD176: 649 | BF176: 599.99 | BG176: 699.99 | BN176: 599.99
A177: =IF(O177<N177,A176+1,A176) -> 1 | B177: =B176 -> 26 | C177: =IF(O177<(N177*0.51),C176+1,C176) -> 0 | D177: =D176 -> 24 | E177: =E176 -> 18 | G177: Artikel 176 | H177: =MIN($R177:BQ177) -> 230 | I177: =MAX($R177:BQ177) -> 230 | J177: =MIN($BR177:DR177) -> 0 | K177: =MAX($BR177:DR177) -> 0 | L177: 230 | M177: 0 | N177: 2 | O177: 2 | P177: 0 | Q177: 0 | AX177: 230
A178: 1 | B178: 26 | C178: =C177 -> 0 | D178: 24 | E178: =E177 -> 18 | G178: Artikel 177 | H178: =MIN($R178:BQ178) -> 0 | I178: =MAX($R178:BQ178) -> 0 | J178: =MIN($BR178:DR178) -> 0 | K178: =MAX($BR178:DR178) -> 0 | L178: =IFERROR(LOOKUP(100000,R178:DS178),0) -> 0 | M178: =SUM(N178-O178) -> 1 | N178: 1 | P178: 0 | Q178: 0
A179: =A178 -> 1 | B179: =B178 -> 26 | C179: =C178 -> 0 | D179: =D178 -> 24 | E179: 18 | G179: Artikel 178 | H179: =MIN($R179:BQ179) -> 549 | I179: =MAX($R179:BQ179) -> 549 | J179: =MIN($BR179:DR179) -> 0 | K179: =MAX($BR179:DR179) -> 0 | L179: =IFERROR(LOOKUP(100000,R179:DS179),0) -> 549 | M179: =SUM(N179-O179) -> 1 | N179: 3 | O179: 2 | P179: 549 | Q179: 0 | BP179: 549
A180: =A179 -> 1 | B180: 26 | C180: =IF(O170<2,C179+1,C179) -> 0 | D180: 24 | E180: 18 | G180: Artikel 179 | H180: =MIN($R180:BQ180) -> 479.99 | I180: =MAX($R180:BQ180) -> 479.99 | J180: =MIN($BR180:DR180) -> 0 | K180: =MAX($BR180:DR180) -> 0 | L180: =IFERROR(LOOKUP(100000,R180:DS180),0) -> 479.99 | M180: =IF((O180+O181)<3,12,IF((O180+O181)<5,9,IF((O180+O181)<10,6,0)))*1.25 -> 7.5 | N180: 12 | O180: =O170/3.1 -> 1.935483871 | P180: 479.99 | Q180: 0 | BK180: 479.99 | BP180: 479.99
A181: =IF(O181<N181,A180+1,A180) -> 2 | B181: =B180 -> 26 | C181: =IF(OR(O168<2,O179<1),C180+1,C180) -> 0 | D181: =D180 -> 24 | E181: =E180 -> 18 | G181: Artikel 180 | H181: =MIN($R181:BQ181) -> 479.99 | I181: =MAX($R181:BQ181) -> 699.99 | J181: =MIN($BR181:DR181) -> 0 | K181: =MAX($BR181:DR181) -> 0 | L181: 549 | M181: =SUM(N181-O181) -> 0.8 | N181: 5 | O181: =SUM((O65/5)+(O168/2)+O179) -> 4.2 | P181: 549 | Q181: 0 | X181: 489.99 | AA181: 479.99 | AE181: 479.99 | AM181: 499.99 | AR181: 629.99 | BB181: 699.99 | BD181: 649 | BF181: 599.99 | BJ181: 579.99 | BP181: 549
A182: 2 | B182: 26 | C182: =IF(O182<(N182*0.25),C181+1,C181) -> 0 | D182: 24 | E182: =E181 -> 18 | G182: Artikel 181 | H182: =MIN($R182:BQ182) -> 479.99 | I182: =MAX($R182:BQ182) -> 699.99 | J182: =MIN($BR182:DR182) -> 0 | K182: =MAX($BR182:DR182) -> 0 | L182: 479.99 | M182: =SUM(N182-O182)*1.25 -> 2.5 | N182: 12 | O182: =O193 -> 10 | P182: 0 | Q182: 0 | T182: 699.99 | BD182: 689.99 | BH182: 479.99
A183: =A182 -> 2 | B183: =B182 -> 26 | C183: =IF(O183<(N183*0.51),C182+1,C182) -> 0 | D183: =D182 -> 24 | E183: 18 | G183: Artikel 182 | H183: =MIN($R183:BQ183) -> 95.58 | I183: =MAX($R183:BQ183) -> 95.58 | J183: =MIN($BR183:DR183) -> 0 | K183: =MAX($BR183:DR183) -> 0 | L183: =IFERROR(LOOKUP(100000,R183:DS183),0) -> 95.58 | M183: -4 | N183: 20 | O183: 24 | P183: 95.58 | Q183: 0 | BP183: 95.58
A184: 2 | B184: =IF(O184<N184,B183+1,B183) -> 26 | C184: =C183 -> 0 | D184: 24 | E184: =IF(OR(O184<(N184*0.51),H184=Q184,H184=P184),E183+1,E183) -> 18 | G184: Artikel 183 | H184: =MIN($R184:BQ184) -> 99.99 | I184: =MAX($R184:BQ184) -> 129.99 | J184: =MIN($BR184:DR184) -> 0 | K184: =MAX($BR184:DR184) -> 0 | L184: 129.99 | M184: 0 | N184: 3 | O184: 3 | P184: 0 | Q184: 0 | R184: 99.99 | AG184: 99.99 | AS184: 129.99
A185: 2 | B185: =IF(O185<N185,B184+1,B184) -> 26 | C185: =C184 -> 0 | D185: =D184 -> 24 | E185: =IF(OR(O185<(N185*0.51),H185=Q185,H185=P185),E184+1,E184) -> 18 | G185: Artikel 184 | H185: =MIN($R185:BQ185) -> 59.99 | I185: =MAX($R185:BQ185) -> 74.99 | J185: =MIN($BR185:DR185) -> 0 | K185: =MAX($BR185:DR185) -> 0 | L185: 74.99 | M185: =SUM(N185-O185) -> -5 | N185: 5 | O185: 10 | P185: 0 | Q185: 0 | AQ185: 68.99 | AV185: 59.99 | AZ185: 74.99
A186: 2 | B186: 26 | C186: 0 | D186: 24 | E186: 18 | G186: Artikel 185 | H186: =MIN($R186:BQ186) -> 59.99 | I186: =MAX($R186:BQ186) -> 68.99 | J186: =MIN($BR186:DR186) -> 0 | K186: =MAX($BR186:DR186) -> 0 | L186: 59.99 | M186: -5 | N186: 5 | O186: 10 | P186: 0 | Q186: 0 | AQ186: 68.99 | AV186: 59.99
A187: 2 | B187: 26 | C187: =C186 -> 0 | D187: 24 | E187: 18 | G187: Artikel 186 | H187: =MIN($R187:BQ187) -> 89.99 | I187: =MAX($R187:BQ187) -> 89.99 | J187: =MIN($BR187:DR187) -> 0 | K187: =MAX($BR187:DR187) -> 0 | L187: 89.99 | M187: 0 | N187: 5 | O187: 5 | P187: 0 | Q187: 0 | AS187: 89.99
A188: 2 | B188: 26 | C188: 0 | D188: 24 | E188: 18 | G188: Artikel 187 | H188: =MIN($R188:BQ188) -> 124.99 | I188: =MAX($R188:BQ188) -> 124.99 | J188: =MIN($BR188:DR188) -> 0 | K188: =MAX($BR188:DR188) -> 0 | L188: =IFERROR(LOOKUP(100000,R188:DS188),0) -> 124.99 | M188: =SUM(N188-O188) -> 0 | N188: 5 | O188: 5 | P188: 0 | Q188: 0 | BH188: 124.99
A189: =IF(O189<N189,A188+1,A187) -> 2 | B189: =B188 -> 26 | C189: =IF(O189<(N189*0.51),C188+1,C188) -> 0 | D189: =D188 -> 24 | E189: =IF(OR(O189<(N189*0.51),H189=Q189,H189=P189),E188+1,E188) -> 18 | G189: Artikel 188 | H189: =MIN($R189:BQ189) -> 154.99 | I189: =MAX($R189:BQ189) -> 199.99 | J189: =MIN($BR189:DR189) -> 0 | K189: =MAX($BR189:DR189) -> 0 | L189: 179.99 | M189: -22 | N189: 15 | O189: 37 | P189: 0 | Q189: 0 | Y189: 154.99 | AF189: 164.99 | AQ189: 199.99 | AY189: 179.99
A190: =IF(O190<N190,A189+1,A189) -> 2 | B190: =B189 -> 26 | C190: =IF(O190<(N190*0.51),C189+1,C189) -> 0 | D190: =D189 -> 24 | E190: =E189 -> 18 | G190: Artikel 189 | H190: =MIN($R190:BQ190) -> 60 | I190: =MAX($R190:BQ190) -> 60 | J190: =MIN($BR190:DR190) -> 0 | K190: =MAX($BR190:DR190) -> 0 | L190: 60 | M190: -10 | N190: 16 | O190: 26 | P190: 0 | Q190: 0 | S190: 60
A191: 2 | B191: =IF(O191<N191,B190+1,B190) -> 26 | C191: 0 | D191: 24 | E191: 18 | G191: Artikel 190 | H191: =MIN($R191:BQ191) -> 389.99 | I191: =MAX($R191:BQ191) -> 389.99 | J191: =MIN($BR191:DR191) -> 0 | K191: =MAX($BR191:DR191) -> 0 | L191: 389.99 | M191: 0 | N191: 16 | O191: 16 | P191: 0 | Q191: 0 | AB191: 389.99
A192: 2 | B192: 26 | C192: 0 | D192: 24 | E192: 18 | G192: Artikel 191 | H192: =MIN($R192:BQ192) -> 49.99 | I192: =MAX($R192:BQ192) -> 67.99 | J192: =MIN($BR192:DR192) -> 0 | K192: =MAX($BR192:DR192) -> 0 | L192: =IFERROR(LOOKUP(100000,R192:DS192),0) -> 49.99 | M192: -10 | N192: 40 | O192: 50 | P192: 0 | Q192: 0 | AR192: 67.99 | AZ192: 49.99
A193: 2 | B193: =B192 -> 26 | C193: 0 | D193: 24 | E193: 18 | G193: Artikel 192 | H193: =MIN($R193:BQ193) -> 0 | I193: =MAX($R193:BQ193) -> 0 | J193: =MIN($BR193:DR193) -> 0 | K193: =MAX($BR193:DR193) -> 0 | L193: =IFERROR(LOOKUP(100000,R193:DS193),0) -> 0 | M193: =SUM((N193*1.25)-O193) -> 5 | N193: 12 | O193: 10 | P193: 0 | Q193: 0
A194: 2 | B194: =IF(O194<N194,B193+1,B193) -> 26 | C194: 0 | D194: 24 | E194: 18 | G194: Artikel 193 | H194: =MIN($R194:BQ194) -> 75.99 | I194: =MAX($R194:BQ194) -> 129.99 | J194: =MIN($BR194:DR194) -> 0 | K194: =MAX($BR194:DR194) -> 0 | L194: 75.99 | M194: 0 | N194: 16 | O194: 16 | P194: =INDEX(R194:DS194,MATCH(P$1,R$1:DS$1,0)) -> 0 | Q194: =IFERROR(INDEX(R194:DS194,MATCH(Q$1,R$1:DS$1,0)),0) -> 0 | AJ194: 99.99 | AV194: 129.99 | BB194: 75.99 | BH194: 75.99 | BK194: 75.99
A195: 2 | B195: 26 | C195: 0 | D195: 24 | E195: 18 | G195: Artikel 194 | H195: =MIN($R195:BQ195) -> 49.99 | I195: =MAX($R195:BQ195) -> 59.99 | J195: =MIN($BR195:DR195) -> 0 | K195: =MAX($BR195:DR195) -> 0 | L195: 59.99 | M195: -5 | N195: 50 | O195: 55 | P195: 0 | Q195: 0 | U195: 52.99 | AY195: 49.99 | BF195: 59.99
A196: =A195 -> 2 | B196: =B195 -> 26 | C196: =C195 -> 0 | D196: 24 | E196: 18 | G196: Artikel 195 | H196: =MIN($R196:BQ196) -> 699.99 | I196: =MAX($R196:BQ196) -> 699.99 | J196: =MIN($BR196:DR196) -> 0 | K196: =MAX($BR196:DR196) -> 0 | L196: 699.99 | M196: 2 | N196: 2 | P196: 0 | Q196: 0 | BH196: 699.99
A197: =A196 -> 2 | B197: =B196 -> 26 | C197: =C196 -> 0 | D197: 24 | E197: =E196 -> 18 | G197: Artikel 196 | H197: =MIN($R197:BQ197) -> 0 | I197: =MAX($R197:BQ197) -> 0 | J197: =MIN($BR197:DR197) -> 0 | K197: =MAX($BR197:DR197) -> 0 | L197: =IFERROR(LOOKUP(100000,R197:DS197),0) -> 0 | M197: =SUM(N197-O197) -> 1 | N197: 1 | P197: 0 | Q197: 0
A198: =A197 -> 2 | B198: =B196 -> 26 | C198: =C197 -> 0 | D198: 24 | E198: 18 | G198: Artikel 197 | H198: =MIN($R198:BQ198) -> 0 | I198: =MAX($R198:BQ198) -> 0 | J198: =MIN($BR198:DR198) -> 0 | K198: =MAX($BR198:DR198) -> 0 | L198: =IFERROR(LOOKUP(100000,R198:DS198),0) -> 0 | M198: =SUM(N198-O198) -> 1 | N198: 1 | P198: 0 | Q198: 0
A199: =A198 -> 2 | B199: 26 | C199: 0 | D199: =IF(OR(M199>0,H199=P199),D198+1,D198) -> 25 | E199: =IF(OR(H199=Q199,H199=P199),E198+1,E198) -> 18 | G199: Artikel 198 | H199: =MIN($R199:BQ199) -> 59.99 | I199: =MAX($R199:BQ199) -> 189.99 | J199: =MIN($BR199:DR199) -> 0 | K199: =MAX($BR199:DR199) -> 0 | L199: 63.99 | M199: 3 | N199: 3 | P199: 0 | Q199: 0 | T199: 189.99 | AA199: 159.99 | AJ199: 129.99 | AM199: 79.99 | AO199: 79.99 | AR199: 59.99 | AT199: 89.99 | AV199: 64.99 | AX199: 59.99 | BA199: 63.99
A200: =IF(O200<N200,A199+1,A199) -> 2 | B200: =B199 -> 26 | C200: =IF(O200<(N200*0.51),C199+1,C199) -> 0 | D200: =D199 -> 25 | E200: =E199 -> 18 | G200: Artikel 199 | H200: =MIN($R200:BQ200) -> 0 | I200: =MAX($R200:BQ200) -> 0 | J200: =MIN($BR200:DR200) -> 0 | K200: =MAX($BR200:DR200) -> 0 | L200: 0 | M200: -10 | N200: 6 | O200: 16 | P200: 0 | Q200: 0
... 23 more rows

Sheet Maske
A1: =TODAY()+CHOOSE(WEEKDAY(TODAY(),2),0+(MOD(NOW(),1)>=11/24)*3,2,1,0+(MOD(NOW(),1)>=11/24)*4,3,2,1) -> 2025-12-22 | B1: =A1+5-WEEKDAY(A1)+4*(WEEKDAY(A1)>4) -> 2025-12-25 | C1: =A1+7 -> 2025-12-29
J2: Preisspanne 2025 | N2: =IFERROR(VLOOKUP(L3,Liste!$G$2:$H223,2,0),"") -> 58.99 | O2: =IFERROR(VLOOKUP(L3,Liste!$G$2:$I223,3,0),"") -> 58.99 | Q2: Preisspanne 2025 | U2: =IFERROR(VLOOKUP(S3,Liste!$G$2:$H223,2,0),"") ->  | V2: =IFERROR(VLOOKUP(S3,Liste!$G$2:$I223,3,0),"") ->  | X2: Preisspanne 2025 | AB2: =IFERROR(VLOOKUP(Z3,Liste!$G$2:$H223,2,0),"") ->  | AC2: =IFERROR(VLOOKUP(Z3,Liste!$G$2:$I223,3,0),"") ->  | AG2: Preisspanne 2025 | AK2: =IFERROR(VLOOKUP(AJ3,Liste!$G$2:$H223,2,0),"") -> 594.15 | AL2: =IFERROR(VLOOKUP(AJ3,Liste!$G$2:$I223,3,0),"") -> 699
J3: Preisspanne 2026 | L3: =INDEX(J:J,_xlfn.AGGREGATE(14,6,ROW(J9:J27)/(J9:J27<>""),1)) -> Artikel 2 | N3: =IFERROR(VLOOKUP(L3,Liste!$G$2:$J223,4,0),"") -> 111 | O3: =IFERROR(VLOOKUP(L3,Liste!$G$2:$K223,5,0),"") -> 222 | Q3: Preisspanne 2026 | S3: =INDEX(Q:Q,_xlfn.AGGREGATE(14,6,ROW(Q9:Q27)/(Q9:Q27<>""),1)) -> Weisbrot | U3: =IFERROR(VLOOKUP(S3,Liste!$G$2:$J223,4,0),"") ->  | V3: =IFERROR(VLOOKUP(S3,Liste!$G$2:$K223,5,0),"") ->  | X3: Preisspanne 2026 | Z3: =INDEX(X:X,_xlfn.AGGREGATE(14,6,ROW(X9:X27)/(X9:X27<>""),1)) ->  | AB3: =IFERROR(VLOOKUP(Z3,Liste!$G$2:$J223,4,0),"") ->  | AC3: =IFERROR(VLOOKUP(Z3,Liste!$G$2:$K223,5,0),"") ->  | AG3: Preisspanne 2026 | AJ3: =INDEX(AG:AG,_xlfn.AGGREGATE(14,6,ROW(AG9:AG27)/(AG9:AG27<>""),1)) -> Artikel 205 | AK3: =IFERROR(VLOOKUP(AJ3,Liste!$G$2:$J223,4,0),"") -> 0 | AL3: =IFERROR(VLOOKUP(AJ3,Liste!$G$2:$K223,5,0),"") -> 0
F4: auffüllen | J4: Coupon | Q4: Coupon | X4: Coupon
F5: Obst und Gemüse | O5: =SUM(O9:O27) -> 222 | V5: =SUM(V9:V27) -> 0 | AC5: =SUM(AC9:AC27) -> 0 | AL5: =SUM(AL9:AL27) -> 3271.65
F6: Lidl | J6: Bonus | N6: =SUM(O9:O29) -> 222 | O6: =IF(O5>5000,SUM(O9:O29),SUM(O9:O28)) -> 222 | Q6: Bonus | U6: =SUM(V9:V29) -> 0 | V6: =IF(V5>5000,SUM(V9:V29),SUM(V9:V28)) -> 0 | X6: Bonus | AB6: =SUM(AC9:AC29) -> 0 | AC6: =IF(AC5>5000,SUM(AC9:AC29),SUM(AC9:AC28)) -> 0 | AK6: =SUM(AL9:AL29) -> 3271.65 | AL6: =IF(AL5>5000,SUM(AL9:AL29),SUM(AL9:AL27)) -> 3271.65
F7: auffüllen | J7: =A1 -> 2025-12-22 | N7: =IF(J5="Bonus",N6,O6) -> 222 | Q7: =B1 -> 2025-12-25 | U7: =IF(Q5="Bonus",U6,V6) -> 0 | W7: =B1 -> 2025-12-25 | X7: =C1 -> 2025-12-29 | AB7: =IF(X5="Bonus",AB6,AC6) -> 0 | AD7: =C1 -> 2025-12-29 | AG7: Extern | AK7: =IF(AG5="Bonus",AK6,AL6) -> 3271.65
B8: N1 imin | C8: N1 max | D8: www | H8: O1 min | I8: O1 max | J8: Artikel | K8: ME | L8: Min | M8: Max | N8: Preis | O8: Summe | Q8: Artikel | R8: ME | S8: Min | T8: Max | U8: Preis | V8: Summe | X8: Artikel | Y8: ME | Z8: Min | AA8: Max | AB8: Preis | AC8: Summe | AD8: Y | AE8: AB | AG8: Artikel | AI8: ME | AJ8: Min | AK8: Preis | AL8: Summe
A9: 1 | B9: =IF(VLOOKUP(F9,Liste!G$2:H223,2,0)=VLOOKUP(F9,Liste!G$2:P223,10,0),1,0) -> 0 | C9: =IF(VLOOKUP(F9,Liste!G$2:I223,3,0)=VLOOKUP(F9,Liste!G$2:P223,10,0),1,0) -> 0 | E9: =IF(VLOOKUP(F9,Liste!$G$2:O223,9,0)<1,1,0) -> 1 | F9: =IF($F$7="auffüllen",VLOOKUP(A9,Liste!B2:G223,6,0),IF($F$7="Obst und Gemüse",VLOOKUP(A9,Liste!D$2:G223,4,0),IF($F$7="Lidl",VLOOKUP(A9,Liste!E$2:G223,3,0)))) -> Artikel 2 | G9: ● | H9: =IF(AND(TODAY()<Liste!P$1,VLOOKUP(F9,Liste!G$2:H223,2,0)=VLOOKUP(F9,Liste!G$2:Q223,11,0)),1,0) -> 0 | I9: =IF(AND(TODAY()<Liste!P$1,VLOOKUP(F9,Liste!G$2:I223,3,0)=VLOOKUP(F9,Liste!G$2:Q223,11,0)),1,0) -> 0 | J9: Artikel 2 | K9: =IFERROR(VLOOKUP(J9,Liste!$G$2:AT223,7,0),0) -> 2 | L9: >>=WENNFEHLER(MIN(SVERWEIS(J9;Liste!$G$2:$H223;2;0):SVERWEIS(J9;Liste!$G$2:$J223;4;0));0)<< | M9: >>=WENNFEHLER(MIN(SVERWEIS(J9;Liste!$G$2:$i223;3;0):SVERWEIS(J9;Liste!$G$2:$K223;5;0));0)<< | N9: =IF(M9="Huhn",(VLOOKUP(J9,Liste!$G$2:$L223,6,0)*1.8),VLOOKUP(J9,Liste!$G$2:$L223,6,0)) -> 111 | O9: =IF(K9>0,(K9*N9),0) -> 222 | Q9: Graubrot | R9: =IFERROR(VLOOKUP(Q9,Liste!$G$2:BA223,7,0),0) -> 0 | S9: =IFERROR(VLOOKUP(Q9,Liste!$G$2:$H223,2,0),0) -> 0 | T9: =IFERROR(VLOOKUP(Q9,Liste!$G$2:$I223,3,0),0) -> 0 | U9: =IF(T9="Huhn",(VLOOKUP(Q9,Liste!$G$2:$L223,6,0)*1.8),VLOOKUP(Q9,Liste!$G$2:$L223,6,0)) ->  | V9: =IF(R9>0,(R9*U9),0) -> 0 | Y9: =IFERROR(VLOOKUP(X9,Liste!$G$2:BH223,7,0),0) -> 0 | Z9: =IFERROR(VLOOKUP(X9,Liste!$G$2:$H223,2,0),0) -> 0 | AA9: =IFERROR(VLOOKUP(X9,Liste!$G$2:$I223,3,0),0) -> 0 | AB9: =IF(AA9="Huhn",(VLOOKUP(X9,Liste!$G$2:$L223,6,0)*1.8),VLOOKUP(X9,Liste!$G$2:$L223,6,0)) ->  | AC9: =IF(Y9>0,(Y9*AB9),0) -> 0 | AD9: =IFERROR(VLOOKUP(X9,Liste!$G$2:BH223,7,0),0) -> 0 | AE9: =IF(AA9="Huhn",(VLOOKUP(X9,Liste!$G$2:$L223,6,0)*1.8),VLOOKUP(X9,Liste!$G$2:$L223,6,0)) ->  | AF9: =IF(VLOOKUP(AG9,Liste!$G$2:O223,9,0)<2,1,0) -> 0 | AG9: =IF($F$7="auffüllen",VLOOKUP(A9,Liste!A$2:G223,7,0),IF($F$7<>"auffüllen",VLOOKUP(A9,Liste!C$2:G223,5,0))) -> Artikel 46 | AH9: ● | AI9: =IFERROR(VLOOKUP(AG9,Liste!$G$2:BH223,7,0),0) -> 3 | AJ9: =IFERROR(VLOOKUP(AG9,Liste!$G$2:$H223,2,0),0) -> 330 | AK9: =IFERROR(VLOOKUP(AG9,Liste!$G$2:$L223,6,0),0) -> 350 | AL9: =IF(AI9>0,(AI9*AK9),0) -> 1050
A10: 2 | B10: =IF(VLOOKUP(F10,Liste!G$2:H224,2,0)=VLOOKUP(F10,Liste!G$2:P224,10,0),1,0) -> 0 | C10: =IF(VLOOKUP(F10,Liste!G$2:I224,3,0)=VLOOKUP(F10,Liste!G$2:P224,10,0),1,0) -> 0 | E10: =IF(VLOOKUP(F10,Liste!$G$2:O224,9,0)<1,1,0) -> 0 | F10: =IF($F$7="auffüllen",VLOOKUP(A10,Liste!B3:G224,6,0),IF($F$7="Obst und Gemüse",VLOOKUP(A10,Liste!D$2:G224,4,0),IF($F$7="Lidl",VLOOKUP(A10,Liste!E$2:G224,3,0)))) -> Artikel 12 | G10: ● | H10: =IF(AND(TODAY()<Liste!P$1,VLOOKUP(F10,Liste!G$2:H224,2,0)=VLOOKUP(F10,Liste!G$2:Q224,11,0)),1,0) -> 0 | I10: =IF(AND(TODAY()<Liste!P$1,VLOOKUP(F10,Liste!G$2:I224,3,0)=VLOOKUP(F10,Liste!G$2:Q224,11,0)),1,0) -> 0 | K10: =IFERROR(VLOOKUP(J10,Liste!$G$2:AT224,7,0),0) -> 0 | L10: =IFERROR(VLOOKUP(J10,Liste!$G$2:$H224,2,0),0) -> 0 | M10: =IFERROR(VLOOKUP(J10,Liste!$G$2:$I224,3,0),0) -> 0 | N10: =IF(M10="Huhn",(VLOOKUP(J10,Liste!$G$2:$L224,6,0)*1.8),VLOOKUP(J10,Liste!$G$2:$L224,6,0)) ->  | O10: =IF(K10>0,(K10*N10),0) -> 0 | Q10: Weisbrot | R10: =IFERROR(VLOOKUP(Q10,Liste!$G$2:BA224,7,0),0) -> 0 | S10: =IFERROR(VLOOKUP(Q10,Liste!$G$2:$H224,2,0),0) -> 0 | T10: =IFERROR(VLOOKUP(Q10,Liste!$G$2:$I224,3,0),0) -> 0 | U10: =IF(T10="Huhn",(VLOOKUP(Q10,Liste!$G$2:$L224,6,0)*1.8),VLOOKUP(Q10,Liste!$G$2:$L224,6,0)) ->  | V10: =IF(R10>0,(R10*U10),0) -> 0 | Y10: =IFERROR(VLOOKUP(X10,Liste!$G$2:BH224,7,0),0) -> 0 | Z10: =IFERROR(VLOOKUP(X10,Liste!$G$2:$H224,2,0),0) -> 0 | AA10: =IFERROR(VLOOKUP(X10,Liste!$G$2:$I224,3,0),0) -> 0 | AB10: =IF(AA10="Huhn",(VLOOKUP(X10,Liste!$G$2:$L224,6,0)*1.8),VLOOKUP(X10,Liste!$G$2:$L224,6,0)) ->  | AC10: =IF(Y10>0,(Y10*AB10),0) -> 0 | AD10: =IFERROR(VLOOKUP(X10,Liste!$G$2:BH224,7,0),0) -> 0 | AE10: =IF(AA10="Huhn",(VLOOKUP(X10,Liste!$G$2:$L224,6,0)*1.8),VLOOKUP(X10,Liste!$G$2:$L224,6,0)) ->  | AF10: =IF(VLOOKUP(AG10,Liste!$G$2:O224,9,0)<2,1,0) -> 0 | AG10: =IF($F$7="auffüllen",VLOOKUP(A10,Liste!A$2:G224,7,0),IF($F$7<>"auffüllen",VLOOKUP(A10,Liste!C$2:G224,5,0))) -> Artikel 180 | AH10: ● | AI10: =IFERROR(VLOOKUP(AG10,Liste!$G$2:BH224,7,0),0) -> 0.8 | AJ10: =IFERROR(VLOOKUP(AG10,Liste!$G$2:$H224,2,0),0) -> 479.99 | AK10: =IFERROR(VLOOKUP(AG10,Liste!$G$2:$L224,6,0),0) -> 549 | AL10: =IF(AI10>0,(AI10*AK10),0) -> 439.2
A11: 3 | B11: =IF(VLOOKUP(F11,Liste!G$2:H225,2,0)=VLOOKUP(F11,Liste!G$2:P225,10,0),1,0) -> 0 | C11: =IF(VLOOKUP(F11,Liste!G$2:I225,3,0)=VLOOKUP(F11,Liste!G$2:P225,10,0),1,0) -> 0 | E11: =IF(VLOOKUP(F11,Liste!$G$2:O225,9,0)<1,1,0) -> 0 | F11: =IF($F$7="auffüllen",VLOOKUP(A11,Liste!B4:G225,6,0),IF($F$7="Obst und Gemüse",VLOOKUP(A11,Liste!D$2:G225,4,0),IF($F$7="Lidl",VLOOKUP(A11,Liste!E$2:G225,3,0)))) -> Artikel 20 | G11: ● | H11: =IF(AND(TODAY()<Liste!P$1,VLOOKUP(F11,Liste!G$2:H225,2,0)=VLOOKUP(F11,Liste!G$2:Q225,11,0)),1,0) -> 0 | I11: =IF(AND(TODAY()<Liste!P$1,VLOOKUP(F11,Liste!G$2:I225,3,0)=VLOOKUP(F11,Liste!G$2:Q225,11,0)),1,0) -> 0 | K11: =IFERROR(VLOOKUP(J11,Liste!$G$2:AT225,7,0),0) -> 0 | L11: =IFERROR(VLOOKUP(J11,Liste!$G$2:$H225,2,0),0) -> 0 | M11: =IFERROR(VLOOKUP(J11,Liste!$G$2:$I225,3,0),0) -> 0 | N11: =IF(M11="Huhn",(VLOOKUP(J11,Liste!$G$2:$L225,6,0)*1.8),VLOOKUP(J11,Liste!$G$2:$L225,6,0)) ->  | O11: =IF(K11>0,(K11*N11),0) -> 0 | R11: =IFERROR(VLOOKUP(Q11,Liste!$G$2:BA225,7,0),0) -> 0 | S11: =IFERROR(VLOOKUP(Q11,Liste!$G$2:$H225,2,0),0) -> 0 | T11: =IFERROR(VLOOKUP(Q11,Liste!$G$2:$I225,3,0),0) -> 0 | U11: =IF(T11="Huhn",(VLOOKUP(Q11,Liste!$G$2:$L225,6,0)*1.8),VLOOKUP(Q11,Liste!$G$2:$L225,6,0)) ->  | V11: =IF(R11>0,(R11*U11),0) -> 0 | Y11: =IFERROR(VLOOKUP(X11,Liste!$G$2:BH225,7,0),0) -> 0 | Z11: =IFERROR(VLOOKUP(X11,Liste!$G$2:$H225,2,0),0) -> 0 | AA11: =IFERROR(VLOOKUP(X11,Liste!$G$2:$I225,3,0),0) -> 0 | AB11: =IF(AA11="Huhn",(VLOOKUP(X11,Liste!$G$2:$L225,6,0)*1.8),VLOOKUP(X11,Liste!$G$2:$L225,6,0)) ->  | AC11: =IF(Y11>0,(Y11*AB11),0) -> 0 | AD11: =IFERROR(VLOOKUP(X11,Liste!$G$2:BH225,7,0),0) -> 0 | AE11: =IF(AA11="Huhn",(VLOOKUP(X11,Liste!$G$2:$L225,6,0)*1.8),VLOOKUP(X11,Liste!$G$2:$L225,6,0)) ->  | AF11: =IF(VLOOKUP(AG11,Liste!$G$2:O225,9,0)<2,1,0) -> 0 | AG11: =IF($F$7="auffüllen",VLOOKUP(A11,Liste!A$2:G225,7,0),IF($F$7<>"auffüllen",VLOOKUP(A11,Liste!C$2:G225,5,0))) -> Artikel 205 | AH11: ● | AI11: =IFERROR(VLOOKUP(AG11,Liste!$G$2:BH225,7,0),0) -> 3 | AJ11: =IFERROR(VLOOKUP(AG11,Liste!$G$2:$H225,2,0),0) -> 594.15 | AK11: =IFERROR(VLOOKUP(AG11,Liste!$G$2:$L225,6,0),0) -> 594.15 | AL11: =IF(AI11>0,(AI11*AK11),0) -> 1782.45
A12: 4 | B12: =IF(VLOOKUP(F12,Liste!G$2:H226,2,0)=VLOOKUP(F12,Liste!G$2:P226,10,0),1,0) -> 0 | C12: =IF(VLOOKUP(F12,Liste!G$2:I226,3,0)=VLOOKUP(F12,Liste!G$2:P226,10,0),1,0) -> 0 | E12: =IF(VLOOKUP(F12,Liste!$G$2:O226,9,0)<1,1,0) -> 0 | F12: =IF($F$7="auffüllen",VLOOKUP(A12,Liste!B5:G226,6,0),IF($F$7="Obst und Gemüse",VLOOKUP(A12,Liste!D$2:G226,4,0),IF($F$7="Lidl",VLOOKUP(A12,Liste!E$2:G226,3,0)))) -> Artikel 21 | G12: ● | H12: =IF(AND(TODAY()<Liste!P$1,VLOOKUP(F12,Liste!G$2:H226,2,0)=VLOOKUP(F12,Liste!G$2:Q226,11,0)),1,0) -> 0 | I12: =IF(AND(TODAY()<Liste!P$1,VLOOKUP(F12,Liste!G$2:I226,3,0)=VLOOKUP(F12,Liste!G$2:Q226,11,0)),1,0) -> 0 | K12: =IFERROR(VLOOKUP(J12,Liste!$G$2:AT226,7,0),0) -> 0 | L12: =IFERROR(VLOOKUP(J12,Liste!$G$2:$H226,2,0),0) -> 0 | M12: =IFERROR(VLOOKUP(J12,Liste!$G$2:$I226,3,0),0) -> 0 | O12: 0 | R12: =IFERROR(VLOOKUP(Q12,Liste!$G$2:BA226,7,0),0) -> 0 | S12: =IFERROR(VLOOKUP(Q12,Liste!$G$2:$H226,2,0),0) -> 0 | T12: =IFERROR(VLOOKUP(Q12,Liste!$G$2:$I226,3,0),0) -> 0 | U12: =IF(T12="Huhn",(VLOOKUP(Q12,Liste!$G$2:$L226,6,0)*1.8),VLOOKUP(Q12,Liste!$G$2:$L226,6,0)) ->  | V12: 0 | Y12: =IFERROR(VLOOKUP(X12,Liste!$G$2:BH226,7,0),0) -> 0 | Z12: =IFERROR(VLOOKUP(X12,Liste!$G$2:$H226,2,0),0) -> 0 | AA12: =IFERROR(VLOOKUP(X12,Liste!$G$2:$I226,3,0),0) -> 0 | AB12: =IF(AA12="Huhn",(VLOOKUP(X12,Liste!$G$2:$L226,6,0)*1.8),VLOOKUP(X12,Liste!$G$2:$L226,6,0)) ->  | AC12: 0 | AD12: =IFERROR(VLOOKUP(X12,Liste!$G$2:BH226,7,0),0) -> 0 | AE12: =IF(AA12="Huhn",(VLOOKUP(X12,Liste!$G$2:$L226,6,0)*1.8),VLOOKUP(X12,Liste!$G$2:$L226,6,0)) ->  | AF12: =IF(VLOOKUP(AG12,Liste!$G$2:O226,9,0)<2,1,0) ->  | AG12: =IF($F$7="auffüllen",VLOOKUP(A12,Liste!A$2:G226,7,0),IF($F$7<>"auffüllen",VLOOKUP(A12,Liste!C$2:G226,5,0))) ->  | AH12: ● | AI12: =IFERROR(VLOOKUP(AG12,Liste!$G$2:BH226,7,0),0) -> 0 | AJ12: =IFERROR(VLOOKUP(AG12,Liste!$G$2:$H226,2,0),0) -> 0 | AK12: =IFERROR(VLOOKUP(AG12,Liste!$G$2:$L226,6,0),0) -> 0 | AL12: 0
A13: 5 | B13: =IF(VLOOKUP(F13,Liste!G$2:H227,2,0)=VLOOKUP(F13,Liste!G$2:P227,10,0),1,0) -> 0 | C13: =IF(VLOOKUP(F13,Liste!G$2:I227,3,0)=VLOOKUP(F13,Liste!G$2:P227,10,0),1,0) -> 0 | E13: =IF(VLOOKUP(F13,Liste!$G$2:O227,9,0)<1,1,0) -> 0 | F13: =IF($F$7="auffüllen",VLOOKUP(A13,Liste!B6:G227,6,0),IF($F$7="Obst und Gemüse",VLOOKUP(A13,Liste!D$2:G227,4,0),IF($F$7="Lidl",VLOOKUP(A13,Liste!E$2:G227,3,0)))) -> Artikel 25 | G13: ● | H13: =IF(AND(TODAY()<Liste!P$1,VLOOKUP(F13,Liste!G$2:H227,2,0)=VLOOKUP(F13,Liste!G$2:Q227,11,0)),1,0) -> 0 | I13: =IF(AND(TODAY()<Liste!P$1,VLOOKUP(F13,Liste!G$2:I227,3,0)=VLOOKUP(F13,Liste!G$2:Q227,11,0)),1,0) -> 0 | K13: =IFERROR(VLOOKUP(J13,Liste!$G$2:AT227,7,0),0) -> 0 | L13: =IFERROR(VLOOKUP(J13,Liste!$G$2:$H227,2,0),0) -> 0 | M13: =IFERROR(VLOOKUP(J13,Liste!$G$2:$I227,3,0),0) -> 0 | N13: =IF(M13="Huhn",(VLOOKUP(J13,Liste!$G$2:$L227,6,0)*1.8),VLOOKUP(J13,Liste!$G$2:$L227,6,0)) ->  | O13: 0 | R13: =IFERROR(VLOOKUP(Q13,Liste!$G$2:BA227,7,0),0) -> 0 | S13: =IFERROR(VLOOKUP(Q13,Liste!$G$2:$H227,2,0),0) -> 0 | T13: =IFERROR(VLOOKUP(Q13,Liste!$G$2:$I227,3,0),0) -> 0 | U13: =IF(T13="Huhn",(VLOOKUP(Q13,Liste!$G$2:$L227,6,0)*1.8),VLOOKUP(Q13,Liste!$G$2:$L227,6,0)) ->  | V13: 0 | Y13: =IFERROR(VLOOKUP(X13,Liste!$G$2:BH227,7,0),0) -> 0 | Z13: =IFERROR(VLOOKUP(X13,Liste!$G$2:$H227,2,0),0) -> 0 | AA13: =IFERROR(VLOOKUP(X13,Liste!$G$2:$I227,3,0),0) -> 0 | AB13: =IF(AA13="Huhn",(VLOOKUP(X13,Liste!$G$2:$L227,6,0)*1.8),VLOOKUP(X13,Liste!$G$2:$L227,6,0)) ->  | AC13: 0 | AD13: =IFERROR(VLOOKUP(X13,Liste!$G$2:BH227,7,0),0) -> 0 | AE13: =IF(AA13="Huhn",(VLOOKUP(X13,Liste!$G$2:$L227,6,0)*1.8),VLOOKUP(X13,Liste!$G$2:$L227,6,0)) ->  | AF13: =IF(VLOOKUP(AG13,Liste!$G$2:O227,9,0)<2,1,0) ->  | AG13: =IF($F$7="auffüllen",VLOOKUP(A13,Liste!A$2:G227,7,0),IF($F$7<>"auffüllen",VLOOKUP(A13,Liste!C$2:G227,5,0))) ->  | AH13: ● | AI13: =IFERROR(VLOOKUP(AG13,Liste!$G$2:BH227,7,0),0) -> 0 | AJ13: =IFERROR(VLOOKUP(AG13,Liste!$G$2:$H227,2,0),0) -> 0 | AK13: =IFERROR(VLOOKUP(AG13,Liste!$G$2:$L227,6,0),0) -> 0 | AL13: 0
A14: 6 | B14: =IF(VLOOKUP(F14,Liste!G$2:H228,2,0)=VLOOKUP(F14,Liste!G$2:P228,10,0),1,0) -> 0 | C14: =IF(VLOOKUP(F14,Liste!G$2:I228,3,0)=VLOOKUP(F14,Liste!G$2:P228,10,0),1,0) -> 0 | E14: =IF(VLOOKUP(F14,Liste!$G$2:O228,9,0)<1,1,0) -> 0 | F14: =IF($F$7="auffüllen",VLOOKUP(A14,Liste!B7:G228,6,0),IF($F$7="Obst und Gemüse",VLOOKUP(A14,Liste!D$2:G228,4,0),IF($F$7="Lidl",VLOOKUP(A14,Liste!E$2:G228,3,0)))) -> Artikel 26 | G14: ● | H14: =IF(AND(TODAY()<Liste!P$1,VLOOKUP(F14,Liste!G$2:H228,2,0)=VLOOKUP(F14,Liste!G$2:Q228,11,0)),1,0) -> 0 | I14: =IF(AND(TODAY()<Liste!P$1,VLOOKUP(F14,Liste!G$2:I228,3,0)=VLOOKUP(F14,Liste!G$2:Q228,11,0)),1,0) -> 0 | K14: =IFERROR(VLOOKUP(J14,Liste!$G$2:AT228,7,0),0) -> 0 | L14: =IFERROR(VLOOKUP(J14,Liste!$G$2:$H228,2,0),0) -> 0 | M14: =IFERROR(VLOOKUP(J14,Liste!$G$2:$I228,3,0),0) -> 0 | N14: =IF(M14="Huhn",(VLOOKUP(J14,Liste!$G$2:$L228,6,0)*1.8),VLOOKUP(J14,Liste!$G$2:$L228,6,0)) ->  | O14: 0 | R14: =IFERROR(VLOOKUP(Q14,Liste!$G$2:BA228,7,0),0) -> 0 | S14: =IFERROR(VLOOKUP(Q14,Liste!$G$2:$H228,2,0),0) -> 0 | T14: =IFERROR(VLOOKUP(Q14,Liste!$G$2:$I228,3,0),0) -> 0 | U14: =IF(T14="Huhn",(VLOOKUP(Q14,Liste!$G$2:$L228,6,0)*1.8),VLOOKUP(Q14,Liste!$G$2:$L228,6,0)) ->  | V14: 0 | Y14: =IFERROR(VLOOKUP(X14,Liste!$G$2:BH228,7,0),0) -> 0 | Z14: =IFERROR(VLOOKUP(X14,Liste!$G$2:$H228,2,0),0) -> 0 | AA14: =IFERROR(VLOOKUP(X14,Liste!$G$2:$I228,3,0),0) -> 0 | AB14: =IF(AA14="Huhn",(VLOOKUP(X14,Liste!$G$2:$L228,6,0)*1.8),VLOOKUP(X14,Liste!$G$2:$L228,6,0)) ->  | AC14: 0 | AD14: =IFERROR(VLOOKUP(X14,Liste!$G$2:BH228,7,0),0) -> 0 | AE14: =IF(AA14="Huhn",(VLOOKUP(X14,Liste!$G$2:$L228,6,0)*1.8),VLOOKUP(X14,Liste!$G$2:$L228,6,0)) ->  | AF14: =IF(VLOOKUP(AG14,Liste!$G$2:O228,9,0)<2,1,0) ->  | AG14: =IF($F$7="auffüllen",VLOOKUP(A14,Liste!A$2:G228,7,0),IF($F$7<>"auffüllen",VLOOKUP(A14,Liste!C$2:G228,5,0))) ->  | AH14: ● | AI14: =IFERROR(VLOOKUP(AG14,Liste!$G$2:BH228,7,0),0) -> 0 | AJ14: =IFERROR(VLOOKUP(AG14,Liste!$G$2:$H228,2,0),0) -> 0 | AK14: =IFERROR(VLOOKUP(AG14,Liste!$G$2:$L228,6,0),0) -> 0 | AL14: 0
A15: 7 | B15: =IF(VLOOKUP(F15,Liste!G$2:H229,2,0)=VLOOKUP(F15,Liste!G$2:P229,10,0),1,0) -> 0 | C15: =IF(VLOOKUP(F15,Liste!G$2:I229,3,0)=VLOOKUP(F15,Liste!G$2:P229,10,0),1,0) -> 0 | E15: =IF(VLOOKUP(F15,Liste!$G$2:O229,9,0)<1,1,0) -> 0 | F15: =IF($F$7="auffüllen",VLOOKUP(A15,Liste!B8:G229,6,0),IF($F$7="Obst und Gemüse",VLOOKUP(A15,Liste!D$2:G229,4,0),IF($F$7="Lidl",VLOOKUP(A15,Liste!E$2:G229,3,0)))) -> Artikel 30 | G15: ● | H15: =IF(AND(TODAY()<Liste!P$1,VLOOKUP(F15,Liste!G$2:H229,2,0)=VLOOKUP(F15,Liste!G$2:Q229,11,0)),1,0) -> 0 | I15: =IF(AND(TODAY()<Liste!P$1,VLOOKUP(F15,Liste!G$2:I229,3,0)=VLOOKUP(F15,Liste!G$2:Q229,11,0)),1,0) -> 0 | K15: =IFERROR(VLOOKUP(J15,Liste!$G$2:AT229,7,0),0) -> 0 | L15: =IFERROR(VLOOKUP(J15,Liste!$G$2:$H229,2,0),0) -> 0 | M15: =IFERROR(VLOOKUP(J15,Liste!$G$2:$I229,3,0),0) -> 0 | N15: =IF(M15="Huhn",(VLOOKUP(J15,Liste!$G$2:$L229,6,0)*1.8),VLOOKUP(J15,Liste!$G$2:$L229,6,0)) ->  | O15: 0 | R15: =IFERROR(VLOOKUP(Q15,Liste!$G$2:BA229,7,0),0) -> 0 | S15: =IFERROR(VLOOKUP(Q15,Liste!$G$2:$H229,2,0),0) -> 0 | T15: =IFERROR(VLOOKUP(Q15,Liste!$G$2:$I229,3,0),0) -> 0 | U15: =IF(T15="Huhn",(VLOOKUP(Q15,Liste!$G$2:$L229,6,0)*1.8),VLOOKUP(Q15,Liste!$G$2:$L229,6,0)) ->  | V15: =IF(R15>0,(R15*U15),0) -> 0 | Y15: =IFERROR(VLOOKUP(X15,Liste!$G$2:BH229,7,0),0) -> 0 | Z15: =IFERROR(VLOOKUP(X15,Liste!$G$2:$H229,2,0),0) -> 0 | AA15: =IFERROR(VLOOKUP(X15,Liste!$G$2:$I229,3,0),0) -> 0 | AB15: =IF(AA15="Huhn",(VLOOKUP(X15,Liste!$G$2:$L229,6,0)*1.8),VLOOKUP(X15,Liste!$G$2:$L229,6,0)) ->  | AC15: 0 | AD15: =IFERROR(VLOOKUP(X15,Liste!$G$2:BH229,7,0),0) -> 0 | AE15: =IF(AA15="Huhn",(VLOOKUP(X15,Liste!$G$2:$L229,6,0)*1.8),VLOOKUP(X15,Liste!$G$2:$L229,6,0)) ->  | AF15: =IF(VLOOKUP(AG15,Liste!$G$2:O229,9,0)<2,1,0) ->  | AG15: =IF($F$7="auffüllen",VLOOKUP(A15,Liste!A$2:G229,7,0),IF($F$7<>"auffüllen",VLOOKUP(A15,Liste!C$2:G229,5,0))) ->  | AH15: ● | AI15: =IFERROR(VLOOKUP(AG15,Liste!$G$2:BH229,7,0),0) -> 0 | AJ15: =IFERROR(VLOOKUP(AG15,Liste!$G$2:$H229,2,0),0) -> 0 | AK15: =IFERROR(VLOOKUP(AG15,Liste!$G$2:$L229,6,0),0) -> 0 | AL15: 0
A16: 8 | B16: =IF(VLOOKUP(F16,Liste!G$2:H230,2,0)=VLOOKUP(F16,Liste!G$2:P230,10,0),1,0) -> 0 | C16: =IF(VLOOKUP(F16,Liste!G$2:I230,3,0)=VLOOKUP(F16,Liste!G$2:P230,10,0),1,0) -> 0 | E16: =IF(VLOOKUP(F16,Liste!$G$2:O230,9,0)<1,1,0) -> 1 | F16: =IF($F$7="auffüllen",VLOOKUP(A16,Liste!B9:G230,6,0),IF($F$7="Obst und Gemüse",VLOOKUP(A16,Liste!D$2:G230,4,0),IF($F$7="Lidl",VLOOKUP(A16,Liste!E$2:G230,3,0)))) -> Artikel 32 | G16: ● | H16: =IF(AND(TODAY()<Liste!P$1,VLOOKUP(F16,Liste!G$2:H230,2,0)=VLOOKUP(F16,Liste!G$2:Q230,11,0)),1,0) -> 0 | I16: =IF(AND(TODAY()<Liste!P$1,VLOOKUP(F16,Liste!G$2:I230,3,0)=VLOOKUP(F16,Liste!G$2:Q230,11,0)),1,0) -> 0 | K16: =IFERROR(VLOOKUP(J16,Liste!$G$2:AT230,7,0),0) -> 0 | L16: =IFERROR(VLOOKUP(J16,Liste!$G$2:$H230,2,0),0) -> 0 | M16: =IFERROR(VLOOKUP(J16,Liste!$G$2:$I230,3,0),0) -> 0 | N16: =IF(M16="Huhn",(VLOOKUP(J16,Liste!$G$2:$L230,6,0)*1.8),VLOOKUP(J16,Liste!$G$2:$L230,6,0)) ->  | O16: 0 | R16: =IFERROR(VLOOKUP(Q16,Liste!$G$2:BA230,7,0),0) -> 0 | S16: =IFERROR(VLOOKUP(Q16,Liste!$G$2:$H230,2,0),0) -> 0 | T16: =IFERROR(VLOOKUP(Q16,Liste!$G$2:$I230,3,0),0) -> 0 | U16: =IF(T16="Huhn",(VLOOKUP(Q16,Liste!$G$2:$L230,6,0)*1.8),VLOOKUP(Q16,Liste!$G$2:$L230,6,0)) ->  | V16: 0 | Y16: =IFERROR(VLOOKUP(X16,Liste!$G$2:BH230,7,0),0) -> 0 | Z16: =IFERROR(VLOOKUP(X16,Liste!$G$2:$H230,2,0),0) -> 0 | AA16: =IFERROR(VLOOKUP(X16,Liste!$G$2:$I230,3,0),0) -> 0 | AB16: =IF(AA16="Huhn",(VLOOKUP(X16,Liste!$G$2:$L230,6,0)*1.8),VLOOKUP(X16,Liste!$G$2:$L230,6,0)) ->  | AC16: 0 | AD16: =IFERROR(VLOOKUP(X16,Liste!$G$2:BH230,7,0),0) -> 0 | AE16: =IF(AA16="Huhn",(VLOOKUP(X16,Liste!$G$2:$L230,6,0)*1.8),VLOOKUP(X16,Liste!$G$2:$L230,6,0)) ->  | AF16: =IF(VLOOKUP(AG16,Liste!$G$2:O230,9,0)<2,1,0) ->  | AG16: =IF($F$7="auffüllen",VLOOKUP(A16,Liste!A$2:G230,7,0),IF($F$7<>"auffüllen",VLOOKUP(A16,Liste!C$2:G230,5,0))) ->  | AH16: ● | AI16: =IFERROR(VLOOKUP(AG16,Liste!$G$2:BH230,7,0),0) -> 0 | AJ16: =IFERROR(VLOOKUP(AG16,Liste!$G$2:$H230,2,0),0) -> 0 | AK16: =IFERROR(VLOOKUP(AG16,Liste!$G$2:$L230,6,0),0) -> 0 | AL16: 0
A17: 9 | B17: =IF(VLOOKUP(F17,Liste!G$2:H231,2,0)=VLOOKUP(F17,Liste!G$2:P231,10,0),1,0) -> 0 | C17: =IF(VLOOKUP(F17,Liste!G$2:I231,3,0)=VLOOKUP(F17,Liste!G$2:P231,10,0),1,0) -> 0 | E17: =IF(VLOOKUP(F17,Liste!$G$2:O231,9,0)<1,1,0) -> 1 | F17: =IF($F$7="auffüllen",VLOOKUP(A17,Liste!B10:G231,6,0),IF($F$7="Obst und Gemüse",VLOOKUP(A17,Liste!D$2:G231,4,0),IF($F$7="Lidl",VLOOKUP(A17,Liste!E$2:G231,3,0)))) -> Artikel 33 | G17: ● | H17: =IF(AND(TODAY()<Liste!P$1,VLOOKUP(F17,Liste!G$2:H231,2,0)=VLOOKUP(F17,Liste!G$2:Q231,11,0)),1,0) -> 0 | I17: =IF(AND(TODAY()<Liste!P$1,VLOOKUP(F17,Liste!G$2:I231,3,0)=VLOOKUP(F17,Liste!G$2:Q231,11,0)),1,0) -> 0 | K17: =IFERROR(VLOOKUP(J17,Liste!$G$2:AT231,7,0),0) -> 0 | L17: =IFERROR(VLOOKUP(J17,Liste!$G$2:$H231,2,0),0) -> 0 | M17: =IFERROR(VLOOKUP(J17,Liste!$G$2:$I231,3,0),0) -> 0 | N17: =IF(M17="Huhn",(VLOOKUP(J17,Liste!$G$2:$L231,6,0)*1.8),VLOOKUP(J17,Liste!$G$2:$L231,6,0)) ->  | O17: 0 | R17: =IFERROR(VLOOKUP(Q17,Liste!$G$2:BA231,7,0),0) -> 0 | S17: =IFERROR(VLOOKUP(Q17,Liste!$G$2:$H231,2,0),0) -> 0 | T17: =IFERROR(VLOOKUP(Q17,Liste!$G$2:$I231,3,0),0) -> 0 | U17: =IF(T17="Huhn",(VLOOKUP(Q17,Liste!$G$2:$L231,6,0)*1.8),VLOOKUP(Q17,Liste!$G$2:$L231,6,0)) ->  | V17: 0 | Y17: =IFERROR(VLOOKUP(X17,Liste!$G$2:BH231,7,0),0) -> 0 | Z17: =IFERROR(VLOOKUP(X17,Liste!$G$2:$H231,2,0),0) -> 0 | AA17: =IFERROR(VLOOKUP(X17,Liste!$G$2:$I231,3,0),0) -> 0 | AB17: =IF(AA17="Huhn",(VLOOKUP(X17,Liste!$G$2:$L231,6,0)*1.8),VLOOKUP(X17,Liste!$G$2:$L231,6,0)) ->  | AC17: 0 | AD17: =IFERROR(VLOOKUP(X17,Liste!$G$2:BH231,7,0),0) -> 0 | AE17: =IF(AA17="Huhn",(VLOOKUP(X17,Liste!$G$2:$L231,6,0)*1.8),VLOOKUP(X17,Liste!$G$2:$L231,6,0)) ->  | AF17: =IF(VLOOKUP(AG17,Liste!$G$2:O231,9,0)<2,1,0) ->  | AG17: =IF($F$7="auffüllen",VLOOKUP(A17,Liste!A$2:G231,7,0),IF($F$7<>"auffüllen",VLOOKUP(A17,Liste!C$2:G231,5,0))) ->  | AH17: ● | AI17: =IFERROR(VLOOKUP(AG17,Liste!$G$2:BH231,7,0),0) -> 0 | AJ17: =IFERROR(VLOOKUP(AG17,Liste!$G$2:$H231,2,0),0) -> 0 | AK17: =IFERROR(VLOOKUP(AG17,Liste!$G$2:$L231,6,0),0) -> 0 | AL17: 0
A18: 10 | B18: =IF(VLOOKUP(F18,Liste!G$2:H232,2,0)=VLOOKUP(F18,Liste!G$2:P232,10,0),1,0) -> 0 | C18: =IF(VLOOKUP(F18,Liste!G$2:I232,3,0)=VLOOKUP(F18,Liste!G$2:P232,10,0),1,0) -> 0 | E18: =IF(VLOOKUP(F18,Liste!$G$2:O232,9,0)<1,1,0) -> 1 | F18: =IF($F$7="auffüllen",VLOOKUP(A18,Liste!B11:G232,6,0),IF($F$7="Obst und Gemüse",VLOOKUP(A18,Liste!D$2:G232,4,0),IF($F$7="Lidl",VLOOKUP(A18,Liste!E$2:G232,3,0)))) -> Artikel 34 | G18: ● | H18: =IF(AND(TODAY()<Liste!P$1,VLOOKUP(F18,Liste!G$2:H232,2,0)=VLOOKUP(F18,Liste!G$2:Q232,11,0)),1,0) -> 0 | I18: =IF(AND(TODAY()<Liste!P$1,VLOOKUP(F18,Liste!G$2:I232,3,0)=VLOOKUP(F18,Liste!G$2:Q232,11,0)),1,0) -> 0 | K18: =IFERROR(VLOOKUP(J18,Liste!$G$2:AT232,7,0),0) -> 0 | L18: =IFERROR(VLOOKUP(J18,Liste!$G$2:$H232,2,0),0) -> 0 | M18: =IFERROR(VLOOKUP(J18,Liste!$G$2:$I232,3,0),0) -> 0 | N18: =IF(M18="Huhn",(VLOOKUP(J18,Liste!$G$2:$L232,6,0)*1.8),VLOOKUP(J18,Liste!$G$2:$L232,6,0)) ->  | O18: 0 | R18: =IFERROR(VLOOKUP(Q18,Liste!$G$2:BA232,7,0),0) -> 0 | S18: =IFERROR(VLOOKUP(Q18,Liste!$G$2:$H232,2,0),0) -> 0 | T18: =IFERROR(VLOOKUP(Q18,Liste!$G$2:$I232,3,0),0) -> 0 | U18: =IF(T18="Huhn",(VLOOKUP(Q18,Liste!$G$2:$L232,6,0)*1.8),VLOOKUP(Q18,Liste!$G$2:$L232,6,0)) ->  | V18: 0 | Y18: =IFERROR(VLOOKUP(X18,Liste!$G$2:BH232,7,0),0) -> 0 | Z18: =IFERROR(VLOOKUP(X18,Liste!$G$2:$H232,2,0),0) -> 0 | AA18: =IFERROR(VLOOKUP(X18,Liste!$G$2:$I232,3,0),0) -> 0 | AB18: =IF(AA18="Huhn",(VLOOKUP(X18,Liste!$G$2:$L232,6,0)*1.8),VLOOKUP(X18,Liste!$G$2:$L232,6,0)) ->  | AC18: 0 | AD18: =IFERROR(VLOOKUP(X18,Liste!$G$2:BH232,7,0),0) -> 0 | AE18: =IF(AA18="Huhn",(VLOOKUP(X18,Liste!$G$2:$L232,6,0)*1.8),VLOOKUP(X18,Liste!$G$2:$L232,6,0)) ->  | AF18: =IF(VLOOKUP(AG18,Liste!$G$2:O232,9,0)<2,1,0) ->  | AG18: =IF($F$7="auffüllen",VLOOKUP(A18,Liste!A$2:G232,7,0),IF($F$7<>"auffüllen",VLOOKUP(A18,Liste!C$2:G232,5,0))) ->  | AH18: ● | AI18: =IFERROR(VLOOKUP(AG18,Liste!$G$2:BH232,7,0),0) -> 0 | AJ18: =IFERROR(VLOOKUP(AG18,Liste!$G$2:$H232,2,0),0) -> 0 | AK18: =IFERROR(VLOOKUP(AG18,Liste!$G$2:$L232,6,0),0) -> 0 | AL18: 0
A19: 11 | B19: =IF(VLOOKUP(F19,Liste!G$2:H233,2,0)=VLOOKUP(F19,Liste!G$2:P233,10,0),1,0) -> 0 | C19: =IF(VLOOKUP(F19,Liste!G$2:I233,3,0)=VLOOKUP(F19,Liste!G$2:P233,10,0),1,0) -> 0 | E19: =IF(VLOOKUP(F19,Liste!$G$2:O233,9,0)<1,1,0) -> 1 | F19: =IF($F$7="auffüllen",VLOOKUP(A19,Liste!B12:G233,6,0),IF($F$7="Obst und Gemüse",VLOOKUP(A19,Liste!D$2:G233,4,0),IF($F$7="Lidl",VLOOKUP(A19,Liste!E$2:G233,3,0)))) -> Artikel 35 | G19: ● | H19: =IF(AND(TODAY()<Liste!P$1,VLOOKUP(F19,Liste!G$2:H233,2,0)=VLOOKUP(F19,Liste!G$2:Q233,11,0)),1,0) -> 0 | I19: =IF(AND(TODAY()<Liste!P$1,VLOOKUP(F19,Liste!G$2:I233,3,0)=VLOOKUP(F19,Liste!G$2:Q233,11,0)),1,0) -> 0 | K19: =IFERROR(VLOOKUP(J19,Liste!$G$2:AT233,7,0),0) -> 0 | L19: =IFERROR(VLOOKUP(J19,Liste!$G$2:$H233,2,0),0) -> 0 | M19: =IFERROR(VLOOKUP(J19,Liste!$G$2:$I233,3,0),0) -> 0 | N19: =IF(M19="Huhn",(VLOOKUP(J19,Liste!$G$2:$L233,6,0)*1.8),VLOOKUP(J19,Liste!$G$2:$L233,6,0)) ->  | O19: 0 | R19: =IFERROR(VLOOKUP(Q19,Liste!$G$2:BA233,7,0),0) -> 0 | S19: =IFERROR(VLOOKUP(Q19,Liste!$G$2:$H233,2,0),0) -> 0 | T19: =IFERROR(VLOOKUP(Q19,Liste!$G$2:$I233,3,0),0) -> 0 | U19: =IF(T19="Huhn",(VLOOKUP(Q19,Liste!$G$2:$L233,6,0)*1.8),VLOOKUP(Q19,Liste!$G$2:$L233,6,0)) ->  | V19: 0 | Y19: =IFERROR(VLOOKUP(X19,Liste!$G$2:BH233,7,0),0) -> 0 | Z19: =IFERROR(VLOOKUP(X19,Liste!$G$2:$H233,2,0),0) -> 0 | AA19: =IFERROR(VLOOKUP(X19,Liste!$G$2:$I233,3,0),0) -> 0 | AB19: =IF(AA19="Huhn",(VLOOKUP(X19,Liste!$G$2:$L233,6,0)*1.8),VLOOKUP(X19,Liste!$G$2:$L233,6,0)) ->  | AC19: 0 | AD19: =IFERROR(VLOOKUP(X19,Liste!$G$2:BH233,7,0),0) -> 0 | AE19: =IF(AA19="Huhn",(VLOOKUP(X19,Liste!$G$2:$L233,6,0)*1.8),VLOOKUP(X19,Liste!$G$2:$L233,6,0)) ->  | AF19: =IF(VLOOKUP(AG19,Liste!$G$2:O233,9,0)<2,1,0) ->  | AG19: =IF($F$7="auffüllen",VLOOKUP(A19,Liste!A$2:G233,7,0),IF($F$7<>"auffüllen",VLOOKUP(A19,Liste!C$2:G233,5,0))) ->  | AH19: ● | AI19: =IFERROR(VLOOKUP(AG19,Liste!$G$2:BH233,7,0),0) -> 0 | AJ19: =IFERROR(VLOOKUP(AG19,Liste!$G$2:$H233,2,0),0) -> 0 | AK19: =IFERROR(VLOOKUP(AG19,Liste!$G$2:$L233,6,0),0) -> 0 | AL19: 0
A20: 12 | B20: =IF(VLOOKUP(F20,Liste!G$2:H234,2,0)=VLOOKUP(F20,Liste!G$2:P234,10,0),1,0) -> 0 | C20: =IF(VLOOKUP(F20,Liste!G$2:I234,3,0)=VLOOKUP(F20,Liste!G$2:P234,10,0),1,0) -> 0 | E20: =IF(VLOOKUP(F20,Liste!$G$2:O234,9,0)<1,1,0) -> 1 | F20: =IF($F$7="auffüllen",VLOOKUP(A20,Liste!B13:G234,6,0),IF($F$7="Obst und Gemüse",VLOOKUP(A20,Liste!D$2:G234,4,0),IF($F$7="Lidl",VLOOKUP(A20,Liste!E$2:G234,3,0)))) -> Artikel 36 | G20: ● | H20: =IF(AND(TODAY()<Liste!P$1,VLOOKUP(F20,Liste!G$2:H234,2,0)=VLOOKUP(F20,Liste!G$2:Q234,11,0)),1,0) -> 0 | I20: =IF(AND(TODAY()<Liste!P$1,VLOOKUP(F20,Liste!G$2:I234,3,0)=VLOOKUP(F20,Liste!G$2:Q234,11,0)),1,0) -> 0 | K20: =IFERROR(VLOOKUP(J20,Liste!$G$2:AT234,7,0),0) -> 0 | L20: =IFERROR(VLOOKUP(J20,Liste!$G$2:$H234,2,0),0) -> 0 | M20: =IFERROR(VLOOKUP(J20,Liste!$G$2:$I234,3,0),0) -> 0 | N20: =IF(M20="Huhn",(VLOOKUP(J20,Liste!$G$2:$L234,6,0)*1.8),VLOOKUP(J20,Liste!$G$2:$L234,6,0)) ->  | O20: 0 | R20: =IFERROR(VLOOKUP(Q20,Liste!$G$2:BA234,7,0),0) -> 0 | S20: =IFERROR(VLOOKUP(Q20,Liste!$G$2:$H234,2,0),0) -> 0 | T20: =IFERROR(VLOOKUP(Q20,Liste!$G$2:$I234,3,0),0) -> 0 | U20: =IF(T20="Huhn",(VLOOKUP(Q20,Liste!$G$2:$L234,6,0)*1.8),VLOOKUP(Q20,Liste!$G$2:$L234,6,0)) ->  | V20: 0 | Y20: =IFERROR(VLOOKUP(X20,Liste!$G$2:BH234,7,0),0) -> 0 | Z20: =IFERROR(VLOOKUP(X20,Liste!$G$2:$H234,2,0),0) -> 0 | AA20: =IFERROR(VLOOKUP(X20,Liste!$G$2:$I234,3,0),0) -> 0 | AB20: =IF(AA20="Huhn",(VLOOKUP(X20,Liste!$G$2:$L234,6,0)*1.8),VLOOKUP(X20,Liste!$G$2:$L234,6,0)) ->  | AC20: 0 | AD20: =IFERROR(VLOOKUP(X20,Liste!$G$2:BH234,7,0),0) -> 0 | AE20: =IF(AA20="Huhn",(VLOOKUP(X20,Liste!$G$2:$L234,6,0)*1.8),VLOOKUP(X20,Liste!$G$2:$L234,6,0)) ->  | AF20: =IF(VLOOKUP(AG20,Liste!$G$2:O234,9,0)<2,1,0) ->  | AG20: =IF($F$7="auffüllen",VLOOKUP(A20,Liste!A$2:G234,7,0),IF($F$7<>"auffüllen",VLOOKUP(A20,Liste!C$2:G234,5,0))) ->  | AH20: ● | AI20: =IFERROR(VLOOKUP(AG20,Liste!$G$2:BH234,7,0),0) -> 0 | AJ20: =IFERROR(VLOOKUP(AG20,Liste!$G$2:$H234,2,0),0) -> 0 | AK20: =IFERROR(VLOOKUP(AG20,Liste!$G$2:$L234,6,0),0) -> 0 | AL20: 0
A21: 13 | B21: =IF(VLOOKUP(F21,Liste!G$2:H235,2,0)=VLOOKUP(F21,Liste!G$2:P235,10,0),1,0) -> 0 | C21: =IF(VLOOKUP(F21,Liste!G$2:I235,3,0)=VLOOKUP(F21,Liste!G$2:P235,10,0),1,0) -> 0 | E21: =IF(VLOOKUP(F21,Liste!$G$2:O235,9,0)<1,1,0) -> 1 | F21: =IF($F$7="auffüllen",VLOOKUP(A21,Liste!B14:G235,6,0),IF($F$7="Obst und Gemüse",VLOOKUP(A21,Liste!D$2:G235,4,0),IF($F$7="Lidl",VLOOKUP(A21,Liste!E$2:G235,3,0)))) -> Artikel 37 | G21: ● | H21: =IF(AND(TODAY()<Liste!P$1,VLOOKUP(F21,Liste!G$2:H235,2,0)=VLOOKUP(F21,Liste!G$2:Q235,11,0)),1,0) -> 0 | I21: =IF(AND(TODAY()<Liste!P$1,VLOOKUP(F21,Liste!G$2:I235,3,0)=VLOOKUP(F21,Liste!G$2:Q235,11,0)),1,0) -> 0 | K21: =IFERROR(VLOOKUP(J21,Liste!$G$2:AT235,7,0),0) -> 0 | L21: =IFERROR(VLOOKUP(J21,Liste!$G$2:$H235,2,0),0) -> 0 | M21: =IFERROR(VLOOKUP(J21,Liste!$G$2:$I235,3,0),0) -> 0 | N21: =IF(M21="Huhn",(VLOOKUP(J21,Liste!$G$2:$L235,6,0)*1.8),VLOOKUP(J21,Liste!$G$2:$L235,6,0)) ->  | O21: =IF(K21>0,(K21*N21),0) -> 0 | R21: =IFERROR(VLOOKUP(Q21,Liste!$G$2:BA235,7,0),0) -> 0 | S21: =IFERROR(VLOOKUP(Q21,Liste!$G$2:$H235,2,0),0) -> 0 | T21: =IFERROR(VLOOKUP(Q21,Liste!$G$2:$I235,3,0),0) -> 0 | U21: =IF(T21="Huhn",(VLOOKUP(Q21,Liste!$G$2:$L235,6,0)*1.8),VLOOKUP(Q21,Liste!$G$2:$L235,6,0)) ->  | V21: 0 | Y21: =IFERROR(VLOOKUP(X21,Liste!$G$2:BH235,7,0),0) -> 0 | Z21: =IFERROR(VLOOKUP(X21,Liste!$G$2:$H235,2,0),0) -> 0 | AA21: =IFERROR(VLOOKUP(X21,Liste!$G$2:$I235,3,0),0) -> 0 | AB21: =IF(AA21="Huhn",(VLOOKUP(X21,Liste!$G$2:$L235,6,0)*1.8),VLOOKUP(X21,Liste!$G$2:$L235,6,0)) ->  | AC21: 0 | AD21: =IFERROR(VLOOKUP(X21,Liste!$G$2:BH235,7,0),0) -> 0 | AE21: =IF(AA21="Huhn",(VLOOKUP(X21,Liste!$G$2:$L235,6,0)*1.8),VLOOKUP(X21,Liste!$G$2:$L235,6,0)) ->  | AF21: =IF(VLOOKUP(AG21,Liste!$G$2:O235,9,0)<2,1,0) ->  | AG21: =IF($F$7="auffüllen",VLOOKUP(A21,Liste!A$2:G235,7,0),IF($F$7<>"auffüllen",VLOOKUP(A21,Liste!C$2:G235,5,0))) ->  | AH21: ● | AI21: =IFERROR(VLOOKUP(AG21,Liste!$G$2:BH235,7,0),0) -> 0 | AJ21: =IFERROR(VLOOKUP(AG21,Liste!$G$2:$H235,2,0),0) -> 0 | AK21: =IFERROR(VLOOKUP(AG21,Liste!$G$2:$L235,6,0),0) -> 0 | AL21: 0
A22: 14 | B22: =IF(VLOOKUP(F22,Liste!G$2:H236,2,0)=VLOOKUP(F22,Liste!G$2:P236,10,0),1,0) -> 0 | C22: =IF(VLOOKUP(F22,Liste!G$2:I236,3,0)=VLOOKUP(F22,Liste!G$2:P236,10,0),1,0) -> 0 | E22: =IF(VLOOKUP(F22,Liste!$G$2:O236,9,0)<1,1,0) -> 0 | F22: =IF($F$7="auffüllen",VLOOKUP(A22,Liste!B15:G236,6,0),IF($F$7="Obst und Gemüse",VLOOKUP(A22,Liste!D$2:G236,4,0),IF($F$7="Lidl",VLOOKUP(A22,Liste!E$2:G236,3,0)))) -> Artikel 40 | G22: ● | H22: =IF(AND(TODAY()<Liste!P$1,VLOOKUP(F22,Liste!G$2:H236,2,0)=VLOOKUP(F22,Liste!G$2:Q236,11,0)),1,0) -> 0 | I22: =IF(AND(TODAY()<Liste!P$1,VLOOKUP(F22,Liste!G$2:I236,3,0)=VLOOKUP(F22,Liste!G$2:Q236,11,0)),1,0) -> 0 | K22: =IFERROR(VLOOKUP(J22,Liste!$G$2:AT236,7,0),0) -> 0 | L22: =IFERROR(VLOOKUP(J22,Liste!$G$2:$H236,2,0),0) -> 0 | M22: =IFERROR(VLOOKUP(J22,Liste!$G$2:$I236,3,0),0) -> 0 | N22: =IF(M22="Huhn",(VLOOKUP(J22,Liste!$G$2:$L236,6,0)*1.8),VLOOKUP(J22,Liste!$G$2:$L236,6,0)) ->  | O22: 0 | R22: =IFERROR(VLOOKUP(Q22,Liste!$G$2:BA236,7,0),0) -> 0 | S22: =IFERROR(VLOOKUP(Q22,Liste!$G$2:$H236,2,0),0) -> 0 | T22: =IFERROR(VLOOKUP(Q22,Liste!$G$2:$I236,3,0),0) -> 0 | U22: =IF(T22="Huhn",(VLOOKUP(Q22,Liste!$G$2:$L236,6,0)*1.8),VLOOKUP(Q22,Liste!$G$2:$L236,6,0)) ->  | V22: 0 | Y22: =IFERROR(VLOOKUP(X22,Liste!$G$2:BH236,7,0),0) -> 0 | Z22: =IFERROR(VLOOKUP(X22,Liste!$G$2:$H236,2,0),0) -> 0 | AA22: =IFERROR(VLOOKUP(X22,Liste!$G$2:$I236,3,0),0) -> 0 | AB22: =IF(AA22="Huhn",(VLOOKUP(X22,Liste!$G$2:$L236,6,0)*1.8),VLOOKUP(X22,Liste!$G$2:$L236,6,0)) ->  | AC22: 0 | AD22: =IFERROR(VLOOKUP(X22,Liste!$G$2:BH236,7,0),0) -> 0 | AE22: =IF(AA22="Huhn",(VLOOKUP(X22,Liste!$G$2:$L236,6,0)*1.8),VLOOKUP(X22,Liste!$G$2:$L236,6,0)) ->  | AF22: =IF(VLOOKUP(AG22,Liste!$G$2:O236,9,0)<2,1,0) ->  | AG22: =IF($F$7="auffüllen",VLOOKUP(A22,Liste!A$2:G236,7,0),IF($F$7<>"auffüllen",VLOOKUP(A22,Liste!C$2:G236,5,0))) ->  | AH22: ● | AI22: =IFERROR(VLOOKUP(AG22,Liste!$G$2:BH236,7,0),0) -> 0 | AJ22: =IFERROR(VLOOKUP(AG22,Liste!$G$2:$H236,2,0),0) -> 0 | AK22: =IFERROR(VLOOKUP(AG22,Liste!$G$2:$L236,6,0),0) -> 0 | AL22: 0
A23: 15 | B23: =IF(VLOOKUP(F23,Liste!G$2:H237,2,0)=VLOOKUP(F23,Liste!G$2:P237,10,0),1,0) -> 0 | C23: =IF(VLOOKUP(F23,Liste!G$2:I237,3,0)=VLOOKUP(F23,Liste!G$2:P237,10,0),1,0) -> 0 | E23: =IF(VLOOKUP(F23,Liste!$G$2:O237,9,0)<1,1,0) -> 0 | F23: =IF($F$7="auffüllen",VLOOKUP(A23,Liste!B16:G237,6,0),IF($F$7="Obst und Gemüse",VLOOKUP(A23,Liste!D$2:G237,4,0),IF($F$7="Lidl",VLOOKUP(A23,Liste!E$2:G237,3,0)))) -> Artikel 45 | G23: ● | H23: =IF(AND(TODAY()<Liste!P$1,VLOOKUP(F23,Liste!G$2:H237,2,0)=VLOOKUP(F23,Liste!G$2:Q237,11,0)),1,0) -> 0 | I23: =IF(AND(TODAY()<Liste!P$1,VLOOKUP(F23,Liste!G$2:I237,3,0)=VLOOKUP(F23,Liste!G$2:Q237,11,0)),1,0) -> 0 | K23: =IFERROR(VLOOKUP(J23,Liste!$G$2:AT237,7,0),0) -> 0 | L23: =IFERROR(VLOOKUP(J23,Liste!$G$2:$H237,2,0),0) -> 0 | M23: =IFERROR(VLOOKUP(J23,Liste!$G$2:$I237,3,0),0) -> 0 | N23: =IF(M23="Huhn",(VLOOKUP(J23,Liste!$G$2:$L237,6,0)*1.8),VLOOKUP(J23,Liste!$G$2:$L237,6,0)) ->  | O23: 0 | R23: =IFERROR(VLOOKUP(Q23,Liste!$G$2:BA237,7,0),0) -> 0 | S23: =IFERROR(VLOOKUP(Q23,Liste!$G$2:$H237,2,0),0) -> 0 | T23: =IFERROR(VLOOKUP(Q23,Liste!$G$2:$I237,3,0),0) -> 0 | U23: =IF(T23="Huhn",(VLOOKUP(Q23,Liste!$G$2:$L237,6,0)*1.8),VLOOKUP(Q23,Liste!$G$2:$L237,6,0)) ->  | V23: 0 | Y23: =IFERROR(VLOOKUP(X23,Liste!$G$2:BH237,7,0),0) -> 0 | Z23: =IFERROR(VLOOKUP(X23,Liste!$G$2:$H237,2,0),0) -> 0 | AA23: =IFERROR(VLOOKUP(X23,Liste!$G$2:$I237,3,0),0) -> 0 | AB23: =IF(AA23="Huhn",(VLOOKUP(X23,Liste!$G$2:$L237,6,0)*1.8),VLOOKUP(X23,Liste!$G$2:$L237,6,0)) ->  | AC23: 0 | AD23: =IFERROR(VLOOKUP(X23,Liste!$G$2:BH237,7,0),0) -> 0 | AE23: =IF(AA23="Huhn",(VLOOKUP(X23,Liste!$G$2:$L237,6,0)*1.8),VLOOKUP(X23,Liste!$G$2:$L237,6,0)) ->  | AF23: =IF(VLOOKUP(AG23,Liste!$G$2:O237,9,0)<2,1,0) ->  | AG23: =IF($F$7="auffüllen",VLOOKUP(A23,Liste!A$2:G237,7,0),IF($F$7<>"auffüllen",VLOOKUP(A23,Liste!C$2:G237,5,0))) ->  | AH23: ● | AI23: =IFERROR(VLOOKUP(AG23,Liste!$G$2:BH237,7,0),0) -> 0 | AJ23: =IFERROR(VLOOKUP(AG23,Liste!$G$2:$H237,2,0),0) -> 0 | AK23: =IFERROR(VLOOKUP(AG23,Liste!$G$2:$L237,6,0),0) -> 0 | AL23: 0
A24: 16 | B24: =IF(VLOOKUP(F24,Liste!G$2:H238,2,0)=VLOOKUP(F24,Liste!G$2:P238,10,0),1,0) -> 0 | C24: =IF(VLOOKUP(F24,Liste!G$2:I238,3,0)=VLOOKUP(F24,Liste!G$2:P238,10,0),1,0) -> 0 | E24: =IF(VLOOKUP(F24,Liste!$G$2:O238,9,0)<1,1,0) -> 0 | F24: =IF($F$7="auffüllen",VLOOKUP(A24,Liste!B17:G238,6,0),IF($F$7="Obst und Gemüse",VLOOKUP(A24,Liste!D$2:G238,4,0),IF($F$7="Lidl",VLOOKUP(A24,Liste!E$2:G238,3,0)))) -> Artikel 82 | G24: ● | H24: =IF(AND(TODAY()<Liste!P$1,VLOOKUP(F24,Liste!G$2:H238,2,0)=VLOOKUP(F24,Liste!G$2:Q238,11,0)),1,0) -> 0 | I24: =IF(AND(TODAY()<Liste!P$1,VLOOKUP(F24,Liste!G$2:I238,3,0)=VLOOKUP(F24,Liste!G$2:Q238,11,0)),1,0) -> 0 | K24: =IFERROR(VLOOKUP(J24,Liste!$G$2:AT238,7,0),0) -> 0 | L24: =IFERROR(VLOOKUP(J24,Liste!$G$2:$H238,2,0),0) -> 0 | M24: =IFERROR(VLOOKUP(J24,Liste!$G$2:$I238,3,0),0) -> 0 | N24: =IF(M24="Huhn",(VLOOKUP(J24,Liste!$G$2:$L238,6,0)*1.8),VLOOKUP(J24,Liste!$G$2:$L238,6,0)) ->  | O24: 0 | R24: =IFERROR(VLOOKUP(Q24,Liste!$G$2:BA238,7,0),0) -> 0 | S24: =IFERROR(VLOOKUP(Q24,Liste!$G$2:$H238,2,0),0) -> 0 | T24: =IFERROR(VLOOKUP(Q24,Liste!$G$2:$I238,3,0),0) -> 0 | U24: =IF(T24="Huhn",(VLOOKUP(Q24,Liste!$G$2:$L238,6,0)*1.8),VLOOKUP(Q24,Liste!$G$2:$L238,6,0)) ->  | V24: 0 | Y24: =IFERROR(VLOOKUP(X24,Liste!$G$2:BH238,7,0),0) -> 0 | Z24: =IFERROR(VLOOKUP(X24,Liste!$G$2:$H238,2,0),0) -> 0 | AA24: =IFERROR(VLOOKUP(X24,Liste!$G$2:$I238,3,0),0) -> 0 | AB24: =IF(AA24="Huhn",(VLOOKUP(X24,Liste!$G$2:$L238,6,0)*1.8),VLOOKUP(X24,Liste!$G$2:$L238,6,0)) ->  | AC24: 0 | AD24: =IFERROR(VLOOKUP(X24,Liste!$G$2:BH238,7,0),0) -> 0 | AE24: =IF(AA24="Huhn",(VLOOKUP(X24,Liste!$G$2:$L238,6,0)*1.8),VLOOKUP(X24,Liste!$G$2:$L238,6,0)) ->  | AF24: =IF(VLOOKUP(AG24,Liste!$G$2:O238,9,0)<2,1,0) ->  | AG24: =IF($F$7="auffüllen",VLOOKUP(A24,Liste!A$2:G238,7,0),IF($F$7<>"auffüllen",VLOOKUP(A24,Liste!C$2:G238,5,0))) ->  | AH24: ● | AI24: =IFERROR(VLOOKUP(AG24,Liste!$G$2:BH238,7,0),0) -> 0 | AJ24: =IFERROR(VLOOKUP(AG24,Liste!$G$2:$H238,2,0),0) -> 0 | AK24: =IFERROR(VLOOKUP(AG24,Liste!$G$2:$L238,6,0),0) -> 0 | AL24: 0
A25: 17 | B25: =IF(VLOOKUP(F25,Liste!G$2:H239,2,0)=VLOOKUP(F25,Liste!G$2:P239,10,0),1,0) -> 0 | C25: =IF(VLOOKUP(F25,Liste!G$2:I239,3,0)=VLOOKUP(F25,Liste!G$2:P239,10,0),1,0) -> 0 | E25: =IF(VLOOKUP(F25,Liste!$G$2:O239,9,0)<1,1,0) -> 1 | F25: =IF($F$7="auffüllen",VLOOKUP(A25,Liste!B18:G239,6,0),IF($F$7="Obst und Gemüse",VLOOKUP(A25,Liste!D$2:G239,4,0),IF($F$7="Lidl",VLOOKUP(A25,Liste!E$2:G239,3,0)))) -> Artikel 86 | G25: ● | H25: =IF(AND(TODAY()<Liste!P$1,VLOOKUP(F25,Liste!G$2:H239,2,0)=VLOOKUP(F25,Liste!G$2:Q239,11,0)),1,0) -> 0 | I25: =IF(AND(TODAY()<Liste!P$1,VLOOKUP(F25,Liste!G$2:I239,3,0)=VLOOKUP(F25,Liste!G$2:Q239,11,0)),1,0) -> 0 | K25: =IFERROR(VLOOKUP(J25,Liste!$G$2:AT239,7,0),0) -> 0 | L25: =IFERROR(VLOOKUP(J25,Liste!$G$2:$H239,2,0),0) -> 0 | M25: =IFERROR(VLOOKUP(J25,Liste!$G$2:$I239,3,0),0) -> 0 | N25: =IF(M25="Huhn",(VLOOKUP(J25,Liste!$G$2:$L239,6,0)*1.8),VLOOKUP(J25,Liste!$G$2:$L239,6,0)) ->  | O25: =IF(K25>0,(K25*N25),0) -> 0 | R25: =IFERROR(VLOOKUP(Q25,Liste!$G$2:BA239,7,0),0) -> 0 | S25: =IFERROR(VLOOKUP(Q25,Liste!$G$2:$H239,2,0),0) -> 0 | T25: =IFERROR(VLOOKUP(Q25,Liste!$G$2:$I239,3,0),0) -> 0 | U25: =IF(T25="Huhn",(VLOOKUP(Q25,Liste!$G$2:$L239,6,0)*1.8),VLOOKUP(Q25,Liste!$G$2:$L239,6,0)) ->  | V25: 0 | Y25: =IFERROR(VLOOKUP(X25,Liste!$G$2:BH239,7,0),0) -> 0 | Z25: =IFERROR(VLOOKUP(X25,Liste!$G$2:$H239,2,0),0) -> 0 | AA25: =IFERROR(VLOOKUP(X25,Liste!$G$2:$I239,3,0),0) -> 0 | AB25: =IF(AA25="Huhn",(VLOOKUP(X25,Liste!$G$2:$L239,6,0)*1.8),VLOOKUP(X25,Liste!$G$2:$L239,6,0)) ->  | AC25: 0 | AD25: =IFERROR(VLOOKUP(X25,Liste!$G$2:BH239,7,0),0) -> 0 | AE25: =IF(AA25="Huhn",(VLOOKUP(X25,Liste!$G$2:$L239,6,0)*1.8),VLOOKUP(X25,Liste!$G$2:$L239,6,0)) ->  | AF25: =IF(VLOOKUP(AG25,Liste!$G$2:O239,9,0)<2,1,0) ->  | AG25: =IF($F$7="auffüllen",VLOOKUP(A25,Liste!A$2:G239,7,0),IF($F$7<>"auffüllen",VLOOKUP(A25,Liste!C$2:G239,5,0))) ->  | AH25: ● | AI25: =IFERROR(VLOOKUP(AG25,Liste!$G$2:BH239,7,0),0) -> 0 | AJ25: =IFERROR(VLOOKUP(AG25,Liste!$G$2:$H239,2,0),0) -> 0 | AK25: =IFERROR(VLOOKUP(AG25,Liste!$G$2:$L239,6,0),0) -> 0 | AL25: 0
A26: 18 | B26: =IF(VLOOKUP(F26,Liste!G$2:H240,2,0)=VLOOKUP(F26,Liste!G$2:P240,10,0),1,0) -> 0 | C26: =IF(VLOOKUP(F26,Liste!G$2:I240,3,0)=VLOOKUP(F26,Liste!G$2:P240,10,0),1,0) -> 0 | E26: =IF(VLOOKUP(F26,Liste!$G$2:O240,9,0)<1,1,0) -> 1 | F26: =IF($F$7="auffüllen",VLOOKUP(A26,Liste!B19:G240,6,0),IF($F$7="Obst und Gemüse",VLOOKUP(A26,Liste!D$2:G240,4,0),IF($F$7="Lidl",VLOOKUP(A26,Liste!E$2:G240,3,0)))) -> Artikel 87 | G26: ● | H26: =IF(AND(TODAY()<Liste!P$1,VLOOKUP(F26,Liste!G$2:H240,2,0)=VLOOKUP(F26,Liste!G$2:Q240,11,0)),1,0) -> 0 | I26: =IF(AND(TODAY()<Liste!P$1,VLOOKUP(F26,Liste!G$2:I240,3,0)=VLOOKUP(F26,Liste!G$2:Q240,11,0)),1,0) -> 0 | K26: =IFERROR(VLOOKUP(J26,Liste!$G$2:AT240,7,0),0) -> 0 | L26: =IFERROR(VLOOKUP(J26,Liste!$G$2:$H240,2,0),0) -> 0 | M26: =IFERROR(VLOOKUP(J26,Liste!$G$2:$I240,3,0),0) -> 0 | N26: =IF(M26="Huhn",(VLOOKUP(J26,Liste!$G$2:$L240,6,0)*1.8),VLOOKUP(J26,Liste!$G$2:$L240,6,0)) ->  | O26: 0 | R26: =IFERROR(VLOOKUP(Q26,Liste!$G$2:BA240,7,0),0) -> 0 | S26: =IFERROR(VLOOKUP(Q26,Liste!$G$2:$H240,2,0),0) -> 0 | T26: =IFERROR(VLOOKUP(Q26,Liste!$G$2:$I240,3,0),0) -> 0 | U26: =IF(T26="Huhn",(VLOOKUP(Q26,Liste!$G$2:$L240,6,0)*1.8),VLOOKUP(Q26,Liste!$G$2:$L240,6,0)) ->  | V26: 0 | Y26: =IFERROR(VLOOKUP(X26,Liste!$G$2:BH240,7,0),0) -> 0 | Z26: =IFERROR(VLOOKUP(X26,Liste!$G$2:$H240,2,0),0) -> 0 | AA26: =IFERROR(VLOOKUP(X26,Liste!$G$2:$I240,3,0),0) -> 0 | AB26: =IF(AA26="Huhn",(VLOOKUP(X26,Liste!$G$2:$L240,6,0)*1.8),VLOOKUP(X26,Liste!$G$2:$L240,6,0)) ->  | AC26: 0 | AD26: =IFERROR(VLOOKUP(X26,Liste!$G$2:BH240,7,0),0) -> 0 | AE26: =IF(AA26="Huhn",(VLOOKUP(X26,Liste!$G$2:$L240,6,0)*1.8),VLOOKUP(X26,Liste!$G$2:$L240,6,0)) ->  | AF26: =IF(VLOOKUP(AG26,Liste!$G$2:O240,9,0)<2,1,0) ->  | AG26: =IF($F$7="auffüllen",VLOOKUP(A26,Liste!A$2:G240,7,0),IF($F$7<>"auffüllen",VLOOKUP(A26,Liste!C$2:G240,5,0))) ->  | AH26: ● | AI26: =IFERROR(VLOOKUP(AG26,Liste!$G$2:BH240,7,0),0) -> 0 | AJ26: =IFERROR(VLOOKUP(AG26,Liste!$G$2:$H240,2,0),0) -> 0 | AK26: =IFERROR(VLOOKUP(AG26,Liste!$G$2:$L240,6,0),0) -> 0 | AL26: 0
A27: 19 | B27: =IF(VLOOKUP(F27,Liste!G$2:H241,2,0)=VLOOKUP(F27,Liste!G$2:P241,10,0),1,0) -> 0 | C27: =IF(VLOOKUP(F27,Liste!G$2:I241,3,0)=VLOOKUP(F27,Liste!G$2:P241,10,0),1,0) -> 0 | E27: =IF(VLOOKUP(F27,Liste!$G$2:O241,9,0)<1,1,0) -> 1 | F27: =IF($F$7="auffüllen",VLOOKUP(A27,Liste!B20:G241,6,0),IF($F$7="Obst und Gemüse",VLOOKUP(A27,Liste!D$2:G241,4,0),IF($F$7="Lidl",VLOOKUP(A27,Liste!E$2:G241,3,0)))) -> Artikel 88 | G27: ● | H27: =IF(AND(TODAY()<Liste!P$1,VLOOKUP(F27,Liste!G$2:H241,2,0)=VLOOKUP(F27,Liste!G$2:Q241,11,0)),1,0) -> 0 | I27: =IF(AND(TODAY()<Liste!P$1,VLOOKUP(F27,Liste!G$2:I241,3,0)=VLOOKUP(F27,Liste!G$2:Q241,11,0)),1,0) -> 0 | K27: =IFERROR(VLOOKUP(J27,Liste!$G$2:AT241,7,0),0) -> 0 | L27: =IFERROR(VLOOKUP(J27,Liste!$G$2:$H241,2,0),0) -> 0 | M27: =IFERROR(VLOOKUP(J27,Liste!$G$2:$I241,3,0),0) -> 0 | N27: =IF(M27="Huhn",(VLOOKUP(J27,Liste!$G$2:$L241,6,0)*1.8),VLOOKUP(J27,Liste!$G$2:$L241,6,0)) ->  | O27: 0 | R27: =IFERROR(VLOOKUP(Q27,Liste!$G$2:BA241,7,0),0) -> 0 | S27: =IFERROR(VLOOKUP(Q27,Liste!$G$2:$H241,2,0),0) -> 0 | T27: =IFERROR(VLOOKUP(Q27,Liste!$G$2:$I241,3,0),0) -> 0 | U27: =IF(T27="Huhn",(VLOOKUP(Q27,Liste!$G$2:$L241,6,0)*1.8),VLOOKUP(Q27,Liste!$G$2:$L241,6,0)) ->  | V27: 0 | Y27: =IFERROR(VLOOKUP(X27,Liste!$G$2:BH241,7,0),0) -> 0 | Z27: =IFERROR(VLOOKUP(X27,Liste!$G$2:$H241,2,0),0) -> 0 | AA27: =IFERROR(VLOOKUP(X27,Liste!$G$2:$I241,3,0),0) -> 0 | AB27: =IF(AA27="Huhn",(VLOOKUP(X27,Liste!$G$2:$L241,6,0)*1.8),VLOOKUP(X27,Liste!$G$2:$L241,6,0)) ->  | AC27: 0 | AD27: =IFERROR(VLOOKUP(X27,Liste!$G$2:BH241,7,0),0) -> 0 | AE27: =IF(AA27="Huhn",(VLOOKUP(X27,Liste!$G$2:$L241,6,0)*1.8),VLOOKUP(X27,Liste!$G$2:$L241,6,0)) ->  | AF27: =IF(VLOOKUP(AG27,Liste!$G$2:O241,9,0)<2,1,0) ->  | AG27: =IF($F$7="auffüllen",VLOOKUP(A27,Liste!A$2:G241,7,0),IF($F$7<>"auffüllen",VLOOKUP(A27,Liste!C$2:G241,5,0))) ->  | AH27: ● | AI27: =IFERROR(VLOOKUP(AG27,Liste!$G$2:BH241,7,0),0) -> 0 | AJ27: =IFERROR(VLOOKUP(AG27,Liste!$G$2:$H241,2,0),0) -> 0 | AK27: =IFERROR(VLOOKUP(AG27,Liste!$G$2:$L241,6,0),0) -> 0 | AL27: 0
A28: 20 | B28: =IF(VLOOKUP(F28,Liste!G$2:H242,2,0)=VLOOKUP(F28,Liste!G$2:P242,10,0),1,0) -> 0 | C28: =IF(VLOOKUP(F28,Liste!G$2:I242,3,0)=VLOOKUP(F28,Liste!G$2:P242,10,0),1,0) -> 0 | E28: =IF(VLOOKUP(F28,Liste!$G$2:O242,9,0)<1,1,0) -> 1 | F28: =IF($F$7="auffüllen",VLOOKUP(A28,Liste!B21:G242,6,0),IF($F$7="Obst und Gemüse",VLOOKUP(A28,Liste!D$2:G242,4,0),IF($F$7="Lidl",VLOOKUP(A28,Liste!E$2:G242,3,0)))) -> Artikel 89 | G28: ● | H28: =IF(AND(TODAY()<Liste!P$1,VLOOKUP(F28,Liste!G$2:H242,2,0)=VLOOKUP(F28,Liste!G$2:Q242,11,0)),1,0) -> 0 | I28: =IF(AND(TODAY()<Liste!P$1,VLOOKUP(F28,Liste!G$2:I242,3,0)=VLOOKUP(F28,Liste!G$2:Q242,11,0)),1,0) -> 0 | K28: =IFERROR(VLOOKUP(J28,Liste!$G$2:AT242,7,0),0) -> 0 | L28: =IFERROR(VLOOKUP(J28,Liste!$G$2:$H242,2,0),0) -> 0 | M28: =IFERROR(VLOOKUP(J28,Liste!$G$2:$I242,3,0),0) -> 0 | N28: =IF(M28="Huhn",(VLOOKUP(J28,Liste!$G$2:$L242,6,0)*1.8),VLOOKUP(J28,Liste!$G$2:$L242,6,0)) ->  | O28: =IF(K28>0,(K28*N28),0) -> 0 | R28: =IFERROR(VLOOKUP(Q28,Liste!$G$2:BA242,7,0),0) -> 0 | S28: =IFERROR(VLOOKUP(Q28,Liste!$G$2:$H242,2,0),0) -> 0 | T28: =IFERROR(VLOOKUP(Q28,Liste!$G$2:$I242,3,0),0) -> 0 | U28: =IF(T28="Huhn",(VLOOKUP(Q28,Liste!$G$2:$L242,6,0)*1.8),VLOOKUP(Q28,Liste!$G$2:$L242,6,0)) ->  | V28: =IF(R28>0,(R28*U28),0) -> 0 | Y28: =IFERROR(VLOOKUP(X28,Liste!$G$2:BH242,7,0),0) -> 0 | Z28: =IFERROR(VLOOKUP(X28,Liste!$G$2:$H242,2,0),0) -> 0 | AA28: =IFERROR(VLOOKUP(X28,Liste!$G$2:$I242,3,0),0) -> 0 | AB28: =IF(AA28="Huhn",(VLOOKUP(X28,Liste!$G$2:$L242,6,0)*1.8),VLOOKUP(X28,Liste!$G$2:$L242,6,0)) ->  | AC28: 0 | AD28: =IFERROR(VLOOKUP(X28,Liste!$G$2:BH242,7,0),0) -> 0 | AE28: =IF(AA28="Huhn",(VLOOKUP(X28,Liste!$G$2:$L242,6,0)*1.8),VLOOKUP(X28,Liste!$G$2:$L242,6,0)) ->  | AF28: =IF(VLOOKUP(AG28,Liste!$G$2:O242,9,0)<2,1,0) ->  | AG28: =IF($F$7="auffüllen",VLOOKUP(A28,Liste!A$2:G242,7,0),IF($F$7<>"auffüllen",VLOOKUP(A28,Liste!C$2:G242,5,0))) ->  | AH28: ● | AI28: =IFERROR(VLOOKUP(AG28,Liste!$G$2:BH242,7,0),0) -> 0 | AJ28: =IFERROR(VLOOKUP(AG28,Liste!$G$2:$H242,2,0),0) -> 0 | AK28: =IFERROR(VLOOKUP(AG28,Liste!$G$2:$L242,6,0),0) -> 0 | AL28: 0
A29: 21 | B29: =IF(VLOOKUP(F29,Liste!G$2:H243,2,0)=VLOOKUP(F29,Liste!G$2:P243,10,0),1,0) -> 0 | C29: =IF(VLOOKUP(F29,Liste!G$2:I243,3,0)=VLOOKUP(F29,Liste!G$2:P243,10,0),1,0) -> 0 | E29: =IF(VLOOKUP(F29,Liste!$G$2:O243,9,0)<1,1,0) -> 0 | F29: =IF($F$7="auffüllen",VLOOKUP(A29,Liste!B22:G243,6,0),IF($F$7="Obst und Gemüse",VLOOKUP(A29,Liste!D$2:G243,4,0),IF($F$7="Lidl",VLOOKUP(A29,Liste!E$2:G243,3,0)))) -> Artikel 102 | G29: ● | H29: =IF(AND(TODAY()<Liste!P$1,VLOOKUP(F29,Liste!G$2:H243,2,0)=VLOOKUP(F29,Liste!G$2:Q243,11,0)),1,0) -> 0 | I29: =IF(AND(TODAY()<Liste!P$1,VLOOKUP(F29,Liste!G$2:I243,3,0)=VLOOKUP(F29,Liste!G$2:Q243,11,0)),1,0) -> 0 | J29: =J5 -> 0 | O29: =IF(OR(J29="Bonus",J29="COUPON"),-500,0) -> 0 | Q29: =Q5 -> 0 | V29: =IF(OR(Q29="Bonus",Q29="COUPON"),-500,0) -> 0 | W29: ● | X29: =X5 -> 0 | AC29: =IF(OR(X29="Bonus",X29="COUPON"),-500,0) -> 0 | AF29: =IF(VLOOKUP(AG29,Liste!$G$2:O243,9,0)<2,1,0) ->  | AG29: =IF($F$7="auffüllen",VLOOKUP(A29,Liste!A$2:G243,7,0),IF($F$7<>"auffüllen",VLOOKUP(A29,Liste!C$2:G243,5,0))) ->  | AH29: ● | AI29: =IFERROR(VLOOKUP(AG29,Liste!$G$2:BH243,7,0),0) -> 0 | AJ29: =IFERROR(VLOOKUP(AG29,Liste!$G$2:$H243,2,0),0) -> 0 | AK29: =IFERROR(VLOOKUP(AG29,Liste!$G$2:$L243,6,0),0) -> 0 | AL29: =IF(AI29>0,(AI29*AK29),0) -> 0
A30: 22 | B30: =IF(VLOOKUP(F30,Liste!G$2:H244,2,0)=VLOOKUP(F30,Liste!G$2:P244,10,0),1,0) -> 0 | C30: =IF(VLOOKUP(F30,Liste!G$2:I244,3,0)=VLOOKUP(F30,Liste!G$2:P244,10,0),1,0) -> 0 | E30: =IF(VLOOKUP(F30,Liste!$G$2:O244,9,0)<1,1,0) -> 0 | F30: =IF($F$7="auffüllen",VLOOKUP(A30,Liste!B24:G244,6,0),IF($F$7="Obst und Gemüse",VLOOKUP(A30,Liste!D$2:G244,4,0),IF($F$7="Lidl",VLOOKUP(A30,Liste!E$2:G244,3,0)))) -> Artikel 117 | G30: ● | H30: =IF(AND(TODAY()<Liste!P$1,VLOOKUP(F30,Liste!G$2:H244,2,0)=VLOOKUP(F30,Liste!G$2:Q244,11,0)),1,0) -> 0 | I30: =IF(AND(TODAY()<Liste!P$1,VLOOKUP(F30,Liste!G$2:I244,3,0)=VLOOKUP(F30,Liste!G$2:Q244,11,0)),1,0) -> 0 | J30: =Liste!$G2 -> Artikel 1 | Q30: =Liste!$G2 -> Artikel 1 | X30: =Liste!$G2 -> Artikel 1
A31: 23 | B31: =IF(VLOOKUP(F31,Liste!G$2:H245,2,0)=VLOOKUP(F31,Liste!G$2:P245,10,0),1,0) -> 0 | C31: =IF(VLOOKUP(F31,Liste!G$2:I245,3,0)=VLOOKUP(F31,Liste!G$2:P245,10,0),1,0) -> 0 | E31: =IF(VLOOKUP(F31,Liste!$G$2:O245,9,0)<1,1,0) -> 1 | F31: =IF($F$7="auffüllen",VLOOKUP(A31,Liste!B25:G245,6,0),IF($F$7="Obst und Gemüse",VLOOKUP(A31,Liste!D$2:G245,4,0),IF($F$7="Lidl",VLOOKUP(A31,Liste!E$2:G245,3,0)))) -> Artikel 118 | G31: ● | H31: =IF(AND(TODAY()<Liste!P$1,VLOOKUP(F31,Liste!G$2:H245,2,0)=VLOOKUP(F31,Liste!G$2:Q245,11,0)),1,0) -> 0 | I31: =IF(AND(TODAY()<Liste!P$1,VLOOKUP(F31,Liste!G$2:I245,3,0)=VLOOKUP(F31,Liste!G$2:Q245,11,0)),1,0) -> 0 | J31: =Liste!$G3 -> Artikel 2 | Q31: =Liste!$G3 -> Artikel 2 | X31: =Liste!$G3 -> Artikel 2
A32: 24 | B32: =IF(VLOOKUP(F32,Liste!G$2:H246,2,0)=VLOOKUP(F32,Liste!G$2:P246,10,0),1,0) -> 0 | C32: =IF(VLOOKUP(F32,Liste!G$2:I246,3,0)=VLOOKUP(F32,Liste!G$2:P246,10,0),1,0) -> 0 | E32: =IF(VLOOKUP(F32,Liste!$G$2:O246,9,0)<1,1,0) -> 1 | F32: =IF($F$7="auffüllen",VLOOKUP(A32,Liste!B26:G246,6,0),IF($F$7="Obst und Gemüse",VLOOKUP(A32,Liste!D$2:G246,4,0),IF($F$7="Lidl",VLOOKUP(A32,Liste!E$2:G246,3,0)))) -> Artikel 119 | G32: ● | H32: =IF(AND(TODAY()<Liste!P$1,VLOOKUP(F32,Liste!G$2:H246,2,0)=VLOOKUP(F32,Liste!G$2:Q246,11,0)),1,0) -> 0 | I32: =IF(AND(TODAY()<Liste!P$1,VLOOKUP(F32,Liste!G$2:I246,3,0)=VLOOKUP(F32,Liste!G$2:Q246,11,0)),1,0) -> 0 | J32: =Liste!$G4 -> Artikel 3 | Q32: =Liste!$G4 -> Artikel 3 | X32: =Liste!$G4 -> Artikel 3
A33: 25 | B33: =IF(VLOOKUP(F33,Liste!G$2:H247,2,0)=VLOOKUP(F33,Liste!G$2:P247,10,0),1,0) -> 0 | C33: =IF(VLOOKUP(F33,Liste!G$2:I247,3,0)=VLOOKUP(F33,Liste!G$2:P247,10,0),1,0) -> 0 | E33: =IF(VLOOKUP(F33,Liste!$G$2:O247,9,0)<1,1,0) -> 0 | F33: =IF($F$7="auffüllen",VLOOKUP(A33,Liste!B27:G247,6,0),IF($F$7="Obst und Gemüse",VLOOKUP(A33,Liste!D$2:G247,4,0),IF($F$7="Lidl",VLOOKUP(A33,Liste!E$2:G247,3,0)))) -> Artikel 148 | G33: ● | H33: =IF(AND(TODAY()<Liste!P$1,VLOOKUP(F33,Liste!G$2:H247,2,0)=VLOOKUP(F33,Liste!G$2:Q247,11,0)),1,0) -> 0 | I33: =IF(AND(TODAY()<Liste!P$1,VLOOKUP(F33,Liste!G$2:I247,3,0)=VLOOKUP(F33,Liste!G$2:Q247,11,0)),1,0) -> 0 | J33: =Liste!$G5 -> Artikel 4 | Q33: =Liste!$G5 -> Artikel 4 | X33: =Liste!$G5 -> Artikel 4
A34: 26 | B34: =IF(VLOOKUP(F34,Liste!G$2:H248,2,0)=VLOOKUP(F34,Liste!G$2:P248,10,0),1,0) -> 0 | C34: =IF(VLOOKUP(F34,Liste!G$2:I248,3,0)=VLOOKUP(F34,Liste!G$2:P248,10,0),1,0) -> 0 | E34: =IF(VLOOKUP(F34,Liste!$G$2:O248,9,0)<1,1,0) -> 0 | F34: =IF($F$7="auffüllen",VLOOKUP(A34,Liste!B28:G248,6,0),IF($F$7="Obst und Gemüse",VLOOKUP(A34,Liste!D$2:G248,4,0),IF($F$7="Lidl",VLOOKUP(A34,Liste!E$2:G248,3,0)))) -> Artikel 150 | G34: ● | H34: =IF(AND(TODAY()<Liste!P$1,VLOOKUP(F34,Liste!G$2:H248,2,0)=VLOOKUP(F34,Liste!G$2:Q248,11,0)),1,0) -> 0 | I34: =IF(AND(TODAY()<Liste!P$1,VLOOKUP(F34,Liste!G$2:I248,3,0)=VLOOKUP(F34,Liste!G$2:Q248,11,0)),1,0) -> 0 | J34: =Liste!$G6 -> Artikel 5 | Q34: =Liste!$G6 -> Artikel 5 | X34: =Liste!$G6 -> Artikel 5
A35: 27 | B35: =IF(VLOOKUP(F35,Liste!G$2:H249,2,0)=VLOOKUP(F35,Liste!G$2:P249,10,0),1,0) -> 0 | C35: =IF(VLOOKUP(F35,Liste!G$2:I249,3,0)=VLOOKUP(F35,Liste!G$2:P249,10,0),1,0) -> 1 | E35: =IF(VLOOKUP(F35,Liste!$G$2:O249,9,0)<1,1,0) -> 0 | F35: =IF($F$7="auffüllen",VLOOKUP(A35,Liste!B29:G249,6,0),IF($F$7="Obst und Gemüse",VLOOKUP(A35,Liste!D$2:G249,4,0),IF($F$7="Lidl",VLOOKUP(A35,Liste!E$2:G249,3,0)))) -> Artikel 201 | G35: ● | H35: =IF(AND(TODAY()<Liste!P$1,VLOOKUP(F35,Liste!G$2:H249,2,0)=VLOOKUP(F35,Liste!G$2:Q249,11,0)),1,0) -> 0 | I35: =IF(AND(TODAY()<Liste!P$1,VLOOKUP(F35,Liste!G$2:I249,3,0)=VLOOKUP(F35,Liste!G$2:Q249,11,0)),1,0) -> 0 | J35: =Liste!$G7 -> Artikel 6 | Q35: =Liste!$G7 -> Artikel 6 | X35: =Liste!$G7 -> Artikel 6
A36: 28 | B36: =IF(VLOOKUP(F36,Liste!G$2:H250,2,0)=VLOOKUP(F36,Liste!G$2:P250,10,0),1,0) ->  | C36: =IF(VLOOKUP(F36,Liste!G$2:I250,3,0)=VLOOKUP(F36,Liste!G$2:P250,10,0),1,0) ->  | E36: =IF(VLOOKUP(F36,Liste!$G$2:O250,9,0)<1,1,0) ->  | F36: =IF($F$7="auffüllen",VLOOKUP(A36,Liste!B30:G250,6,0),IF($F$7="Obst und Gemüse",VLOOKUP(A36,Liste!D$2:G250,4,0),IF($F$7="Lidl",VLOOKUP(A36,Liste!E$2:G250,3,0)))) ->  | G36: ● | H36: =IF(AND(TODAY()<Liste!P$1,VLOOKUP(F36,Liste!G$2:H250,2,0)=VLOOKUP(F36,Liste!G$2:Q250,11,0)),1,0) ->  | I36: =IF(AND(TODAY()<Liste!P$1,VLOOKUP(F36,Liste!G$2:I250,3,0)=VLOOKUP(F36,Liste!G$2:Q250,11,0)),1,0) ->  | J36: =Liste!$G8 -> Artikel 7 | Q36: =Liste!$G8 -> Artikel 7 | X36: =Liste!$G8 -> Artikel 7
A37: 29 | B37: =IF(VLOOKUP(F37,Liste!G$2:H251,2,0)=VLOOKUP(F37,Liste!G$2:P251,10,0),1,0) ->  | C37: =IF(VLOOKUP(F37,Liste!G$2:I251,3,0)=VLOOKUP(F37,Liste!G$2:P251,10,0),1,0) ->  | E37: =IF(VLOOKUP(F37,Liste!$G$2:O251,9,0)<1,1,0) ->  | F37: =IF($F$7="auffüllen",VLOOKUP(A37,Liste!B31:G251,6,0),IF($F$7="Obst und Gemüse",VLOOKUP(A37,Liste!D$2:G251,4,0),IF($F$7="Lidl",VLOOKUP(A37,Liste!E$2:G251,3,0)))) ->  | G37: ● | H37: =IF(AND(TODAY()<Liste!P$1,VLOOKUP(F37,Liste!G$2:H251,2,0)=VLOOKUP(F37,Liste!G$2:Q251,11,0)),1,0) ->  | I37: =IF(AND(TODAY()<Liste!P$1,VLOOKUP(F37,Liste!G$2:I251,3,0)=VLOOKUP(F37,Liste!G$2:Q251,11,0)),1,0) ->  | J37: =Liste!$G9 -> Artikel 8 | Q37: =Liste!$G9 -> Artikel 8 | X37: =Liste!$G9 -> Artikel 8
A38: 30 | B38: =IF(VLOOKUP(F38,Liste!G$2:H252,2,0)=VLOOKUP(F38,Liste!G$2:P252,10,0),1,0) ->  | C38: =IF(VLOOKUP(F38,Liste!G$2:I252,3,0)=VLOOKUP(F38,Liste!G$2:P252,10,0),1,0) ->  | E38: =IF(VLOOKUP(F38,Liste!$G$2:O252,9,0)<1,1,0) ->  | F38: =IF($F$7="auffüllen",VLOOKUP(A38,Liste!B33:G252,6,0),IF($F$7="Obst und Gemüse",VLOOKUP(A38,Liste!D$2:G252,4,0),IF($F$7="Lidl",VLOOKUP(A38,Liste!E$2:G252,3,0)))) ->  | G38: ● | H38: =IF(AND(TODAY()<Liste!P$1,VLOOKUP(F38,Liste!G$2:H252,2,0)=VLOOKUP(F38,Liste!G$2:Q252,11,0)),1,0) ->  | I38: =IF(AND(TODAY()<Liste!P$1,VLOOKUP(F38,Liste!G$2:I252,3,0)=VLOOKUP(F38,Liste!G$2:Q252,11,0)),1,0) ->  | J38: =Liste!$G10 -> Artikel 9 | Q38: =Liste!$G10 -> Artikel 9 | X38: =Liste!$G10 -> Artikel 9
A39: 31 | B39: =IF(VLOOKUP(F39,Liste!G$2:H253,2,0)=VLOOKUP(F39,Liste!G$2:P253,10,0),1,0) ->  | C39: =IF(VLOOKUP(F39,Liste!G$2:I253,3,0)=VLOOKUP(F39,Liste!G$2:P253,10,0),1,0) ->  | E39: =IF(VLOOKUP(F39,Liste!$G$2:O253,9,0)<1,1,0) ->  | F39: =IF($F$7="auffüllen",VLOOKUP(A39,Liste!B34:G253,6,0),IF($F$7="Obst und Gemüse",VLOOKUP(A39,Liste!D$2:G253,4,0),IF($F$7="Lidl",VLOOKUP(A39,Liste!E$2:G253,3,0)))) ->  | G39: ● | H39: =IF(AND(TODAY()<Liste!P$1,VLOOKUP(F39,Liste!G$2:H253,2,0)=VLOOKUP(F39,Liste!G$2:Q253,11,0)),1,0) ->  | I39: =IF(AND(TODAY()<Liste!P$1,VLOOKUP(F39,Liste!G$2:I253,3,0)=VLOOKUP(F39,Liste!G$2:Q253,11,0)),1,0) ->  | J39: =Liste!$G11 -> Artikel 10 | Q39: =Liste!$G11 -> Artikel 10 | X39: =Liste!$G11 -> Artikel 10
A40: 32 | B40: =IF(VLOOKUP(F40,Liste!G$2:H254,2,0)=VLOOKUP(F40,Liste!G$2:P254,10,0),1,0) ->  | C40: =IF(VLOOKUP(F40,Liste!G$2:I254,3,0)=VLOOKUP(F40,Liste!G$2:P254,10,0),1,0) ->  | E40: =IF(VLOOKUP(F40,Liste!$G$2:O254,9,0)<1,1,0) ->  | F40: =IF($F$7="auffüllen",VLOOKUP(A40,Liste!B35:G254,6,0),IF($F$7="Obst und Gemüse",VLOOKUP(A40,Liste!D$2:G254,4,0),IF($F$7="Lidl",VLOOKUP(A40,Liste!E$2:G254,3,0)))) ->  | G40: ● | H40: =IF(AND(TODAY()<Liste!P$1,VLOOKUP(F40,Liste!G$2:H254,2,0)=VLOOKUP(F40,Liste!G$2:Q254,11,0)),1,0) ->  | I40: =IF(AND(TODAY()<Liste!P$1,VLOOKUP(F40,Liste!G$2:I254,3,0)=VLOOKUP(F40,Liste!G$2:Q254,11,0)),1,0) ->  | J40: =Liste!$G12 -> Artikel 11 | Q40: =Liste!$G12 -> Artikel 11 | X40: =Liste!$G12 -> Artikel 11
A41: 33 | B41: =IF(VLOOKUP(F41,Liste!G$2:H255,2,0)=VLOOKUP(F41,Liste!G$2:P255,10,0),1,0) ->  | C41: =IF(VLOOKUP(F41,Liste!G$2:I255,3,0)=VLOOKUP(F41,Liste!G$2:P255,10,0),1,0) ->  | E41: =IF(VLOOKUP(F41,Liste!$G$2:O255,9,0)<1,1,0) ->  | F41: =IF($F$7="auffüllen",VLOOKUP(A41,Liste!B36:G255,6,0),IF($F$7="Obst und Gemüse",VLOOKUP(A41,Liste!D$2:G255,4,0),IF($F$7="Lidl",VLOOKUP(A41,Liste!E$2:G255,3,0)))) ->  | G41: ● | H41: =IF(AND(TODAY()<Liste!P$1,VLOOKUP(F41,Liste!G$2:H255,2,0)=VLOOKUP(F41,Liste!G$2:Q255,11,0)),1,0) ->  | I41: =IF(AND(TODAY()<Liste!P$1,VLOOKUP(F41,Liste!G$2:I255,3,0)=VLOOKUP(F41,Liste!G$2:Q255,11,0)),1,0) ->  | J41: =Liste!$G13 -> Artikel 12 | Q41: =Liste!$G13 -> Artikel 12 | X41: =Liste!$G13 -> Artikel 12
A42: 34 | B42: =IF(VLOOKUP(F42,Liste!G$2:H256,2,0)=VLOOKUP(F42,Liste!G$2:P256,10,0),1,0) ->  | C42: =IF(VLOOKUP(F42,Liste!G$2:I256,3,0)=VLOOKUP(F42,Liste!G$2:P256,10,0),1,0) ->  | E42: =IF(VLOOKUP(F42,Liste!$G$2:O256,9,0)<1,1,0) ->  | F42: =IF($F$7="auffüllen",VLOOKUP(A42,Liste!B37:G256,6,0),IF($F$7="Obst und Gemüse",VLOOKUP(A42,Liste!D$2:G256,4,0),IF($F$7="Lidl",VLOOKUP(A42,Liste!E$2:G256,3,0)))) ->  | G42: ● | H42: =IF(AND(TODAY()<Liste!P$1,VLOOKUP(F42,Liste!G$2:H256,2,0)=VLOOKUP(F42,Liste!G$2:Q256,11,0)),1,0) ->  | I42: =IF(AND(TODAY()<Liste!P$1,VLOOKUP(F42,Liste!G$2:I256,3,0)=VLOOKUP(F42,Liste!G$2:Q256,11,0)),1,0) ->  | J42: =Liste!$G14 -> Artikel 13 | Q42: =Liste!$G14 -> Artikel 13 | X42: =Liste!$G14 -> Artikel 13
A43: 35 | B43: =IF(VLOOKUP(F43,Liste!G$2:H257,2,0)=VLOOKUP(F43,Liste!G$2:P257,10,0),1,0) ->  | C43: =IF(VLOOKUP(F43,Liste!G$2:I257,3,0)=VLOOKUP(F43,Liste!G$2:P257,10,0),1,0) ->  | E43: =IF(VLOOKUP(F43,Liste!$G$2:O257,9,0)<1,1,0) ->  | F43: =IF($F$7="auffüllen",VLOOKUP(A43,Liste!B38:G257,6,0),IF($F$7="Obst und Gemüse",VLOOKUP(A43,Liste!D$2:G257,4,0),IF($F$7="Lidl",VLOOKUP(A43,Liste!E$2:G257,3,0)))) ->  | G43: ● | H43: =IF(AND(TODAY()<Liste!P$1,VLOOKUP(F43,Liste!G$2:H257,2,0)=VLOOKUP(F43,Liste!G$2:Q257,11,0)),1,0) ->  | I43: =IF(AND(TODAY()<Liste!P$1,VLOOKUP(F43,Liste!G$2:I257,3,0)=VLOOKUP(F43,Liste!G$2:Q257,11,0)),1,0) ->  | J43: =Liste!$G15 -> Artikel 14 | Q43: =Liste!$G15 -> Artikel 14 | X43: =Liste!$G15 -> Artikel 14
A44: 36 | B44: =IF(VLOOKUP(F44,Liste!G$2:H258,2,0)=VLOOKUP(F44,Liste!G$2:P258,10,0),1,0) ->  | C44: =IF(VLOOKUP(F44,Liste!G$2:I258,3,0)=VLOOKUP(F44,Liste!G$2:P258,10,0),1,0) ->  | E44: =IF(VLOOKUP(F44,Liste!$G$2:O258,9,0)<1,1,0) ->  | F44: =IF($F$7="auffüllen",VLOOKUP(A44,Liste!B39:G258,6,0),IF($F$7="Obst und Gemüse",VLOOKUP(A44,Liste!D$2:G258,4,0),IF($F$7="Lidl",VLOOKUP(A44,Liste!E$2:G258,3,0)))) ->  | G44: ● | H44: =IF(AND(TODAY()<Liste!P$1,VLOOKUP(F44,Liste!G$2:H258,2,0)=VLOOKUP(F44,Liste!G$2:Q258,11,0)),1,0) ->  | I44: =IF(AND(TODAY()<Liste!P$1,VLOOKUP(F44,Liste!G$2:I258,3,0)=VLOOKUP(F44,Liste!G$2:Q258,11,0)),1,0) ->  | J44: =Liste!$G16 -> Artikel 15 | Q44: =Liste!$G16 -> Artikel 15 | X44: =Liste!$G16 -> Artikel 15
A45: 37 | B45: =IF(VLOOKUP(F45,Liste!G$2:H259,2,0)=VLOOKUP(F45,Liste!G$2:P259,10,0),1,0) ->  | C45: =IF(VLOOKUP(F45,Liste!G$2:I259,3,0)=VLOOKUP(F45,Liste!G$2:P259,10,0),1,0) ->  | E45: =IF(VLOOKUP(F45,Liste!$G$2:O259,9,0)<1,1,0) ->  | F45: =IF($F$7="auffüllen",VLOOKUP(A45,Liste!B40:G259,6,0),IF($F$7="Obst und Gemüse",VLOOKUP(A45,Liste!D$2:G259,4,0),IF($F$7="Lidl",VLOOKUP(A45,Liste!E$2:G259,3,0)))) ->  | G45: ● | H45: =IF(AND(TODAY()<Liste!P$1,VLOOKUP(F45,Liste!G$2:H259,2,0)=VLOOKUP(F45,Liste!G$2:Q259,11,0)),1,0) ->  | I45: =IF(AND(TODAY()<Liste!P$1,VLOOKUP(F45,Liste!G$2:I259,3,0)=VLOOKUP(F45,Liste!G$2:Q259,11,0)),1,0) ->  | J45: =Liste!$G17 -> Artikel 16 | Q45: =Liste!$G17 -> Artikel 16 | X45: =Liste!$G17 -> Artikel 16
A46: 38 | B46: =IF(VLOOKUP(F46,Liste!G$2:H260,2,0)=VLOOKUP(F46,Liste!G$2:P260,10,0),1,0) ->  | C46: =IF(VLOOKUP(F46,Liste!G$2:I260,3,0)=VLOOKUP(F46,Liste!G$2:P260,10,0),1,0) ->  | E46: =IF(VLOOKUP(F46,Liste!$G$2:O260,9,0)<1,1,0) ->  | F46: =IF($F$7="auffüllen",VLOOKUP(A46,Liste!B41:G260,6,0),IF($F$7="Obst und Gemüse",VLOOKUP(A46,Liste!D$2:G260,4,0),IF($F$7="Lidl",VLOOKUP(A46,Liste!E$2:G260,3,0)))) ->  | G46: ● | H46: =IF(AND(TODAY()<Liste!P$1,VLOOKUP(F46,Liste!G$2:H260,2,0)=VLOOKUP(F46,Liste!G$2:Q260,11,0)),1,0) ->  | I46: =IF(AND(TODAY()<Liste!P$1,VLOOKUP(F46,Liste!G$2:I260,3,0)=VLOOKUP(F46,Liste!G$2:Q260,11,0)),1,0) ->  | J46: =Liste!$G18 -> Artikel 17 | Q46: =Liste!$G18 -> Artikel 17 | X46: =Liste!$G18 -> Artikel 17
A47: 39 | B47: =IF(VLOOKUP(F47,Liste!G$2:H261,2,0)=VLOOKUP(F47,Liste!G$2:P261,10,0),1,0) ->  | C47: =IF(VLOOKUP(F47,Liste!G$2:I261,3,0)=VLOOKUP(F47,Liste!G$2:P261,10,0),1,0) ->  | E47: =IF(VLOOKUP(F47,Liste!$G$2:O261,9,0)<1,1,0) ->  | F47: =IF($F$7="auffüllen",VLOOKUP(A47,Liste!B42:G261,6,0),IF($F$7="Obst und Gemüse",VLOOKUP(A47,Liste!D$2:G261,4,0),IF($F$7="Lidl",VLOOKUP(A47,Liste!E$2:G261,3,0)))) ->  | G47: ● | H47: =IF(AND(TODAY()<Liste!P$1,VLOOKUP(F47,Liste!G$2:H261,2,0)=VLOOKUP(F47,Liste!G$2:Q261,11,0)),1,0) ->  | I47: =IF(AND(TODAY()<Liste!P$1,VLOOKUP(F47,Liste!G$2:I261,3,0)=VLOOKUP(F47,Liste!G$2:Q261,11,0)),1,0) ->  | J47: =Liste!$G19 -> Artikel 18 | Q47: =Liste!$G19 -> Artikel 18 | X47: =Liste!$G19 -> Artikel 18
A48: 40 | B48: =IF(VLOOKUP(F48,Liste!G$2:H262,2,0)=VLOOKUP(F48,Liste!G$2:P262,10,0),1,0) ->  | C48: =IF(VLOOKUP(F48,Liste!G$2:I262,3,0)=VLOOKUP(F48,Liste!G$2:P262,10,0),1,0) ->  | E48: =IF(VLOOKUP(F48,Liste!$G$2:O262,9,0)<1,1,0) ->  | F48: =IF($F$7="auffüllen",VLOOKUP(A48,Liste!B43:G262,6,0),IF($F$7="Obst und Gemüse",VLOOKUP(A48,Liste!D$2:G262,4,0),IF($F$7="Lidl",VLOOKUP(A48,Liste!E$2:G262,3,0)))) ->  | G48: ● | H48: =IF(AND(TODAY()<Liste!P$1,VLOOKUP(F48,Liste!G$2:H262,2,0)=VLOOKUP(F48,Liste!G$2:Q262,11,0)),1,0) ->  | I48: =IF(AND(TODAY()<Liste!P$1,VLOOKUP(F48,Liste!G$2:I262,3,0)=VLOOKUP(F48,Liste!G$2:Q262,11,0)),1,0) ->  | J48: =Liste!#REF! ->  | Q48: =Liste!#REF! ->  | X48: =Liste!#REF! -> 
A49: 41 | B49: =IF(VLOOKUP(F49,Liste!G$2:H263,2,0)=VLOOKUP(F49,Liste!G$2:P263,10,0),1,0) ->  | C49: =IF(VLOOKUP(F49,Liste!G$2:I263,3,0)=VLOOKUP(F49,Liste!G$2:P263,10,0),1,0) ->  | E49: =IF(VLOOKUP(F49,Liste!$G$2:O263,9,0)<1,1,0) ->  | F49: =IF($F$7="auffüllen",VLOOKUP(A49,Liste!B44:G263,6,0),IF($F$7="Obst und Gemüse",VLOOKUP(A49,Liste!D$2:G263,4,0),IF($F$7="Lidl",VLOOKUP(A49,Liste!E$2:G263,3,0)))) ->  | G49: ● | H49: =IF(AND(TODAY()<Liste!P$1,VLOOKUP(F49,Liste!G$2:H263,2,0)=VLOOKUP(F49,Liste!G$2:Q263,11,0)),1,0) ->  | I49: =IF(AND(TODAY()<Liste!P$1,VLOOKUP(F49,Liste!G$2:I263,3,0)=VLOOKUP(F49,Liste!G$2:Q263,11,0)),1,0) ->  | J49: =Liste!$G20 -> Artikel 19 | Q49: =Liste!$G20 -> Artikel 19 | X49: =Liste!$G20 -> Artikel 19
A50: 42 | B50: =IF(VLOOKUP(F50,Liste!G$2:H264,2,0)=VLOOKUP(F50,Liste!G$2:P264,10,0),1,0) ->  | C50: =IF(VLOOKUP(F50,Liste!G$2:I264,3,0)=VLOOKUP(F50,Liste!G$2:P264,10,0),1,0) ->  | E50: =IF(VLOOKUP(F50,Liste!$G$2:O264,9,0)<1,1,0) ->  | F50: =IF($F$7="auffüllen",VLOOKUP(A50,Liste!B46:G264,6,0),IF($F$7="Obst und Gemüse",VLOOKUP(A50,Liste!D$2:G264,4,0),IF($F$7="Lidl",VLOOKUP(A50,Liste!E$2:G264,3,0)))) ->  | G50: ● | H50: =IF(AND(TODAY()<Liste!P$1,VLOOKUP(F50,Liste!G$2:H264,2,0)=VLOOKUP(F50,Liste!G$2:Q264,11,0)),1,0) ->  | I50: =IF(AND(TODAY()<Liste!P$1,VLOOKUP(F50,Liste!G$2:I264,3,0)=VLOOKUP(F50,Liste!G$2:Q264,11,0)),1,0) ->  | J50: =Liste!$G21 -> Artikel 20 | Q50: =Liste!$G21 -> Artikel 20 | X50: =Liste!$G21 -> Artikel 20
A51: 43 | B51: =IF(VLOOKUP(F51,Liste!G$2:H265,2,0)=VLOOKUP(F51,Liste!G$2:P265,10,0),1,0) ->  | C51: =IF(VLOOKUP(F51,Liste!G$2:I265,3,0)=VLOOKUP(F51,Liste!G$2:P265,10,0),1,0) ->  | E51: =IF(VLOOKUP(F51,Liste!$G$2:O265,9,0)<1,1,0) ->  | F51: =IF($F$7="auffüllen",VLOOKUP(A51,Liste!B47:G265,6,0),IF($F$7="Obst und Gemüse",VLOOKUP(A51,Liste!D$2:G265,4,0),IF($F$7="Lidl",VLOOKUP(A51,Liste!E$2:G265,3,0)))) ->  | G51: ● | H51: =IF(AND(TODAY()<Liste!P$1,VLOOKUP(F51,Liste!G$2:H265,2,0)=VLOOKUP(F51,Liste!G$2:Q265,11,0)),1,0) ->  | I51: =IF(AND(TODAY()<Liste!P$1,VLOOKUP(F51,Liste!G$2:I265,3,0)=VLOOKUP(F51,Liste!G$2:Q265,11,0)),1,0) ->  | J51: =Liste!$G22 -> Artikel 21 | Q51: =Liste!$G22 -> Artikel 21 | X51: =Liste!$G22 -> Artikel 21
A52: 44 | B52: =IF(VLOOKUP(F52,Liste!G$2:H266,2,0)=VLOOKUP(F52,Liste!G$2:P266,10,0),1,0) ->  | C52: =IF(VLOOKUP(F52,Liste!G$2:I266,3,0)=VLOOKUP(F52,Liste!G$2:P266,10,0),1,0) ->  | E52: =IF(VLOOKUP(F52,Liste!$G$2:O266,9,0)<1,1,0) ->  | F52: =IF($F$7="auffüllen",VLOOKUP(A52,Liste!B48:G266,6,0),IF($F$7="Obst und Gemüse",VLOOKUP(A52,Liste!D$2:G266,4,0),IF($F$7="Lidl",VLOOKUP(A52,Liste!E$2:G266,3,0)))) ->  | G52: ● | H52: =IF(AND(TODAY()<Liste!P$1,VLOOKUP(F52,Liste!G$2:H266,2,0)=VLOOKUP(F52,Liste!G$2:Q266,11,0)),1,0) ->  | I52: =IF(AND(TODAY()<Liste!P$1,VLOOKUP(F52,Liste!G$2:I266,3,0)=VLOOKUP(F52,Liste!G$2:Q266,11,0)),1,0) ->  | J52: =Liste!$G23 -> Artikel 22 | Q52: =Liste!$G23 -> Artikel 22 | X52: =Liste!$G23 -> Artikel 22
A53: 45 | B53: =IF(VLOOKUP(F53,Liste!G$2:H267,2,0)=VLOOKUP(F53,Liste!G$2:P267,10,0),1,0) ->  | C53: =IF(VLOOKUP(F53,Liste!G$2:I267,3,0)=VLOOKUP(F53,Liste!G$2:P267,10,0),1,0) ->  | E53: =IF(VLOOKUP(F53,Liste!$G$2:O267,9,0)<1,1,0) ->  | F53: =IF($F$7="auffüllen",VLOOKUP(A53,Liste!B49:G267,6,0),IF($F$7="Obst und Gemüse",VLOOKUP(A53,Liste!D$2:G267,4,0),IF($F$7="Lidl",VLOOKUP(A53,Liste!E$2:G267,3,0)))) ->  | G53: ● | H53: =IF(AND(TODAY()<Liste!P$1,VLOOKUP(F53,Liste!G$2:H267,2,0)=VLOOKUP(F53,Liste!G$2:Q267,11,0)),1,0) ->  | I53: =IF(AND(TODAY()<Liste!P$1,VLOOKUP(F53,Liste!G$2:I267,3,0)=VLOOKUP(F53,Liste!G$2:Q267,11,0)),1,0) ->  | J53: =Liste!$G24 -> Artikel 23 | Q53: =Liste!$G24 -> Artikel 23 | X53: =Liste!$G24 -> Artikel 23
A54: 46 | B54: =IF(VLOOKUP(F54,Liste!G$2:H268,2,0)=VLOOKUP(F54,Liste!G$2:P268,10,0),1,0) ->  | C54: =IF(VLOOKUP(F54,Liste!G$2:I268,3,0)=VLOOKUP(F54,Liste!G$2:P268,10,0),1,0) ->  | E54: =IF(VLOOKUP(F54,Liste!$G$2:O268,9,0)<1,1,0) ->  | F54: =IF($F$7="auffüllen",VLOOKUP(A54,Liste!B50:G268,6,0),IF($F$7="Obst und Gemüse",VLOOKUP(A54,Liste!D$2:G268,4,0),IF($F$7="Lidl",VLOOKUP(A54,Liste!E$2:G268,3,0)))) ->  | G54: ● | H54: =IF(AND(TODAY()<Liste!P$1,VLOOKUP(F54,Liste!G$2:H268,2,0)=VLOOKUP(F54,Liste!G$2:Q268,11,0)),1,0) ->  | I54: =IF(AND(TODAY()<Liste!P$1,VLOOKUP(F54,Liste!G$2:I268,3,0)=VLOOKUP(F54,Liste!G$2:Q268,11,0)),1,0) ->  | J54: =Liste!$G25 -> Artikel 24 | Q54: =Liste!$G25 -> Artikel 24 | X54: =Liste!$G25 -> Artikel 24
A55: 47 | B55: =IF(VLOOKUP(F55,Liste!G$2:H269,2,0)=VLOOKUP(F55,Liste!G$2:P269,10,0),1,0) ->  | C55: =IF(VLOOKUP(F55,Liste!G$2:I269,3,0)=VLOOKUP(F55,Liste!G$2:P269,10,0),1,0) ->  | E55: =IF(VLOOKUP(F55,Liste!$G$2:O269,9,0)<1,1,0) ->  | F55: =IF($F$7="auffüllen",VLOOKUP(A55,Liste!B51:G269,6,0),IF($F$7="Obst und Gemüse",VLOOKUP(A55,Liste!D$2:G269,4,0),IF($F$7="Lidl",VLOOKUP(A55,Liste!E$2:G269,3,0)))) ->  | G55: ● | H55: =IF(AND(TODAY()<Liste!P$1,VLOOKUP(F55,Liste!G$2:H269,2,0)=VLOOKUP(F55,Liste!G$2:Q269,11,0)),1,0) ->  | I55: =IF(AND(TODAY()<Liste!P$1,VLOOKUP(F55,Liste!G$2:I269,3,0)=VLOOKUP(F55,Liste!G$2:Q269,11,0)),1,0) ->  | J55: =Liste!$G26 -> Artikel 25 | Q55: =Liste!$G26 -> Artikel 25 | X55: =Liste!$G26 -> Artikel 25
A56: 48 | B56: =IF(VLOOKUP(F56,Liste!G$2:H270,2,0)=VLOOKUP(F56,Liste!G$2:P270,10,0),1,0) ->  | C56: =IF(VLOOKUP(F56,Liste!G$2:I270,3,0)=VLOOKUP(F56,Liste!G$2:P270,10,0),1,0) ->  | E56: =IF(VLOOKUP(F56,Liste!$G$2:O270,9,0)<1,1,0) ->  | F56: =IF($F$7="auffüllen",VLOOKUP(A56,Liste!B52:G270,6,0),IF($F$7="Obst und Gemüse",VLOOKUP(A56,Liste!D$2:G270,4,0),IF($F$7="Lidl",VLOOKUP(A56,Liste!E$2:G270,3,0)))) ->  | G56: ● | H56: =IF(AND(TODAY()<Liste!P$1,VLOOKUP(F56,Liste!G$2:H270,2,0)=VLOOKUP(F56,Liste!G$2:Q270,11,0)),1,0) ->  | I56: =IF(AND(TODAY()<Liste!P$1,VLOOKUP(F56,Liste!G$2:I270,3,0)=VLOOKUP(F56,Liste!G$2:Q270,11,0)),1,0) ->  | J56: =Liste!$G27 -> Artikel 26 | Q56: =Liste!$G27 -> Artikel 26 | X56: =Liste!$G27 -> Artikel 26
A57: 49 | B57: =IF(VLOOKUP(F57,Liste!G$2:H271,2,0)=VLOOKUP(F57,Liste!G$2:P271,10,0),1,0) ->  | C57: =IF(VLOOKUP(F57,Liste!G$2:I271,3,0)=VLOOKUP(F57,Liste!G$2:P271,10,0),1,0) ->  | E57: =IF(VLOOKUP(F57,Liste!$G$2:O271,9,0)<1,1,0) ->  | F57: =IF($F$7="auffüllen",VLOOKUP(A57,Liste!B53:G271,6,0),IF($F$7="Obst und Gemüse",VLOOKUP(A57,Liste!D$2:G271,4,0),IF($F$7="Lidl",VLOOKUP(A57,Liste!E$2:G271,3,0)))) ->  | G57: ● | H57: =IF(AND(TODAY()<Liste!P$1,VLOOKUP(F57,Liste!G$2:H271,2,0)=VLOOKUP(F57,Liste!G$2:Q271,11,0)),1,0) ->  | I57: =IF(AND(TODAY()<Liste!P$1,VLOOKUP(F57,Liste!G$2:I271,3,0)=VLOOKUP(F57,Liste!G$2:Q271,11,0)),1,0) ->  | J57: =Liste!$G28 -> Artikel 27 | Q57: =Liste!$G28 -> Artikel 27 | X57: =Liste!$G28 -> Artikel 27
A58: 50 | B58: =IF(VLOOKUP(F58,Liste!G$2:H272,2,0)=VLOOKUP(F58,Liste!G$2:P272,10,0),1,0) ->  | C58: =IF(VLOOKUP(F58,Liste!G$2:I272,3,0)=VLOOKUP(F58,Liste!G$2:P272,10,0),1,0) ->  | E58: =IF(VLOOKUP(F58,Liste!$G$2:O272,9,0)<1,1,0) ->  | F58: =IF($F$7="auffüllen",VLOOKUP(A58,Liste!B54:G272,6,0),IF($F$7="Obst und Gemüse",VLOOKUP(A58,Liste!D$2:G272,4,0),IF($F$7="Lidl",VLOOKUP(A58,Liste!E$2:G272,3,0)))) ->  | G58: ● | H58: =IF(AND(TODAY()<Liste!P$1,VLOOKUP(F58,Liste!G$2:H272,2,0)=VLOOKUP(F58,Liste!G$2:Q272,11,0)),1,0) ->  | I58: =IF(AND(TODAY()<Liste!P$1,VLOOKUP(F58,Liste!G$2:I272,3,0)=VLOOKUP(F58,Liste!G$2:Q272,11,0)),1,0) ->  | J58: =Liste!$G29 -> Artikel 28 | Q58: =Liste!$G29 -> Artikel 28 | X58: =Liste!$G29 -> Artikel 28
A59: 51 | B59: =IF(VLOOKUP(F59,Liste!G$2:H273,2,0)=VLOOKUP(F59,Liste!G$2:P273,10,0),1,0) ->  | C59: =IF(VLOOKUP(F59,Liste!G$2:I273,3,0)=VLOOKUP(F59,Liste!G$2:P273,10,0),1,0) ->  | E59: =IF(VLOOKUP(F59,Liste!$G$2:O273,9,0)<1,1,0) ->  | H59: =IF(AND(TODAY()<Liste!P$1,VLOOKUP(F59,Liste!G$2:H273,2,0)=VLOOKUP(F59,Liste!G$2:Q273,11,0)),1,0) ->  | I59: =IF(AND(TODAY()<Liste!P$1,VLOOKUP(F59,Liste!G$2:I273,3,0)=VLOOKUP(F59,Liste!G$2:Q273,11,0)),1,0) ->  | J59: =Liste!$G30 -> Artikel 29 | Q59: =Liste!$G30 -> Artikel 29 | X59: =Liste!$G30 -> Artikel 29
J60: =Liste!$G31 -> Artikel 30 | Q60: =Liste!$G31 -> Artikel 30 | X60: =Liste!$G31 -> Artikel 30
J61: =Liste!$G32 -> Artikel 31 | Q61: =Liste!$G32 -> Artikel 31 | X61: =Liste!$G32 -> Artikel 31
J62: =Liste!$G33 -> Artikel 32 | Q62: =Liste!$G33 -> Artikel 32 | X62: =Liste!$G33 -> Artikel 32
J63: =Liste!$G34 -> Artikel 33 | Q63: =Liste!$G34 -> Artikel 33 | X63: =Liste!$G34 -> Artikel 33
J64: =Liste!$G35 -> Artikel 34 | Q64: =Liste!$G35 -> Artikel 34 | X64: =Liste!$G35 -> Artikel 34
J65: =Liste!$G36 -> Artikel 35 | Q65: =Liste!$G36 -> Artikel 35 | X65: =Liste!$G36 -> Artikel 35
J66: =Liste!$G37 -> Artikel 36 | Q66: =Liste!$G37 -> Artikel 36 | X66: =Liste!$G37 -> Artikel 36
J67: =Liste!$G38 -> Artikel 37 | Q67: =Liste!$G38 -> Artikel 37 | X67: =Liste!$G38 -> Artikel 37
J68: =Liste!$G39 -> Artikel 38 | Q68: =Liste!$G39 -> Artikel 38 | X68: =Liste!$G39 -> Artikel 38
J69: =Liste!$G40 -> Artikel 39 | Q69: =Liste!$G40 -> Artikel 39 | X69: =Liste!$G40 -> Artikel 39
J70: =Liste!$G41 -> Artikel 40 | Q70: =Liste!$G41 -> Artikel 40 | X70: =Liste!$G41 -> Artikel 40
J71: =Liste!$G42 -> Artikel 41 | Q71: =Liste!$G42 -> Artikel 41 | X71: =Liste!$G42 -> Artikel 41
J72: =Liste!$G43 -> Artikel 42 | Q72: =Liste!$G43 -> Artikel 42 | X72: =Liste!$G43 -> Artikel 42
J73: =Liste!$G44 -> Artikel 43 | Q73: =Liste!$G44 -> Artikel 43 | X73: =Liste!$G44 -> Artikel 43
J74: =Liste!$G45 -> Artikel 44 | Q74: =Liste!$G45 -> Artikel 44 | X74: =Liste!$G45 -> Artikel 44
J75: =Liste!$G46 -> Artikel 45 | Q75: =Liste!$G46 -> Artikel 45 | X75: =Liste!$G46 -> Artikel 45
J76: =Liste!$G47 -> Artikel 46 | Q76: =Liste!$G47 -> Artikel 46 | X76: =Liste!$G47 -> Artikel 46
J77: =Liste!$G48 -> Artikel 47 | Q77: =Liste!$G48 -> Artikel 47 | X77: =Liste!$G48 -> Artikel 47
J78: =Liste!$G49 -> Artikel 48 | Q78: =Liste!$G49 -> Artikel 48 | X78: =Liste!$G49 -> Artikel 48
J79: =Liste!$G50 -> Artikel 49 | Q79: =Liste!$G50 -> Artikel 49 | X79: =Liste!$G50 -> Artikel 49
J80: =Liste!$G51 -> Artikel 50 | Q80: =Liste!$G51 -> Artikel 50 | X80: =Liste!$G51 -> Artikel 50
J81: =Liste!$G52 -> Artikel 51 | Q81: =Liste!$G52 -> Artikel 51 | X81: =Liste!$G52 -> Artikel 51
J82: =Liste!$G53 -> Artikel 52 | Q82: =Liste!$G53 -> Artikel 52 | X82: =Liste!$G53 -> Artikel 52
J83: =Liste!$G54 -> Artikel 53 | Q83: =Liste!$G54 -> Artikel 53 | X83: =Liste!$G54 -> Artikel 53
J84: =Liste!$G55 -> Artikel 54 | Q84: =Liste!$G55 -> Artikel 54 | X84: =Liste!$G55 -> Artikel 54
J85: =Liste!$G56 -> Artikel 55 | Q85: =Liste!$G56 -> Artikel 55 | X85: =Liste!$G56 -> Artikel 55
J86: =Liste!$G57 -> Artikel 56 | Q86: =Liste!$G57 -> Artikel 56 | X86: =Liste!$G57 -> Artikel 56
J87: =Liste!$G58 -> Artikel 57 | Q87: =Liste!$G58 -> Artikel 57 | X87: =Liste!$G58 -> Artikel 57
J88: =Liste!$G59 -> Artikel 58 | Q88: =Liste!$G59 -> Artikel 58 | X88: =Liste!$G59 -> Artikel 58
J89: =Liste!$G60 -> Artikel 59 | Q89: =Liste!$G60 -> Artikel 59 | X89: =Liste!$G60 -> Artikel 59
J90: =Liste!$G61 -> Artikel 60 | Q90: =Liste!$G61 -> Artikel 60 | X90: =Liste!$G61 -> Artikel 60
J91: =Liste!$G62 -> Artikel 61 | Q91: =Liste!$G62 -> Artikel 61 | X91: =Liste!$G62 -> Artikel 61
J92: =Liste!$G63 -> Artikel 62 | Q92: =Liste!$G63 -> Artikel 62 | X92: =Liste!$G63 -> Artikel 62
J93: =Liste!$G64 -> Artikel 63 | Q93: =Liste!$G64 -> Artikel 63 | X93: =Liste!$G64 -> Artikel 63
J94: =Liste!$G65 -> Artikel 64 | Q94: =Liste!$G65 -> Artikel 64 | X94: =Liste!$G65 -> Artikel 64
J95: =Liste!$G66 -> Artikel 65 | Q95: =Liste!$G66 -> Artikel 65 | X95: =Liste!$G66 -> Artikel 65
J96: =Liste!$G67 -> Artikel 66 | Q96: =Liste!$G67 -> Artikel 66 | X96: =Liste!$G67 -> Artikel 66
J97: =Liste!$G68 -> Artikel 67 | Q97: =Liste!$G68 -> Artikel 67 | X97: =Liste!$G68 -> Artikel 67
J98: =Liste!$G69 -> Artikel 68 | Q98: =Liste!$G69 -> Artikel 68 | X98: =Liste!$G69 -> Artikel 68
J99: =Liste!$G70 -> Artikel 69 | Q99: =Liste!$G70 -> Artikel 69 | X99: =Liste!$G70 -> Artikel 69
J100: =Liste!$G71 -> Artikel 70 | Q100: =Liste!$G71 -> Artikel 70 | X100: =Liste!$G71 -> Artikel 70
J101: =Liste!$G72 -> Artikel 71 | Q101: =Liste!$G72 -> Artikel 71 | X101: =Liste!$G72 -> Artikel 71
J102: =Liste!$G73 -> Artikel 72 | Q102: =Liste!$G73 -> Artikel 72 | X102: =Liste!$G73 -> Artikel 72
J103: =Liste!$G74 -> Artikel 73 | Q103: =Liste!$G74 -> Artikel 73 | X103: =Liste!$G74 -> Artikel 73
J104: =Liste!$G75 -> Artikel 74 | Q104: =Liste!$G75 -> Artikel 74 | X104: =Liste!$G75 -> Artikel 74
J105: =Liste!$G76 -> Artikel 75 | Q105: =Liste!$G76 -> Artikel 75 | X105: =Liste!$G76 -> Artikel 75
J106: =Liste!$G77 -> Artikel 76 | Q106: =Liste!$G77 -> Artikel 76 | X106: =Liste!$G77 -> Artikel 76
J107: =Liste!$G78 -> Artikel 77 | Q107: =Liste!$G78 -> Artikel 77 | X107: =Liste!$G78 -> Artikel 77
J108: =Liste!$G79 -> Artikel 78 | Q108: =Liste!$G79 -> Artikel 78 | X108: =Liste!$G79 -> Artikel 78
J109: =Liste!$G80 -> Artikel 79 | Q109: =Liste!$G80 -> Artikel 79 | X109: =Liste!$G80 -> Artikel 79
J110: =Liste!$G81 -> Artikel 80 | Q110: =Liste!$G81 -> Artikel 80 | X110: =Liste!$G81 -> Artikel 80
J111: =Liste!$G82 -> Artikel 81 | Q111: =Liste!$G82 -> Artikel 81 | X111: =Liste!$G82 -> Artikel 81
J112: =Liste!$G83 -> Artikel 82 | Q112: =Liste!$G83 -> Artikel 82 | X112: =Liste!$G83 -> Artikel 82
J113: =Liste!$G84 -> Artikel 83 | Q113: =Liste!$G84 -> Artikel 83 | X113: =Liste!$G84 -> Artikel 83
J114: =Liste!$G85 -> Artikel 84 | Q114: =Liste!$G85 -> Artikel 84 | X114: =Liste!$G85 -> Artikel 84
J115: =Liste!$G86 -> Artikel 85 | Q115: =Liste!$G86 -> Artikel 85 | X115: =Liste!$G86 -> Artikel 85
J116: =Liste!$G87 -> Artikel 86 | Q116: =Liste!$G87 -> Artikel 86 | X116: =Liste!$G87 -> Artikel 86
J117: =Liste!$G88 -> Artikel 87 | Q117: =Liste!$G88 -> Artikel 87 | X117: =Liste!$G88 -> Artikel 87
J118: =Liste!$G89 -> Artikel 88 | Q118: =Liste!$G89 -> Artikel 88 | X118: =Liste!$G89 -> Artikel 88
J119: =Liste!$G90 -> Artikel 89 | Q119: =Liste!$G90 -> Artikel 89 | X119: =Liste!$G90 -> Artikel 89
J120: =Liste!$G91 -> Artikel 90 | Q120: =Liste!$G91 -> Artikel 90 | X120: =Liste!$G91 -> Artikel 90
J121: =Liste!$G92 -> Artikel 91 | Q121: =Liste!$G92 -> Artikel 91 | X121: =Liste!$G92 -> Artikel 91
J122: =Liste!$G93 -> Artikel 92 | Q122: =Liste!$G93 -> Artikel 92 | X122: =Liste!$G93 -> Artikel 92
J123: =Liste!$G94 -> Artikel 93 | Q123: =Liste!$G94 -> Artikel 93 | X123: =Liste!$G94 -> Artikel 93
J124: =Liste!$G95 -> Artikel 94 | Q124: =Liste!$G95 -> Artikel 94 | X124: =Liste!$G95 -> Artikel 94
J125: =Liste!$G96 -> Artikel 95 | Q125: =Liste!$G96 -> Artikel 95 | X125: =Liste!$G96 -> Artikel 95
J126: =Liste!$G97 -> Artikel 96 | Q126: =Liste!$G97 -> Artikel 96 | X126: =Liste!$G97 -> Artikel 96
J127: =Liste!$G98 -> Artikel 97 | Q127: =Liste!$G98 -> Artikel 97 | X127: =Liste!$G98 -> Artikel 97
J128: =Liste!$G99 -> Artikel 98 | Q128: =Liste!$G99 -> Artikel 98 | X128: =Liste!$G99 -> Artikel 98
J129: =Liste!$G100 -> Artikel 99 | Q129: =Liste!$G100 -> Artikel 99 | X129: =Liste!$G100 -> Artikel 99
J130: =Liste!$G101 -> Artikel 100 | Q130: =Liste!$G101 -> Artikel 100 | X130: =Liste!$G101 -> Artikel 100
J131: =Liste!$G102 -> Artikel 101 | Q131: =Liste!$G102 -> Artikel 101 | X131: =Liste!$G102 -> Artikel 101
J132: =Liste!$G103 -> Artikel 102 | Q132: =Liste!$G103 -> Artikel 102 | X132: =Liste!$G103 -> Artikel 102
J133: =Liste!$G104 -> Artikel 103 | Q133: =Liste!$G104 -> Artikel 103 | X133: =Liste!$G104 -> Artikel 103
J134: =Liste!$G105 -> Artikel 104 | Q134: =Liste!$G105 -> Artikel 104 | X134: =Liste!$G105 -> Artikel 104
J135: =Liste!$G106 -> Artikel 105 | Q135: =Liste!$G106 -> Artikel 105 | X135: =Liste!$G106 -> Artikel 105
J136: =Liste!$G107 -> Artikel 106 | Q136: =Liste!$G107 -> Artikel 106 | X136: =Liste!$G107 -> Artikel 106
J137: =Liste!$G108 -> Artikel 107 | Q137: =Liste!$G108 -> Artikel 107 | X137: =Liste!$G108 -> Artikel 107
J138: =Liste!$G109 -> Artikel 108 | Q138: =Liste!$G109 -> Artikel 108 | X138: =Liste!$G109 -> Artikel 108
J139: =Liste!$G110 -> Artikel 109 | Q139: =Liste!$G110 -> Artikel 109 | X139: =Liste!$G110 -> Artikel 109
J140: =Liste!$G111 -> Artikel 110 | Q140: =Liste!$G111 -> Artikel 110 | X140: =Liste!$G111 -> Artikel 110
J141: =Liste!$G112 -> Artikel 111 | Q141: =Liste!$G112 -> Artikel 111 | X141: =Liste!$G112 -> Artikel 111
J142: =Liste!$G113 -> Artikel 112 | Q142: =Liste!$G113 -> Artikel 112 | X142: =Liste!$G113 -> Artikel 112
J143: =Liste!$G114 -> Artikel 113 | Q143: =Liste!$G114 -> Artikel 113 | X143: =Liste!$G114 -> Artikel 113
J144: =Liste!$G115 -> Artikel 114 | Q144: =Liste!$G115 -> Artikel 114 | X144: =Liste!$G115 -> Artikel 114
J145: =Liste!$G116 -> Artikel 115 | Q145: =Liste!$G116 -> Artikel 115 | X145: =Liste!$G116 -> Artikel 115
J146: =Liste!$G117 -> Artikel 116 | Q146: =Liste!$G117 -> Artikel 116 | X146: =Liste!$G117 -> Artikel 116
J147: =Liste!$G118 -> Artikel 117 | Q147: =Liste!$G118 -> Artikel 117 | X147: =Liste!$G118 -> Artikel 117
J148: =Liste!$G119 -> Artikel 118 | Q148: =Liste!$G119 -> Artikel 118 | X148: =Liste!$G119 -> Artikel 118
J149: =Liste!$G120 -> Artikel 119 | Q149: =Liste!$G120 -> Artikel 119 | X149: =Liste!$G120 -> Artikel 119
J150: =Liste!$G121 -> Artikel 120 | Q150: =Liste!$G121 -> Artikel 120 | X150: =Liste!$G121 -> Artikel 120
J151: =Liste!$G122 -> Artikel 121 | Q151: =Liste!$G122 -> Artikel 121 | X151: =Liste!$G122 -> Artikel 121
J152: =Liste!$G123 -> Artikel 122 | Q152: =Liste!$G123 -> Artikel 122 | X152: =Liste!$G123 -> Artikel 122
J153: =Liste!$G124 -> Artikel 123 | Q153: =Liste!$G124 -> Artikel 123 | X153: =Liste!$G124 -> Artikel 123
J154: =Liste!$G125 -> Artikel 124 | Q154: =Liste!$G125 -> Artikel 124 | X154: =Liste!$G125 -> Artikel 124
J155: =Liste!$G126 -> Artikel 125 | Q155: =Liste!$G126 -> Artikel 125 | X155: =Liste!$G126 -> Artikel 125
J156: =Liste!$G127 -> Artikel 126 | Q156: =Liste!$G127 -> Artikel 126 | X156: =Liste!$G127 -> Artikel 126
J157: =Liste!$G128 -> Artikel 127 | Q157: =Liste!$G128 -> Artikel 127 | X157: =Liste!$G128 -> Artikel 127
J158: =Liste!$G129 -> Artikel 128 | Q158: =Liste!$G129 -> Artikel 128 | X158: =Liste!$G129 -> Artikel 128
J159: =Liste!$G130 -> Artikel 129 | Q159: =Liste!$G130 -> Artikel 129 | X159: =Liste!$G130 -> Artikel 129
J160: =Liste!$G131 -> Artikel 130 | Q160: =Liste!$G131 -> Artikel 130 | X160: =Liste!$G131 -> Artikel 130
J161: =Liste!$G132 -> Artikel 131 | Q161: =Liste!$G132 -> Artikel 131 | X161: =Liste!$G132 -> Artikel 131
J162: =Liste!$G133 -> Artikel 132 | Q162: =Liste!$G133 -> Artikel 132 | X162: =Liste!$G133 -> Artikel 132
J163: =Liste!$G134 -> Artikel 133 | Q163: =Liste!$G134 -> Artikel 133 | X163: =Liste!$G134 -> Artikel 133
J164: =Liste!$G135 -> Artikel 134 | Q164: =Liste!$G135 -> Artikel 134 | X164: =Liste!$G135 -> Artikel 134
J165: =Liste!$G136 -> Artikel 135 | Q165: =Liste!$G136 -> Artikel 135 | X165: =Liste!$G136 -> Artikel 135
J166: =Liste!$G137 -> Artikel 136 | Q166: =Liste!$G137 -> Artikel 136 | X166: =Liste!$G137 -> Artikel 136
J167: =Liste!$G138 -> Artikel 137 | Q167: =Liste!$G138 -> Artikel 137 | X167: =Liste!$G138 -> Artikel 137
J168: =Liste!$G139 -> Artikel 138 | Q168: =Liste!$G139 -> Artikel 138 | X168: =Liste!$G139 -> Artikel 138
J169: =Liste!$G140 -> Artikel 139 | Q169: =Liste!$G140 -> Artikel 139 | X169: =Liste!$G140 -> Artikel 139
J170: =Liste!$G141 -> Artikel 140 | Q170: =Liste!$G141 -> Artikel 140 | X170: =Liste!$G141 -> Artikel 140
J171: =Liste!$G142 -> Artikel 141 | Q171: =Liste!$G142 -> Artikel 141 | X171: =Liste!$G142 -> Artikel 141
J172: =Liste!$G143 -> Artikel 142 | Q172: =Liste!$G143 -> Artikel 142 | X172: =Liste!$G143 -> Artikel 142
J173: =Liste!$G144 -> Artikel 143 | Q173: =Liste!$G144 -> Artikel 143 | X173: =Liste!$G144 -> Artikel 143
J174: =Liste!$G145 -> Artikel 144 | Q174: =Liste!$G145 -> Artikel 144 | X174: =Liste!$G145 -> Artikel 144
J175: =Liste!$G146 -> Artikel 145 | Q175: =Liste!$G146 -> Artikel 145 | X175: =Liste!$G146 -> Artikel 145
J176: =Liste!$G147 -> Artikel 146 | Q176: =Liste!$G147 -> Artikel 146 | X176: =Liste!$G147 -> Artikel 146
J177: =Liste!$G148 -> Artikel 147 | Q177: =Liste!$G148 -> Artikel 147 | X177: =Liste!$G148 -> Artikel 147
J178: =Liste!$G149 -> Artikel 148 | Q178: =Liste!$G149 -> Artikel 148 | X178: =Liste!$G149 -> Artikel 148
J179: =Liste!$G150 -> Artikel 149 | Q179: =Liste!$G150 -> Artikel 149 | X179: =Liste!$G150 -> Artikel 149
J180: =Liste!$G151 -> Artikel 150 | Q180: =Liste!$G151 -> Artikel 150 | X180: =Liste!$G151 -> Artikel 150
J181: =Liste!$G152 -> Artikel 151 | Q181: =Liste!$G152 -> Artikel 151 | X181: =Liste!$G152 -> Artikel 151
J182: =Liste!$G153 -> Artikel 152 | Q182: =Liste!$G153 -> Artikel 152 | X182: =Liste!$G153 -> Artikel 152
J183: =Liste!$G154 -> Artikel 153 | Q183: =Liste!$G154 -> Artikel 153 | X183: =Liste!$G154 -> Artikel 153
J184: =Liste!$G155 -> Artikel 154 | Q184: =Liste!$G155 -> Artikel 154 | X184: =Liste!$G155 -> Artikel 154
J185: =Liste!$G156 -> Artikel 155 | Q185: =Liste!$G156 -> Artikel 155 | X185: =Liste!$G156 -> Artikel 155
J186: =Liste!$G157 -> Artikel 156 | Q186: =Liste!$G157 -> Artikel 156 | X186: =Liste!$G157 -> Artikel 156
J187: =Liste!$G158 -> Artikel 157 | Q187: =Liste!$G158 -> Artikel 157 | X187: =Liste!$G158 -> Artikel 157
J188: =Liste!$G159 -> Artikel 158 | Q188: =Liste!$G159 -> Artikel 158 | X188: =Liste!$G159 -> Artikel 158
J189: =Liste!$G160 -> Artikel 159 | Q189: =Liste!$G160 -> Artikel 159 | X189: =Liste!$G160 -> Artikel 159
J190: =Liste!$G161 -> Artikel 160 | Q190: =Liste!$G161 -> Artikel 160 | X190: =Liste!$G161 -> Artikel 160
J191: =Liste!$G162 -> Artikel 161 | Q191: =Liste!$G162 -> Artikel 161 | X191: =Liste!$G162 -> Artikel 161
J192: =Liste!$G163 -> Artikel 162 | Q192: =Liste!$G163 -> Artikel 162 | X192: =Liste!$G163 -> Artikel 162
J193: =Liste!$G164 -> Artikel 163 | Q193: =Liste!$G164 -> Artikel 163 | X193: =Liste!$G164 -> Artikel 163
J194: =Liste!$G165 -> Artikel 164 | Q194: =Liste!$G165 -> Artikel 164 | X194: =Liste!$G165 -> Artikel 164
J195: =Liste!$G166 -> Artikel 165 | Q195: =Liste!$G166 -> Artikel 165 | X195: =Liste!$G166 -> Artikel 165
J196: =Liste!$G167 -> Artikel 166 | Q196: =Liste!$G167 -> Artikel 166 | X196: =Liste!$G167 -> Artikel 166
J197: =Liste!$G168 -> Artikel 167 | Q197: =Liste!$G168 -> Artikel 167 | X197: =Liste!$G168 -> Artikel 167
J198: =Liste!$G169 -> Artikel 168 | Q198: =Liste!$G169 -> Artikel 168 | X198: =Liste!$G169 -> Artikel 168
J199: =Liste!$G170 -> Artikel 169 | Q199: =Liste!$G170 -> Artikel 169 | X199: =Liste!$G170 -> Artikel 169
J200: =Liste!$G171 -> Artikel 170 | Q200: =Liste!$G171 -> Artikel 170 | X200: =Liste!$G171 -> Artikel 170
... 70 more rows
